Workbook

Sheet 1①～④
C1: 問５(3) 直近２か月間で案内した紹介事業者の有無
C3: 全体 | D3: あり | E3: なし | F3: 無回答
A4: 全 体 | C4: =C47 -> 1126 | D4: 312 | E4: 751 | F4: 63
C5: =IF(SUM(D5:F5)>100,"－",SUM(D5:F5)) -> 100 | D5: =D4/$C4*100 -> 27.70870337 | E5: 66.69626998 | F5: 5.595026643
A6: 問１(1) | B6: 社会福祉法人（社協を除く） | C6: =C49 -> 250 | D6: =IF($C6=0,0,D49/$C6*100) -> 27.6 | E6: 68.8 | F6: 3.6
A7: 設置主体 | B7: 社会福祉協議会 | C7: 41 | D7: 34.14634146 | E7: 60.97560976 | F7: 4.87804878
B8: 医療法人 | C8: 180 | D8: 27.77777778 | E8: 66.66666667 | F8: 5.555555556
B9: 社団法人 | C9: 14 | D9: 35.71428571 | E9: 57.14285714 | F9: 7.142857143
B10: 財団法人 | C10: 5 | D10: 40 | E10: 40 | F10: 20
B11: 営利法人（株式会社等） | C11: 555 | D11: 26.66666667 | E11: 67.02702703 | F11: 6.306306306
B12: NPO法人 | C12: 41 | D12: 36.58536585 | E12: 56.09756098 | F12: 7.317073171
B13: その他 | C13: 40 | D13: 22.5 | E13: 72.5 | F13: 5
B14: 無回答 | C14: 0 | D14: 0 | E14: 0 | F14: 0
A15: 問１(2) | B15: ２人未満 | C15: 138 | D15: 17.39130435 | E15: 80.43478261 | F15: 2.173913043
A16: ケアマネジャー数 （常勤換算） | B16: ２～３人未満 | C16: 71 | D16: 29.57746479 | E16: 69.01408451 | F16: 1.408450704
B17: ３～４人未満 | C17: 82 | D17: 34.14634146 | E17: 59.75609756 | F17: 6.097560976
B18: ４～５人未満 | C18: 63 | D18: 28.57142857 | E18: 66.66666667 | F18: 4.761904762
B19: ５～７人未満 | C19: 49 | D19: 48.97959184 | E19: 46.93877551 | F19: 4.081632653
B20: ７人以上 | C20: 28 | D20: 42.85714286 | E20: 46.42857143 | F20: 10.71428571
B21: エラー・無回答 | C21: 695 | D21: 26.61870504 | E21: 66.76258993 | F21: 6.618705036
A22: 問１(3) | B22: 訪問介護 | C22: 491 | D22: 29.53156823 | E22: 64.56211813 | F22: 5.906313646
A23: 併設している事業所 | B23: 訪問看護 | C23: 167 | D23: 28.74251497 | E23: 62.2754491 | F23: 8.982035928
B24: 訪問リハビリテーション | C24: 60 | D24: 31.66666667 | E24: 65 | F24: 3.333333333
B25: 居宅療養管理指導 | C25: 46 | D25: 43.47826087 | E25: 50 | F25: 6.52173913
B26: 通所介護 | C26: 442 | D26: =IF($C26=0,0,D69/$C26*100) -> 29.86425339 | E26: 66.06334842 | F26: 4.07239819
B27: 通所リハビリテーション | C27: 124 | D27: 31.4516129 | E27: 64.51612903 | F27: 4.032258065
B28: 有料老人ホーム（特定施設） | C28: 26 | D28: 7.692307692 | E28: 92.30769231 | F28: 0
B29: 有料老人ホーム（特定施設以外） | C29: 45 | D29: 13.33333333 | E29: 75.55555556 | F29: 11.11111111
B30: サービス付き高齢者向け住宅（特定施設） | C30: 23 | D30: 26.08695652 | E30: 60.86956522 | F30: 13.04347826
B31: サービス付き高齢者向け住宅（特定施設以外） | C31: 50 | D31: 16 | E31: 78 | F31: 6
B32: 介護保険施設 | C32: 202 | D32: 28.71287129 | E32: 68.31683168 | F32: 2.97029703
B33: 医療機関 | C33: 98 | D33: 31.63265306 | E33: 64.28571429 | F33: 4.081632653
B34: その他 | C34: 220 | D34: 24.54545455 | E34: 72.27272727 | F34: 3.181818182
B35: 無回答 | C35: 170 | D35: 24.11764706 | E35: 68.23529412 | F35: 7.647058824
A36: 問１(2)(4) | B36: 15人未満 | C36: 31 | D36: 16.12903226 | E36: 83.87096774 | F36: 0
A37: ケアマネジャー | B37: 15～20人未満 | C37: 36 | D37: 36.11111111 | E37: 61.11111111 | F37: 2.777777778
A38: １人あたりの | B38: 20～25人未満 | C38: 56 | D38: 23.21428571 | E38: 71.42857143 | F38: 5.357142857
A39: 担当ケース数 | B39: 25～30人未満 | C39: 77 | D39: 24.67532468 | E39: 74.02597403 | F39: 1.298701299
B40: 30～35人未満 | C40: 90 | D40: 28.88888889 | E40: 63.33333333 | F40: 7.777777778
B41: 35～40人未満 | C41: 76 | D41: 40.78947368 | E41: 56.57894737 | F41: 2.631578947
B42: 40人以上 | C42: 32 | D42: 34.375 | E42: 65.625 | F42: 0
B43: エラー・無回答 | C43: 728 | D43: 26.64835165 | E43: 66.62087912 | F43: 6.730769231
A47: 全 体 | C47: 1126 | D47: 312 | E47: 751 | F47: 63
A49: 問１(1) | B49: 社会福祉法人（社協を除く） | C49: 250 | D49: 69 | E49: 172 | F49: 9
A50: 設置主体 | B50: 社会福祉協議会 | C50: 41 | D50: 14 | E50: 25 | F50: 2
B51: 医療法人 | C51: 180 | D51: 50 | E51: 120 | F51: 10
B52: 社団法人 | C52: 14 | D52: 5 | E52: 8 | F52: 1
B53: 財団法人 | C53: 5 | D53: 2 | E53: 2 | F53: 1
B54: 営利法人（株式会社等） | C54: 555 | D54: 148 | E54: 372 | F54: 35
B55: NPO法人 | C55: 41 | D55: 15 | E55: 23 | F55: 3
B56: その他 | C56: 40 | D56: 9 | E56: 29 | F56: 2
B57: 無回答 | C57: 0 | D57: 0 | E57: 0 | F57: 0
A58: 問１(2) | B58: ２人未満 | C58: 138 | D58: 24 | E58: 111 | F58: 3
A59: ケアマネジャー数 | B59: ２～３人未満 | C59: 71 | D59: 21 | E59: 49 | F59: 1
B60: ３～４人未満 | C60: 82 | D60: 28 | E60: 49 | F60: 5
B61: ４～５人未満 | C61: 63 | D61: 18 | E61: 42 | F61: 3
B62: ５～７人未満 | C62: 49 | D62: 24 | E62: 23 | F62: 2
B63: ７人以上 | C63: 28 | D63: 12 | E63: 13 | F63: 3
B64: エラー・無回答 | C64: 695 | D64: 185 | E64: 464 | F64: 46
A65: 問１(3) | B65: 訪問介護 | C65: 491 | D65: 145 | E65: 317 | F65: 29
A66: 併設している事業所 | B66: 訪問看護 | C66: 167 | D66: 48 | E66: 104 | F66: 15
B67: 訪問リハビリテーション | C67: 60 | D67: 19 | E67: 39 | F67: 2
B68: 居宅療養管理指導 | C68: 46 | D68: 20 | E68: 23 | F68: 3
B69: 通所介護 | C69: 442 | D69: 132 | E69: 292 | F69: 18
B70: 通所リハビリテーション | C70: 124 | D70: 39 | E70: 80 | F70: 5
B71: 有料老人ホーム（特定施設） | C71: 26 | D71: 2 | E71: 24 | F71: 0
B72: 有料老人ホーム（特定施設以外） | C72: 45 | D72: 6 | E72: 34 | F72: 5
B73: サービス付き高齢者向け住宅（特定施設） | C73: 23 | D73: 6 | E73: 14 | F73: 3
B74: サービス付き高齢者向け住宅（特定施設以外） | C74: 50 | D74: 8 | E74: 39 | F74: 3
B75: 介護保険施設 | C75: 202 | D75: 58 | E75: 138 | F75: 6
B76: 医療機関 | C76: 98 | D76: 31 | E76: 63 | F76: 4
B77: その他 | C77: 220 | D77: 54 | E77: 159 | F77: 7
B78: 無回答 | C78: 170 | D78: 41 | E78: 116 | F78: 13
A79: 問１(2)(4) | B79: 15人未満 | C79: 31 | D79: 5 | E79: 26 | F79: 0
A80: ケアマネ１人あたりの担当ケース数 | B80: 15～20人未満 | C80: 36 | D80: 13 | E80: 22 | F80: 1
B81: 20～25人未満 | C81: 56 | D81: 13 | E81: 40 | F81: 3
B82: 25～30人未満 | C82: 77 | D82: 19 | E82: 57 | F82: 1
B83: 30～35人未満 | C83: 90 | D83: 26 | E83: 57 | F83: 7
B84: 35～40人未満 | C84: 76 | D84: 31 | E84: 43 | F84: 2
B85: 40人以上 | C85: 32 | D85: 11 | E85: 21 | F85: 0
B86: エラー・無回答 | C86: 728 | D86: 194 | E86: 485 | F86: 49

Sheet 1⑤～⑩
C1: 問５(4) 直近２か月間で紹介事業者を案内した利用者の数 | J1: 問５(5) 紹介事業者を案内している理由（複数回答） | T1: 問５(6) 紹介事業者を案内していない理由（複数回答） | AB1: 問５(7) 紹介事業者の仕組みについて知っている内容（複数回答） | AH1: 問６(1) 紹介事業者を利用する際に困っていること（複数回答） | AT1: 問６(2) 紹介事業者への要望（複数回答）
C3: 全体 | D3: ０人 | E3: １人 | F3: ２人 | G3: ３人以上 | H3: エラー・無回答 | I3: 平均 (人) | J3: 全体 | K3: 自身の業務が多忙なため | L3: 当事業所では紹介先に対する責任が持てないため | M3: 入居検討先が遠方にあるため | N3: 有料老人ホーム・サ高住に関する知識や情報が不足しているため | O3: 紹介事業者の相談対応が親切であるため | P3: 入居を急ぐケースがあるため | Q3: その他 | R3: 紹介事業者の案内はしていない | S3: 無回答 | T3: 全体 | U3: 紹介事業者が近隣にないため | V3: 紹介できる有料老人ホーム・サ高住の数が限られているため | W3: 当事業所内で有料老人ホーム・サ高住の情報を把握できているため | X3: 過去に紹介事業者を利用した際の対応に不満があったため | Y3: その他 | Z3: 基本的に紹介事業者を案内している | AA3: 無回答 | AB3: 全体 | AC3: 紹介事業者は、紹介あっせん契約をしている有料老人ホーム・サ高住を紹介していること | AD3: 紹介事業者は、紹介あっせん契約をしている有料老人ホーム・サ高住から手数料（入居者の紹介に係る成功報酬）を受け取っていること | AE3: 紹介事業者が有料老人ホーム・サ高住から受け取る手数料は一律ではないこと | AF3: 左記のいずれも知らない | AG3: 無回答 | AH3: 全体 | AI3: 事業所の近くに紹介事業者がない | AJ3: 紹介事業者の仕組みが分からない | AK3: どの紹介事業者を選べば良いのか分からない | AL3: 紹介事業者の対応が遅い | AM3: 紹介事業者の相談対応が不親切 | AN3: 利用者にふさわしい有料老人ホーム・サ高住が紹介されない | AO3: 一部の有料老人ホーム・サ高住しか紹介されない | AP3: 事業所への営業がしつこい | AQ3: その他 | AR3: 特に困っていることはない | AS3: 無回答 | AT3: 全体 | AU3: 利用者（相談者）のニーズに合った施設を紹介して欲しい | AV3: 中立性を保った情報提供をして欲しい | AW3: 各施設の特徴について丁寧な説明をして欲しい | AX3: 各施設のサービス内容について丁寧な説明をして欲しい | AY3: 各施設の入居・退去要件について丁寧な説明をして欲しい | AZ3: 各施設の料金について丁寧な説明をして欲しい | BA3: 各施設の空き情報について教えてほしい | BB3: 営業の頻度を減らして欲しい | BC3: その他 | BD3: 特に要望はない | BE3: 無回答
A4: 全 体 | C4: =C12 -> 1126 | D4: 796 | E4: 150 | F4: 69 | G4: 45 | H4: 66 | I4: 0.4490566038 | J4: 1126 | K4: 223 | L4: 214 | M4: =M12 -> 139 | N4: 360 | O4: 258 | P4: 276 | Q4: 71 | R4: 369 | S4: 75 | T4: 1126 | U4: 116 | V4: 111 | W4: 183 | X4: 53 | Y4: 204 | Z4: 214 | AA4: 343 | AB4: 1126 | AC4: 625 | AD4: 711 | AE4: 319 | AF4: 235 | AG4: 68 | AH4: 1126 | AI4: 117 | AJ4: =AJ12 -> 106 | AK4: 272 | AL4: 38 | AM4: 32 | AN4: 122 | AO4: 165 | AP4: 151 | AQ4: 61 | AR4: 443 | AS4: 59 | AT4: 1126 | AU4: 567 | AV4: =AV12 -> 526 | AW4: 399 | AX4: 381 | AY4: 359 | AZ4: 457 | BA4: 248 | BB4: 160 | BC4: 35 | BD4: 280 | BE4: 35
C5: =IF(SUM(D5:H5)>100,"－",SUM(D5:H5)) -> 100 | D5: =D4/$C4*100 -> 70.69271758 | E5: 13.32149201 | F5: 6.127886323 | G5: 3.996447602 | H5: 5.861456483 | J5: =IF(SUM(K5:S5)>100,"－",SUM(K5:S5)) -> － | K5: =K4/$J4*100 -> 19.80461812 | L5: 19.0053286 | M5: =M4/$J4*100 -> 12.34458259 | N5: 31.97158082 | O5: 22.91296625 | P5: 24.51154529 | Q5: 6.305506217 | R5: 32.77087034 | S5: 6.660746004 | T5: =IF(SUM(U5:AA5)>100,"－",SUM(U5:AA5)) -> － | U5: =U4/$T4*100 -> 10.30195382 | V5: 9.857904085 | W5: 16.25222025 | X5: 4.706927176 | Y5: 18.11722913 | Z5: 19.0053286 | AA5: 30.46181172 | AB5: =IF(SUM(AC5:AG5)>100,"－",SUM(AC5:AG5)) -> － | AC5: =AC4/$AB4*100 -> 55.5062167 | AD5: 63.14387211 | AE5: 28.330373 | AF5: 20.87033748 | AG5: 6.039076377 | AH5: =IF(SUM(AI5:AS5)>100,"－",SUM(AI5:AS5)) -> － | AI5: =AI4/$AH4*100 -> 10.39076377 | AJ5: =AJ4/$AH4*100 -> 9.413854352 | AK5: 24.15630551 | AL5: 3.374777975 | AM5: 2.841918295 | AN5: 10.8348135 | AO5: 14.65364121 | AP5: 13.41030195 | AQ5: 5.41740675 | AR5: 39.34280639 | AS5: 5.239786856 | AT5: =IF(SUM(AU5:BE5)>100,"－",SUM(AU5:BE5)) -> － | AU5: =AU4/$AT4*100 -> 50.35523979 | AV5: =AV4/$AT4*100 -> 46.71403197 | AW5: 35.43516874 | AX5: 33.8365897 | AY5: 31.88277087 | AZ5: 40.58614565 | BA5: 22.02486679 | BB5: 14.20959147 | BC5: 3.108348135 | BD5: 24.86678508 | BE5: 3.108348135
A6: 問５(3) | B6: あり | C6: =C14 -> 312 | D6: =IF($C6=0,0,D14/$C6*100) -> 13.78205128 | E6: 47.75641026 | F6: 21.15384615 | G6: 14.1025641 | H6: 3.205128205 | I6: =I14 -> 1.539735099 | J6: =J14 -> 312 | K6: =IF($J6=0,0,K14/$J6*100) -> 33.33333333 | L6: 32.69230769 | M6: 20.83333333 | N6: 56.41025641 | O6: 46.79487179 | P6: 41.34615385 | Q6: 6.41025641 | R6: 4.166666667 | S6: 0.9615384615 | T6: =T14 -> 312 | U6: =IF($T6=0,0,U14/$T6*100) -> 5.128205128 | V6: 5.769230769 | W6: 4.487179487 | X6: 2.884615385 | Y6: 7.051282051 | Z6: 33.97435897 | AA6: 44.55128205 | AB6: =AB14 -> 312 | AC6: =IF($AB6=0,0,AC14/$AB6*100) -> 58.97435897 | AD6: 65.70512821 | AE6: 32.05128205 | AF6: 17.62820513 | AG6: 6.08974359 | AH6: =AH14 -> 312 | AI6: =IF($AH6=0,0,AI14/$AH6*100) -> 8.333333333 | AJ6: 7.051282051 | AK6: 29.80769231 | AL6: 4.487179487 | AM6: 4.487179487 | AN6: 11.85897436 | AO6: 17.94871795 | AP6: 15.70512821 | AQ6: 5.769230769 | AR6: 39.42307692 | AS6: 3.846153846 | AT6: =AT14 -> 312 | AU6: =IF($AT6=0,0,AU14/$AT6*100) -> 63.46153846 | AV6: 52.24358974 | AW6: 44.87179487 | AX6: 40.38461538 | AY6: 38.14102564 | AZ6: 48.07692308 | BA6: 29.48717949 | BB6: 16.98717949 | BC6: 3.525641026 | BD6: 17.30769231 | BE6: 0.641025641
A7: 紹介事業者の利用有無 | B7: なし | C7: =C15 -> 751 | D7: 100 | E7: 0 | F7: 0 | G7: 0 | H7: 0 | I7: =I15 -> 0 | J7: =J15 -> 751 | K7: =IF($J7=0,0,K15/$J7*100) -> 13.98135819 | L7: 12.91611185 | M7: 8.388814913 | N7: 21.30492676 | O7: 12.25033289 | P7: 16.64447403 | Q7: 6.524633822 | R7: 46.07190413 | S7: 8.655126498 | T7: =T15 -> 751 | U7: 12.78295606 | V7: 11.71770972 | W7: 21.57123835 | X7: 5.725699068 | Y7: 23.43541944 | Z7: 13.04926764 | AA7: 23.16910786 | AB7: =AB15 -> 751 | AC7: 54.19440746 | AD7: 62.0505992 | AE7: 26.63115846 | AF7: 23.16910786 | AG7: 4.926764314 | AH7: =AH15 -> 751 | AI7: =IF($AH7=0,0,AI15/$AH7*100) -> 11.85086551 | AJ7: 11.05193076 | AK7: 21.70439414 | AL7: 2.796271638 | AM7: 2.130492676 | AN7: 10.51930759 | AO7: 12.78295606 | AP7: 12.38348868 | AQ7: 5.459387483 | AR7: 39.94673768 | AS7: 5.193075899 | AT7: =AT15 -> 751 | AU7: =IF($AT7=0,0,AU15/$AT7*100) -> 44.873502 | AV7: 44.47403462 | AW7: 31.0252996 | AX7: 31.0252996 | AY7: 29.16111851 | AZ7: 37.54993342 | BA7: 18.64181092 | BB7: 12.78295606 | BC7: 3.062583222 | BD7: 28.62849534 | BE7: 3.595206391
A8: （直近２か月） | B8: 無回答 | C8: =C16 -> 63 | D8: 3.174603175 | E8: 1.587301587 | F8: 4.761904762 | G8: 1.587301587 | H8: 88.88888889 | I8: =I16 -> 1.571428571 | J8: =J16 -> 63 | K8: =IF($J8=0,0,K16/$J8*100) -> 22.22222222 | L8: 23.80952381 | M8: 17.46031746 | N8: 38.0952381 | O8: 31.74603175 | P8: 34.92063492 | Q8: 3.174603175 | R8: 15.87301587 | S8: 11.11111111 | T8: =T16 -> 63 | U8: 6.349206349 | V8: 7.936507937 | W8: 11.11111111 | X8: 1.587301587 | Y8: 9.523809524 | Z8: 15.87301587 | AA8: 47.61904762 | AB8: =AB16 -> 63 | AC8: 53.96825397 | AD8: 63.49206349 | AE8: 30.15873016 | AF8: 9.523809524 | AG8: 19.04761905 | AH8: =AH16 -> 63 | AI8: =IF($AH8=0,0,AI16/$AH8*100) -> 3.174603175 | AJ8: 1.587301587 | AK8: 25.3968254 | AL8: 4.761904762 | AM8: 3.174603175 | AN8: 9.523809524 | AO8: 20.63492063 | AP8: 14.28571429 | AQ8: 3.174603175 | AR8: 31.74603175 | AS8: 12.6984127 | AT8: =AT16 -> 63 | AU8: =IF($AT8=0,0,AU16/$AT8*100) -> 50.79365079 | AV8: 46.03174603 | AW8: 41.26984127 | AX8: 34.92063492 | AY8: 33.33333333 | AZ8: 39.68253968 | BA8: 25.3968254 | BB8: 17.46031746 | BC8: 1.587301587 | BD8: 17.46031746 | BE8: 9.523809524
D9: =D6-D$5 -> -56.9106663 | E9: =E6-E$5 -> 34.43491825 | F9: 15.02595983 | G9: 10.1061165 | H9: -2.656328278 | I9: 1.539735099 | K9: 13.52871522 | L9: 13.6869791 | M9: 8.48875074 | N9: 24.43867559 | O9: 23.88190554 | P9: 16.83460855 | Q9: 0.1047501936 | R9: -28.60420367 | S9: -5.699207542 | U9: -5.173748691 | V9: -4.088673316 | W9: -11.76504076 | X9: -1.822311791 | Y9: -11.06594708 | Z9: 14.96903038 | AA9: 14.08947033 | AC9: 3.468142278 | AD9: 2.561256091 | AE9: 3.72090905 | AF9: -3.24213235 | AG9: 0.05066721319 | AI9: -2.057430432 | AJ9: -2.3625723 | AK9: 5.651386801 | AL9: 1.112401512 | AM9: 1.645261192 | AN9: 1.02416086 | AO9: 3.295076741 | AP9: 2.294826251 | AQ9: 0.3518240197 | AR9: 0.08027052876 | AS9: -1.39363301 | AU9: 13.10629867 | AV9: 5.529557772 | AW9: 9.436626133 | AX9: 6.548025687 | AY9: 6.258254771 | AZ9: 7.490777429 | BA9: 7.462312702 | BB9: 2.777588013 | BC9: 0.4172928906 | BD9: -7.559092772 | BE9: -2.467322494
D10: =D7-D$5 -> 29.30728242 | E10: =E7-E$5 -> -13.32149201 | F10: -6.127886323 | G10: -3.996447602 | H10: -5.861456483 | I10: 0 | K10: -5.823259928 | L10: -6.089216746 | M10: -3.95576768 | N10: -10.66665405 | O10: -10.66263336 | P10: -7.867071258 | Q10: 0.2191276049 | R10: 13.30103379 | S10: 1.994380494 | U10: 2.48100224 | V10: 1.859805635 | W10: 5.3190181 | X10: 1.018771892 | Y10: 5.318190311 | Z10: -5.956060954 | AA10: -7.292703867 | AC10: -1.31180924 | AD10: -1.093272913 | AE10: -1.699214546 | AF10: 2.298770378 | AG10: -1.112312062 | AI10: 1.460101747 | AJ10: 1.638076407 | AK10: -2.451911365 | AL10: -0.5785063373 | AM10: -0.7114256184 | AN10: -0.3155059092 | AO10: -1.870685149 | AP10: -1.026813272 | AQ10: 0.0419807338 | AR10: 0.6039312888 | AS10: -0.04671095733 | AU10: -5.48173779 | AV10: -2.239997351 | AW10: -4.409869138 | AX10: -2.811290098 | AY10: -2.721652362 | AZ10: -3.036212226 | BA10: -3.383055866 | BB10: -1.426635416 | BC10: -0.04576491262 | BD10: 3.76171026 | BE10: 0.4868582565
A12: 全 体 | C12: 1126 | D12: 796 | E12: 150 | F12: 69 | G12: 45 | H12: 66 | I12: 0.4490566038 | J12: 1126 | K12: 223 | L12: 214 | M12: 139 | N12: 360 | O12: 258 | P12: 276 | Q12: 71 | R12: 369 | S12: 75 | T12: 1126 | U12: 116 | V12: 111 | W12: 183 | X12: 53 | Y12: 204 | Z12: 214 | AA12: 343 | AB12: 1126 | AC12: 625 | AD12: 711 | AE12: 319 | AF12: 235 | AG12: 68 | AH12: 1126 | AI12: 117 | AJ12: 106 | AK12: 272 | AL12: 38 | AM12: 32 | AN12: 122 | AO12: 165 | AP12: 151 | AQ12: 61 | AR12: 443 | AS12: 59 | AT12: 1126 | AU12: 567 | AV12: 526 | AW12: 399 | AX12: 381 | AY12: 359 | AZ12: 457 | BA12: 248 | BB12: 160 | BC12: 35 | BD12: 280 | BE12: 35
A14: 問５(3) | B14: あり | C14: 312 | D14: 43 | E14: 149 | F14: 66 | G14: 44 | H14: 10 | I14: 1.539735099 | J14: 312 | K14: 104 | L14: 102 | M14: 65 | N14: 176 | O14: 146 | P14: 129 | Q14: 20 | R14: 13 | S14: 3 | T14: 312 | U14: 16 | V14: 18 | W14: 14 | X14: 9 | Y14: 22 | Z14: 106 | AA14: 139 | AB14: 312 | AC14: 184 | AD14: 205 | AE14: 100 | AF14: 55 | AG14: 19 | AH14: 312 | AI14: 26 | AJ14: 22 | AK14: 93 | AL14: 14 | AM14: 14 | AN14: 37 | AO14: 56 | AP14: 49 | AQ14: 18 | AR14: 123 | AS14: 12 | AT14: 312 | AU14: 198 | AV14: 163 | AW14: 140 | AX14: 126 | AY14: 119 | AZ14: 150 | BA14: 92 | BB14: 53 | BC14: 11 | BD14: 54 | BE14: 2
A15: 紹介事業者の利用有無 | B15: なし | C15: 751 | D15: 751 | E15: 0 | F15: 0 | G15: 0 | H15: 0 | I15: 0 | J15: 751 | K15: 105 | L15: 97 | M15: 63 | N15: 160 | O15: 92 | P15: 125 | Q15: 49 | R15: 346 | S15: 65 | T15: 751 | U15: 96 | V15: 88 | W15: 162 | X15: 43 | Y15: 176 | Z15: 98 | AA15: 174 | AB15: 751 | AC15: 407 | AD15: 466 | AE15: 200 | AF15: 174 | AG15: 37 | AH15: 751 | AI15: 89 | AJ15: 83 | AK15: 163 | AL15: 21 | AM15: 16 | AN15: 79 | AO15: 96 | AP15: 93 | AQ15: 41 | AR15: 300 | AS15: 39 | AT15: 751 | AU15: 337 | AV15: 334 | AW15: 233 | AX15: 233 | AY15: 219 | AZ15: 282 | BA15: 140 | BB15: 96 | BC15: 23 | BD15: 215 | BE15: 27
B16: 無回答 | C16: 63 | D16: 2 | E16: 1 | F16: 3 | G16: 1 | H16: 56 | I16: 1.571428571 | J16: 63 | K16: 14 | L16: 15 | M16: 11 | N16: 24 | O16: 20 | P16: 22 | Q16: 2 | R16: 10 | S16: 7 | T16: 63 | U16: 4 | V16: 5 | W16: 7 | X16: 1 | Y16: 6 | Z16: 10 | AA16: 30 | AB16: 63 | AC16: 34 | AD16: 40 | AE16: 19 | AF16: 6 | AG16: 12 | AH16: 63 | AI16: 2 | AJ16: 1 | AK16: 16 | AL16: 3 | AM16: 2 | AN16: 6 | AO16: 13 | AP16: 9 | AQ16: 2 | AR16: 20 | AS16: 8 | AT16: 63 | AU16: 32 | AV16: 29 | AW16: 26 | AX16: 22 | AY16: 21 | AZ16: 25 | BA16: 16 | BB16: 11 | BC16: 1 | BD16: 11 | BE16: 6

Sheet 1⑳
D1: 問５(7) 紹介事業者の仕組みについて知っている内容（複数回答）
D3: 全体 | E3: 紹介事業者は、紹介あっせん契約をしている有料老人ホーム・サ高住を紹介していること | F3: 紹介事業者は、紹介あっせん契約をしている有料老人ホーム・サ高住から手数料（入居者の紹介に係る成功報酬）を受け取っていること | G3: 紹介事業者が有料老人ホーム・サ高住から受け取る手数料は一律ではないこと | H3: 左記のいずれも知らない | I3: 無回答
A4: 全 体 | D4: =D15 -> 1126 | E4: 625 | F4: 711 | G4: 319 | H4: 235 | I4: 68
D5: =IF(SUM(E5:I5)>100,"－",SUM(E5:I5)) -> － | E5: =E4/$D4*100 -> 55.5062167 | F5: 63.14387211 | G5: 28.330373 | H5: 20.87033748 | I5: 6.039076377
A6: 問５(3) | B6: あり | C6: 都市部 | D6: =D17 -> 198 | E6: =IF($D6=0,0,E17/$D6*100) -> 61.61616162 | F6: 70.70707071 | G6: 34.84848485 | H6: 14.64646465 | I6: 6.060606061
A7: 紹介事業者の利用有無 | C7: 地方部 | D7: 114 | E7: 54.38596491 | F7: 57.01754386 | G7: 27.19298246 | H7: 22.80701754 | I7: 6.140350877
A8: × | B8: なし | C8: 都市部 | D8: 409 | E8: 58.19070905 | F8: 66.74816626 | G8: 30.80684597 | H8: 20.53789731 | I8: 4.156479218
A9: 都市圏 | C9: 地方部 | D9: 342 | E9: 49.41520468 | F9: 56.43274854 | G9: 21.6374269 | H9: 26.31578947 | I9: 5.847953216
B10: 無回答 | C10: 都市部 | D10: 42 | E10: 52.38095238 | F10: 64.28571429 | G10: 30.95238095 | H10: 11.9047619 | I10: 19.04761905
C11: 地方部 | D11: 21 | E11: 57.14285714 | F11: 61.9047619 | G11: 28.57142857 | H11: 4.761904762 | I11: 19.04761905
A15: 全 体 | D15: 1126 | E15: 625 | F15: 711 | G15: 319 | H15: 235 | I15: 68
A17: 問５(3) | B17: あり | C17: 都市部 | D17: 198 | E17: 122 | F17: 140 | G17: 69 | H17: 29 | I17: 12
A18: 紹介事業者の利用有無 | C18: 地方部 | D18: 114 | E18: 62 | F18: 65 | G18: 31 | H18: 26 | I18: 7
A19: × | B19: なし | C19: 都市部 | D19: 409 | E19: 238 | F19: 273 | G19: 126 | H19: 84 | I19: 17
A20: 都市圏 | C20: 地方部 | D20: 342 | E20: 169 | F20: 193 | G20: 74 | H20: 90 | I20: 20
B21: 無回答 | C21: 都市部 | D21: 42 | E21: 22 | F21: 27 | G21: 13 | H21: 5 | I21: 8
C22: 地方部 | D22: 21 | E22: 12 | F22: 13 | G22: 6 | H22: 1 | I22: 4
D24: =IF(D5>100,"",(#REF!-#REF!-#REF!/100)) -> 

Sheet 2①
C1: 問７(2) 初回相談時の利用者の要介護度
C3: 全体 | D3: 自立 | E3: 要支援１ | F3: 要支援２ | G3: 要介護１ | H3: 要介護２ | I3: 要介護３ | J3: 要介護４ | K3: 要介護５ | L3: 不明 | M3: 無回答 | N3: 平均 要介護度 （自立含む）
A4: 全 体 | C4: =C19 -> 1863 | D4: 111 | E4: 156 | F4: 165 | G4: 504 | H4: 417 | I4: 227 | J4: 183 | K4: 86 | L4: 9 | M4: 5 | N4: =SUM(E19*0.375,F19,G19,H19*2,I19*3,J19*4,K19*5)/SUM(D19:K19) -> 1.841265549
C5: =IF(SUM(D5:M5)>100,"－",SUM(D5:M5)) -> 100 | D5: =D4/$C4*100 -> 5.958132045 | E5: 8.373590982 | F5: =F4/$C4*100 -> 8.85668277 | G5: 27.0531401 | H5: 22.38325282 | I5: 12.18464842 | J5: 9.822866345 | K5: 4.616210413 | L5: 0.4830917874 | M5: 0.2683843264
A6: 問７(1) | B6: 65歳未満 | C6: =C21 -> 29 | D6: =IF($C6=0,0,D21/$C6*100) -> 10.34482759 | E6: 3.448275862 | F6: 3.448275862 | G6: 27.5862069 | H6: 31.03448276 | I6: 6.896551724 | J6: 10.34482759 | K6: 6.896551724 | L6: 0 | M6: 0 | N6: =SUM(E21*0.375,F21,G21,H21*2,I21*3,J21*4,K21*5)/SUM(D21:K21) -> 1.909482759
A7: 入居者の年齢 | B7: 65～69歳 | C7: 41 | D7: =IF($C7=0,0,D22/$C7*100) -> 7.317073171 | E7: 7.317073171 | F7: 21.95121951 | G7: 12.19512195 | H7: 14.63414634 | I7: 7.317073171 | J7: 21.95121951 | K7: 7.317073171 | L7: 0 | M7: 0 | N7: =SUM(E22*0.375,F22,G22,H22*2,I22*3,J22*4,K22*5)/SUM(D22:K22) -> 2.125
B8: 70～74歳 | C8: 113 | D8: =IF($C8=0,0,D23/$C8*100) -> 7.96460177 | E8: 12.38938053 | F8: 10.61946903 | G8: 26.54867257 | H8: 16.81415929 | I8: 11.50442478 | J8: 9.734513274 | K8: 3.539823009 | L8: 0.8849557522 | M8: 0 | N8: 1.680803571
B9: 75～79歳 | C9: 218 | D9: =IF($C9=0,0,D24/$C9*100) -> 4.128440367 | E9: 6.880733945 | F9: 8.256880734 | G9: 29.81651376 | H9: 22.93577982 | I9: 12.3853211 | J9: 8.256880734 | K9: 6.422018349 | L9: 0.9174311927 | M9: 0 | N9: 1.905671296
B10: 80～84歳 | C10: 380 | D10: =IF($C10=0,0,D25/$C10*100) -> 6.315789474 | E10: 7.368421053 | F10: 8.684210526 | G10: 30 | H10: 25.52631579 | I10: 12.89473684 | J10: 6.315789474 | K10: 2.105263158 | L10: 0.7894736842 | M10: 0 | N10: =SUM(E25*0.375,F25,G25,H25*2,I25*3,J25*4,K25*5)/SUM(D25:K25) -> 1.683023873
B11: 85～89歳 | C11: 541 | D11: =IF($C11=0,0,D26/$C11*100) -> 6.099815157 | E11: 9.242144177 | F11: 10.53604436 | G11: 26.80221811 | H11: 18.11460259 | I11: 11.82994455 | J11: 11.82994455 | K11: 5.175600739 | L11: 0.3696857671 | M11: 0 | N11: 1.864100186
B12: 90～94歳 | C12: 385 | D12: =IF($C12=0,0,D27/$C12*100) -> 5.974025974 | E12: 7.792207792 | F12: 7.012987013 | G12: 25.97402597 | H12: 25.97402597 | I12: 13.50649351 | J12: 9.350649351 | K12: 4.155844156 | L12: 0.2597402597 | M12: 0 | N12: 1.870442708
B13: 95～99歳 | C13: 107 | D13: =IF($C13=0,0,D28/$C13*100) -> 4.672897196 | E13: 8.411214953 | F13: 5.607476636 | G13: 22.42990654 | H13: 29.90654206 | I13: 13.08411215 | J13: 11.21495327 | K13: 4.672897196 | L13: 0 | M13: 0 | N13: 1.984813084
B14: 100歳以上 | C14: 12 | D14: =IF($C14=0,0,D29/$C14*100) -> 0 | E14: 8.333333333 | F14: 0 | G14: 16.66666667 | H14: 16.66666667 | I14: 8.333333333 | J14: 25 | K14: 25 | L14: 0 | M14: 0 | N14: 3.03125
B15: 無回答 | C15: 37 | D15: =IF($C15=0,0,D30/$C15*100) -> 5.405405405 | E15: 13.51351351 | F15: 5.405405405 | G15: 29.72972973 | H15: 10.81081081 | I15: 5.405405405 | J15: 8.108108108 | K15: 8.108108108 | L15: 0 | M15: 13.51351351 | N15: 1.74609375
A19: 全 体 | C19: 1863 | D19: 111 | E19: 156 | F19: 165 | G19: 504 | H19: 417 | I19: 227 | J19: 183 | K19: 86 | L19: 9 | M19: 5
A21: 問７(1) | B21: 65歳未満 | C21: 29 | D21: 3 | E21: 1 | F21: 1 | G21: 8 | H21: 9 | I21: 2 | J21: 3 | K21: 2 | L21: 0 | M21: 0
A22: 利用者の年齢 | B22: 65～69歳 | C22: 41 | D22: 3 | E22: 3 | F22: 9 | G22: 5 | H22: 6 | I22: 3 | J22: 9 | K22: 3 | L22: 0 | M22: 0
B23: 70～74歳 | C23: 113 | D23: 9 | E23: 14 | F23: 12 | G23: 30 | H23: 19 | I23: 13 | J23: 11 | K23: 4 | L23: 1 | M23: 0
B24: 75～79歳 | C24: 218 | D24: 9 | E24: 15 | F24: 18 | G24: 65 | H24: 50 | I24: 27 | J24: 18 | K24: 14 | L24: 2 | M24: 0
B25: 80～84歳 | C25: 380 | D25: 24 | E25: 28 | F25: 33 | G25: 114 | H25: 97 | I25: 49 | J25: 24 | K25: 8 | L25: 3 | M25: 0
B26: 85～89歳 | C26: 541 | D26: 33 | E26: 50 | F26: 57 | G26: 145 | H26: 98 | I26: 64 | J26: 64 | K26: 28 | L26: 2 | M26: 0
B27: 90～94歳 | C27: 385 | D27: 23 | E27: 30 | F27: 27 | G27: 100 | H27: 100 | I27: 52 | J27: 36 | K27: 16 | L27: 1 | M27: 0
B28: 95～99歳 | C28: 107 | D28: 5 | E28: 9 | F28: 6 | G28: 24 | H28: 32 | I28: 14 | J28: 12 | K28: 5 | L28: 0 | M28: 0
B29: 100歳以上 | C29: 12 | D29: 0 | E29: 1 | F29: 0 | G29: 2 | H29: 2 | I29: 1 | J29: 3 | K29: 3 | L29: 0 | M29: 0
B30: 無回答 | C30: 37 | D30: 2 | E30: 5 | F30: 2 | G30: 11 | H30: 4 | I30: 2 | J30: 3 | K30: 3 | L30: 0 | M30: 5

Sheet 2②～⑦
C1: 問７(4) 初回相談時点で利用者がいた場所 | N1: 問７(5) 主たる相談者の属性 | X1: 問７(6) 施設の紹介方法 | AE1: 問７(7) 初回の相談から成約までの期間 | AO1: 問７(9) 入居先の施設種別 | AT1: 問７(12) 入居先の紹介元
C3: 全体 | D3: 自宅 | H3: 有料老人ホーム・サ高住・認知症高齢者グループホーム | I3: 介護保険施設等 | J3: 医療機関 | K3: その他 | L3: 不明 | M3: 無回答 | N3: 全体 | O3: 本人 | P3: 配偶者 | Q3: 同居の 子ども | R3: 別居の 子ども | S3: その他 親族 | T3: 友人 | U3: その他 | V3: 不明 | W3: 無回答 | X3: 全体 | Y3: 貴事業所（ケアマネジャー）が直接、施設を紹介した | Z3: 紹介事業者を紹介した | AA3: 何も紹介していない（利用者が自力で探した等） | AB3: 不明 | AC3: その他 | AD3: 無回答 | AE3: 全体 | AF3: １か月 未満 | AG3: １か月～ ２か月 未満 | AH3: ２か月～ ３か月 未満 | AI3: ３か月～半年未満 | AJ3: 半年～ １年未満 | AK3: １年～ ２年未満 | AL3: ２年以上 | AM3: 無回答 | AN3: 平均 (か月) | AO3: 全体 | AP3: 介護付 有料老人ホーム （特定施設） | AQ3: 住宅型 有料老人ホーム | AR3: サービス 付き高齢者向け住宅 | AS3: 無回答 | AT3: 全体 | AU3: 利用者が自力で探した | AV3: 居宅介護支援事業所（貴事業所）からの紹介 | AW3: 病院からの紹介 | AX3: 紹介事業者からの紹介 | AY3: その他 | AZ3: 不明 | BA3: 無回答
E4: 自宅（独居） | F4: 自宅（夫婦のみ） | G4: 自宅（その他家族と同居）
A5: 全 体 | C5: =C20 -> 1863 | D5: =D20 -> 1194 | E5: 627 | F5: 233 | G5: =G20 -> 334 | H5: 112 | I5: 100 | J5: 410 | K5: 47 | L5: 0 | M5: 0 | N5: 1863 | O5: 160 | P5: 147 | Q5: =Q20 -> 401 | R5: 769 | S5: 235 | T5: 10 | U5: 123 | V5: 1 | W5: 17 | X5: 1863 | Y5: 849 | Z5: 258 | AA5: 418 | AB5: 11 | AC5: 313 | AD5: 14 | AE5: 1863 | AF5: 136 | AG5: 698 | AH5: =AH20 -> 447 | AI5: 257 | AJ5: 93 | AK5: 38 | AL5: 21 | AM5: 173 | AN5: =AN20 -> 2.675500986 | AO5: 1863 | AP5: 374 | AQ5: 799 | AR5: 643 | AS5: 47 | AT5: 1863 | AU5: 274 | AV5: 793 | AW5: 259 | AX5: 211 | AY5: 237 | AZ5: 20 | BA5: 69
C6: =IF(SUM(E6:M6)>100,"－",SUM(E6:M6)) -> 100 | D6: =D5/$C5*100 -> 64.09017713 | E6: =E5/$C5*100 -> 33.65539452 | F6: 12.50670961 | G6: =G5/$C5*100 -> 17.928073 | H6: 6.01180891 | I6: 5.367686527 | J6: 22.00751476 | K6: 2.522812668 | L6: 0 | M6: 0 | N6: =IF(SUM(O6:W6)>100,"－",SUM(O6:W6)) -> 100 | O6: =O5/$N5*100 -> 8.588298443 | P6: 7.890499195 | Q6: =Q5/$N5*100 -> 21.52442297 | R6: 41.27750939 | S6: 12.61406334 | T6: 0.5367686527 | U6: 6.602254428 | V6: 0.05367686527 | W6: 0.9125067096 | X6: =IF(SUM(Y6:AD6)>100,"－",SUM(Y6:AD6)) -> 100 | Y6: =Y5/$X5*100 -> 45.57165862 | Z6: 13.84863124 | AA6: 22.43692968 | AB6: 0.590445518 | AC6: 16.80085883 | AD6: 0.7514761138 | AE6: =IF(SUM(AF6:AM6)>100,"－",SUM(AF6:AM6)) -> 100 | AF6: =AF5/$AE5*100 -> 7.300053677 | AG6: 37.46645196 | AH6: =AH5/$AE5*100 -> 23.99355878 | AI6: 13.79495437 | AJ6: 4.99194847 | AK6: 2.03972088 | AL6: 1.127214171 | AM6: 9.286097692 | AO6: =IF(SUM(AP6:AS6)>100,"－",SUM(AP6:AS6)) -> 100 | AP6: =AP5/$AO5*100 -> 20.07514761 | AQ6: 42.88781535 | AR6: 34.51422437 | AS6: 2.522812668 | AT6: =IF(SUM(AU6:BA6)>100,"－",SUM(AU6:BA6)) -> 100 | AU6: =AU5/$AT5*100 -> 14.70746108 | AV6: 42.56575416 | AW6: 13.90230811 | AX6: 11.32581857 | AY6: 12.72141707 | AZ6: 1.073537305 | BA6: 3.703703704
A7: 問７(2) | B7: 自立 | C7: =C22 -> 111 | D7: =IF($C7=0,0,D22/$C7*100) -> 79.27927928 | E7: =IF($C7=0,0,E22/$C7*100) -> 50.45045045 | F7: 17.11711712 | G7: 11.71171171 | H7: 5.405405405 | I7: 3.603603604 | J7: 9.90990991 | K7: 1.801801802 | L7: 0 | M7: 0 | N7: =N22 -> 111 | O7: =IF($N7=0,0,O22/$N7*100) -> 10.81081081 | P7: 4.504504505 | Q7: 16.21621622 | R7: 42.34234234 | S7: 17.11711712 | T7: 0.9009009009 | U7: 6.306306306 | V7: 0 | W7: 1.801801802 | X7: =X22 -> 111 | Y7: =IF($X7=0,0,Y22/$X7*100) -> 44.14414414 | Z7: 14.41441441 | AA7: 20.72072072 | AB7: 0.9009009009 | AC7: 19.81981982 | AD7: 0 | AE7: =AE22 -> 111 | AF7: =IF($AE7=0,0,AF22/$AE7*100) -> 9.90990991 | AG7: 42.34234234 | AH7: 17.11711712 | AI7: 12.61261261 | AJ7: 5.405405405 | AK7: 2.702702703 | AL7: 2.702702703 | AM7: 7.207207207 | AN7: 2.790291262 | AO7: =AO22 -> 111 | AP7: =IF($AO7=0,0,AP22/$AO7*100) -> 21.62162162 | AQ7: 39.63963964 | AR7: 36.03603604 | AS7: 2.702702703 | AT7: =AT22 -> 111 | AU7: =IF($AT7=0,0,AU22/$AT7*100) -> 17.11711712 | AV7: 43.24324324 | AW7: 10.81081081 | AX7: 9.90990991 | AY7: 13.51351351 | AZ7: 0.9009009009 | BA7: 4.504504505
A8: 利用者の | B8: 要支援１ | C8: 156 | D8: =IF($C8=0,0,D23/$C8*100) -> 71.15384615 | E8: =IF($C8=0,0,E23/$C8*100) -> 41.66666667 | F8: 17.94871795 | G8: 11.53846154 | H8: 10.25641026 | I8: 3.846153846 | J8: 12.82051282 | K8: 1.923076923 | L8: 0 | M8: 0 | N8: 156 | O8: =IF($N8=0,0,O23/$N8*100) -> 15.38461538 | P8: 7.692307692 | Q8: 15.38461538 | R8: 42.30769231 | S8: 13.46153846 | T8: 0 | U8: 4.487179487 | V8: 0.641025641 | W8: 0.641025641 | X8: 156 | Y8: 48.07692308 | Z8: 17.30769231 | AA8: 19.87179487 | AB8: 1.282051282 | AC8: 13.46153846 | AD8: 0 | AE8: 156 | AF8: 10.25641026 | AG8: 32.05128205 | AH8: 24.35897436 | AI8: 17.30769231 | AJ8: 3.846153846 | AK8: 2.564102564 | AL8: 0.641025641 | AM8: 8.974358974 | AN8: 2.380704225 | AO8: 156 | AP8: 25.64102564 | AQ8: 38.46153846 | AR8: 33.33333333 | AS8: 2.564102564 | AT8: 156 | AU8: 12.82051282 | AV8: 51.28205128 | AW8: 8.333333333 | AX8: 11.53846154 | AY8: 10.25641026 | AZ8: 0.641025641 | BA8: 5.128205128
A9: 要介護度 | B9: 要支援２ | C9: 165 | D9: =IF($C9=0,0,D24/$C9*100) -> 68.48484848 | E9: =IF($C9=0,0,E24/$C9*100) -> 40 | F9: 15.15151515 | G9: 13.33333333 | H9: 8.484848485 | I9: 6.060606061 | J9: 13.93939394 | K9: 3.03030303 | L9: 0 | M9: 0 | N9: 165 | O9: =IF($N9=0,0,O24/$N9*100) -> 13.93939394 | P9: 9.696969697 | Q9: 13.93939394 | R9: 43.63636364 | S9: 11.51515152 | T9: 0.6060606061 | U9: 6.060606061 | V9: 0 | W9: 0.6060606061 | X9: 165 | Y9: 47.27272727 | Z9: 15.75757576 | AA9: 23.03030303 | AB9: 0.6060606061 | AC9: 12.72727273 | AD9: 0.6060606061 | AE9: 165 | AF9: 6.060606061 | AG9: 30.90909091 | AH9: 28.48484848 | AI9: 14.54545455 | AJ9: 6.060606061 | AK9: 0 | AL9: 3.03030303 | AM9: 10.90909091 | AN9: 3.999206349 | AO9: 165 | AP9: 21.81818182 | AQ9: 33.93939394 | AR9: 39.39393939 | AS9: 4.848484848 | AT9: 165 | AU9: 13.33333333 | AV9: 45.45454545 | AW9: 10.90909091 | AX9: 13.33333333 | AY9: 12.12121212 | AZ9: 0 | BA9: 4.848484848
B10: 要介護１ | C10: 504 | D10: =IF($C10=0,0,D25/$C10*100) -> 69.24603175 | E10: =IF($C10=0,0,E25/$C10*100) -> 37.8968254 | F10: 12.1031746 | G10: 19.24603175 | H10: 5.753968254 | I10: 4.365079365 | J10: 18.05555556 | K10: 2.579365079 | L10: 0 | M10: 0 | N10: 504 | O10: =IF($N10=0,0,O25/$N10*100) -> 7.738095238 | P10: 6.349206349 | Q10: 19.84126984 | R10: 47.42063492 | S10: 11.9047619 | T10: 0.7936507937 | U10: 5.357142857 | V10: 0 | W10: 0.5952380952 | X10: 504 | Y10: 42.06349206 | Z10: 16.46825397 | AA10: 22.02380952 | AB10: 0.3968253968 | AC10: 17.46031746 | AD10: 1.587301587 | AE10: 504 | AF10: 6.547619048 | AG10: 36.30952381 | AH10: 26.19047619 | AI10: 12.8968254 | AJ10: 6.150793651 | AK10: 1.785714286 | AL10: 1.587301587 | AM10: 8.531746032 | AN10: 2.825422993 | AO10: 504 | AP10: 20.63492063 | AQ10: 41.46825397 | AR10: 36.11111111 | AS10: 1.785714286 | AT10: 504 | AU10: 14.48412698 | AV10: 38.49206349 | AW10: 12.3015873 | AX10: 14.68253968 | AY10: 15.07936508 | AZ10: 1.984126984 | BA10: 2.976190476
B11: 要介護２ | C11: 417 | D11: =IF($C11=0,0,D26/$C11*100) -> 66.18705036 | E11: =IF($C11=0,0,E26/$C11*100) -> 29.73621103 | F11: 12.70983213 | G11: 23.74100719 | H11: 4.316546763 | I11: 5.275779376 | J11: 21.10311751 | K11: 3.117505995 | L11: 0 | M11: 0 | N11: 417 | O11: =IF($N11=0,0,O26/$N11*100) -> 6.954436451 | P11: 6.474820144 | Q11: 25.65947242 | R11: 40.28776978 | S11: 11.99040767 | T11: 0 | U11: 7.673860911 | V11: 0 | W11: 0.9592326139 | X11: 417 | Y11: 47.24220624 | Z11: 11.51079137 | AA11: 26.13908873 | AB11: 0.2398081535 | AC11: 14.62829736 | AD11: 0.2398081535 | AE11: 417 | AF11: 5.755395683 | AG11: 34.29256595 | AH11: 24.70023981 | AI11: 16.54676259 | AJ11: 5.51558753 | AK11: 2.877697842 | AL11: 0.479616307 | AM11: 9.832134293 | AN11: 2.705939716 | AO11: 417 | AP11: 21.58273381 | AQ11: 42.68585132 | AR11: 33.57314149 | AS11: 2.158273381 | AT11: 417 | AU11: 16.06714628 | AV11: 42.92565947 | AW11: 15.10791367 | AX11: 7.913669065 | AY11: 13.42925659 | AZ11: 0.9592326139 | BA11: 3.597122302
B12: 要介護３ | C12: 227 | D12: =IF($C12=0,0,D27/$C12*100) -> 63.43612335 | E12: =IF($C12=0,0,E27/$C12*100) -> 27.75330396 | F12: 15.85903084 | G12: 19.82378855 | H12: 5.726872247 | I12: 5.286343612 | J12: 23.78854626 | K12: 1.762114537 | L12: 0 | M12: 0 | N12: 227 | O12: =IF($N12=0,0,O27/$N12*100) -> 7.929515419 | P12: 11.01321586 | Q12: 23.34801762 | R12: 33.92070485 | S12: 13.65638767 | T12: 1.321585903 | U12: 8.370044053 | V12: 0 | W12: 0.4405286344 | X12: 227 | Y12: 50.66079295 | Z12: 11.45374449 | AA12: 20.26431718 | AB12: 0.4405286344 | AC12: 16.74008811 | AD12: 0.4405286344 | AE12: 227 | AF12: 8.810572687 | AG12: 37.00440529 | AH12: 23.78854626 | AI12: 13.65638767 | AJ12: 3.083700441 | AK12: 3.083700441 | AL12: 0.4405286344 | AM12: 10.13215859 | AN12: 2.400147059 | AO12: 227 | AP12: 18.50220264 | AQ12: 42.73127753 | AR12: 36.12334802 | AS12: 2.643171806 | AT12: 227 | AU12: 14.0969163 | AV12: 48.01762115 | AW12: 12.33480176 | AX12: 10.57268722 | AY12: 11.45374449 | AZ12: 0 | BA12: 3.524229075
B13: 要介護４ | C13: 183 | D13: =IF($C13=0,0,D28/$C13*100) -> 43.16939891 | E13: =IF($C13=0,0,E28/$C13*100) -> 25.13661202 | F13: 4.371584699 | G13: 13.66120219 | H13: 5.464480874 | I13: 10.92896175 | J13: 38.79781421 | K13: 1.639344262 | L13: 0 | M13: 0 | N13: 183 | O13: =IF($N13=0,0,O28/$N13*100) -> 6.557377049 | P13: 7.103825137 | Q13: 23.49726776 | R13: 41.53005464 | S13: 12.56830601 | T13: 0.5464480874 | U13: 6.557377049 | V13: 0 | W13: 1.639344262 | X13: 183 | Y13: 44.26229508 | Z13: 11.47540984 | AA13: 21.8579235 | AB13: 1.639344262 | AC13: 19.12568306 | AD13: 1.639344262 | AE13: 183 | AF13: 7.650273224 | AG13: 48.08743169 | AH13: 20.21857923 | AI13: 9.289617486 | AJ13: 2.732240437 | AK13: 1.639344262 | AL13: 0 | AM13: 10.38251366 | AN13: 1.841768293 | AO13: 183 | AP13: 13.1147541 | AQ13: 55.19125683 | AR13: 29.50819672 | AS13: 2.18579235 | AT13: 183 | AU13: 16.39344262 | AV13: 40.43715847 | AW13: 18.57923497 | AX13: 9.836065574 | AY13: 9.836065574 | AZ13: 2.18579235 | BA13: 2.732240437
B14: 要介護５ | C14: 86 | D14: =IF($C14=0,0,D29/$C14*100) -> 34.88372093 | E14: =IF($C14=0,0,E29/$C14*100) -> 17.44186047 | F14: 2.325581395 | G14: 15.11627907 | H14: 6.976744186 | I14: 4.651162791 | J14: 51.1627907 | K14: 2.325581395 | L14: 0 | M14: 0 | N14: 86 | O14: =IF($N14=0,0,O29/$N14*100) -> 3.488372093 | P14: 19.76744186 | Q14: 32.55813953 | R14: 24.41860465 | S14: 11.62790698 | T14: 0 | U14: 5.813953488 | V14: 0 | W14: 2.325581395 | X14: 86 | Y14: 44.18604651 | Z14: 11.62790698 | AA14: 20.93023256 | AB14: 0 | AC14: 23.25581395 | AD14: 0 | AE14: 86 | AF14: 8.139534884 | AG14: 52.3255814 | AH14: 16.27906977 | AI14: 9.302325581 | AJ14: 5.813953488 | AK14: 0 | AL14: 1.162790698 | AM14: 6.976744186 | AN14: 2.22025 | AO14: 86 | AP14: 12.79069767 | AQ14: 55.81395349 | AR14: 26.74418605 | AS14: 4.651162791 | AT14: 86 | AU14: 11.62790698 | AV14: 34.88372093 | AW14: 27.90697674 | AX14: 11.62790698 | AY14: 8.139534884 | AZ14: 0 | BA14: 5.813953488
B15: 不明 | C15: 9 | D15: =IF($C15=0,0,D30/$C15*100) -> 22.22222222 | E15: =IF($C15=0,0,E30/$C15*100) -> 11.11111111 | F15: 0 | G15: 11.11111111 | H15: 0 | I15: 0 | J15: 77.77777778 | K15: 0 | L15: 0 | M15: 0 | N15: 9 | O15: =IF($N15=0,0,O30/$N15*100) -> 0 | P15: 0 | Q15: 33.33333333 | R15: 33.33333333 | S15: 11.11111111 | T15: 0 | U15: 22.22222222 | V15: 0 | W15: 0 | X15: 9 | Y15: 22.22222222 | Z15: 0 | AA15: 22.22222222 | AB15: 0 | AC15: 55.55555556 | AD15: 0 | AE15: 9 | AF15: 11.11111111 | AG15: 44.44444444 | AH15: 33.33333333 | AI15: 0 | AJ15: 0 | AK15: 0 | AL15: 0 | AM15: 11.11111111 | AN15: 1.25 | AO15: 9 | AP15: 22.22222222 | AQ15: 66.66666667 | AR15: 11.11111111 | AS15: 0 | AT15: 9 | AU15: 11.11111111 | AV15: 22.22222222 | AW15: 55.55555556 | AX15: 0 | AY15: 11.11111111 | AZ15: 0 | BA15: 0
B16: 無回答 | C16: 5 | D16: =IF($C16=0,0,D31/$C16*100) -> 40 | E16: =IF($C16=0,0,E31/$C16*100) -> 0 | F16: 20 | G16: 20 | H16: 0 | I16: 0 | J16: 20 | K16: 40 | L16: 0 | M16: 0 | N16: 5 | O16: =IF($N16=0,0,O31/$N16*100) -> 0 | P16: 0 | Q16: 40 | R16: 0 | S16: 20 | T16: 0 | U16: 40 | V16: 0 | W16: 0 | X16: 5 | Y16: 40 | Z16: 20 | AA16: 0 | AB16: 0 | AC16: 40 | AD16: 0 | AE16: 5 | AF16: 0 | AG16: 60 | AH16: 0 | AI16: 40 | AJ16: 0 | AK16: 0 | AL16: 0 | AM16: 0 | AN16: 1.8 | AO16: 5 | AP16: 20 | AQ16: 0 | AR16: 80 | AS16: 0 | AT16: 5 | AU16: 0 | AV16: 40 | AW16: 0 | AX16: 20 | AY16: 40 | AZ16: 0 | BA16: 0
A20: 全 体 | C20: 1863 | D20: =E20+F20+G20 -> 1194 | E20: 627 | F20: 233 | G20: 334 | H20: 112 | I20: 100 | J20: 410 | K20: 47 | L20: 0 | M20: 0 | N20: 1863 | O20: 160 | P20: 147 | Q20: 401 | R20: 769 | S20: 235 | T20: 10 | U20: 123 | V20: 1 | W20: 17 | X20: 1863 | Y20: 849 | Z20: 258 | AA20: 418 | AB20: 11 | AC20: 313 | AD20: 14 | AE20: 1863 | AF20: 136 | AG20: 698 | AH20: 447 | AI20: 257 | AJ20: 93 | AK20: 38 | AL20: 21 | AM20: 173 | AN20: 2.675500986 | AO20: 1863 | AP20: 374 | AQ20: 799 | AR20: 643 | AS20: 47 | AT20: 1863 | AU20: 274 | AV20: 793 | AW20: 259 | AX20: 211 | AY20: 237 | AZ20: 20 | BA20: 69
A22: 問７(2) | B22: 自立 | C22: 111 | D22: =E22+F22+G22 -> 88 | E22: 56 | F22: 19 | G22: 13 | H22: 6 | I22: 4 | J22: 11 | K22: 2 | L22: 0 | M22: 0 | N22: 111 | O22: 12 | P22: 5 | Q22: 18 | R22: 47 | S22: 19 | T22: 1 | U22: 7 | V22: 0 | W22: 2 | X22: 111 | Y22: 49 | Z22: 16 | AA22: 23 | AB22: 1 | AC22: 22 | AD22: 0 | AE22: 111 | AF22: 11 | AG22: 47 | AH22: 19 | AI22: 14 | AJ22: 6 | AK22: 3 | AL22: 3 | AM22: 8 | AN22: 2.790291262 | AO22: 111 | AP22: 24 | AQ22: 44 | AR22: 40 | AS22: 3 | AT22: 111 | AU22: 19 | AV22: 48 | AW22: 12 | AX22: 11 | AY22: 15 | AZ22: 1 | BA22: 5
A23: 利用者の要介護度 | B23: 要支援１ | C23: 156 | D23: =E23+F23+G23 -> 111 | E23: 65 | F23: 28 | G23: 18 | H23: 16 | I23: 6 | J23: 20 | K23: 3 | L23: 0 | M23: 0 | N23: 156 | O23: 24 | P23: 12 | Q23: 24 | R23: 66 | S23: 21 | T23: 0 | U23: 7 | V23: 1 | W23: 1 | X23: 156 | Y23: 75 | Z23: 27 | AA23: 31 | AB23: 2 | AC23: 21 | AD23: 0 | AE23: 156 | AF23: 16 | AG23: 50 | AH23: 38 | AI23: 27 | AJ23: 6 | AK23: 4 | AL23: 1 | AM23: 14 | AN23: 2.380704225 | AO23: 156 | AP23: 40 | AQ23: 60 | AR23: 52 | AS23: 4 | AT23: 156 | AU23: 20 | AV23: 80 | AW23: 13 | AX23: 18 | AY23: 16 | AZ23: 1 | BA23: 8
B24: 要支援２ | C24: 165 | D24: 113 | E24: 66 | F24: 25 | G24: 22 | H24: 14 | I24: 10 | J24: 23 | K24: 5 | L24: 0 | M24: 0 | N24: 165 | O24: 23 | P24: 16 | Q24: 23 | R24: 72 | S24: 19 | T24: 1 | U24: 10 | V24: 0 | W24: 1 | X24: 165 | Y24: 78 | Z24: 26 | AA24: 38 | AB24: 1 | AC24: 21 | AD24: 1 | AE24: 165 | AF24: 10 | AG24: 51 | AH24: 47 | AI24: 24 | AJ24: 10 | AK24: 0 | AL24: 5 | AM24: 18 | AN24: 3.999206349 | AO24: 165 | AP24: 36 | AQ24: 56 | AR24: 65 | AS24: 8 | AT24: 165 | AU24: 22 | AV24: 75 | AW24: 18 | AX24: 22 | AY24: 20 | AZ24: 0 | BA24: 8
B25: 要介護１ | C25: 504 | D25: 349 | E25: 191 | F25: 61 | G25: 97 | H25: 29 | I25: 22 | J25: 91 | K25: 13 | L25: 0 | M25: 0 | N25: 504 | O25: 39 | P25: 32 | Q25: 100 | R25: 239 | S25: 60 | T25: 4 | U25: 27 | V25: 0 | W25: 3 | X25: 504 | Y25: 212 | Z25: 83 | AA25: 111 | AB25: 2 | AC25: 88 | AD25: 8 | AE25: 504 | AF25: 33 | AG25: 183 | AH25: 132 | AI25: 65 | AJ25: 31 | AK25: 9 | AL25: 8 | AM25: 43 | AN25: 2.825422993 | AO25: 504 | AP25: 104 | AQ25: 209 | AR25: 182 | AS25: 9 | AT25: 504 | AU25: 73 | AV25: 194 | AW25: 62 | AX25: 74 | AY25: 76 | AZ25: 10 | BA25: 15
B26: 要介護２ | C26: 417 | D26: 276 | E26: 124 | F26: 53 | G26: 99 | H26: 18 | I26: 22 | J26: 88 | K26: 13 | L26: 0 | M26: 0 | N26: 417 | O26: 29 | P26: 27 | Q26: 107 | R26: 168 | S26: 50 | T26: 0 | U26: 32 | V26: 0 | W26: 4 | X26: 417 | Y26: 197 | Z26: 48 | AA26: 109 | AB26: 1 | AC26: 61 | AD26: 1 | AE26: 417 | AF26: 24 | AG26: 143 | AH26: 103 | AI26: 69 | AJ26: 23 | AK26: 12 | AL26: 2 | AM26: 41 | AN26: 2.705939716 | AO26: 417 | AP26: 90 | AQ26: 178 | AR26: 140 | AS26: 9 | AT26: 417 | AU26: 67 | AV26: 179 | AW26: 63 | AX26: 33 | AY26: 56 | AZ26: 4 | BA26: 15
B27: 要介護３ | C27: 227 | D27: 144 | E27: 63 | F27: 36 | G27: 45 | H27: 13 | I27: 12 | J27: 54 | K27: 4 | L27: 0 | M27: 0 | N27: 227 | O27: 18 | P27: 25 | Q27: 53 | R27: 77 | S27: 31 | T27: 3 | U27: 19 | V27: 0 | W27: 1 | X27: 227 | Y27: 115 | Z27: 26 | AA27: 46 | AB27: 1 | AC27: 38 | AD27: 1 | AE27: 227 | AF27: 20 | AG27: 84 | AH27: 54 | AI27: 31 | AJ27: 7 | AK27: 7 | AL27: 1 | AM27: 23 | AN27: 2.400147059 | AO27: 227 | AP27: 42 | AQ27: 97 | AR27: 82 | AS27: 6 | AT27: 227 | AU27: 32 | AV27: 109 | AW27: 28 | AX27: 24 | AY27: 26 | AZ27: 0 | BA27: 8
B28: 要介護４ | C28: 183 | D28: 79 | E28: 46 | F28: 8 | G28: 25 | H28: 10 | I28: 20 | J28: 71 | K28: 3 | L28: 0 | M28: 0 | N28: 183 | O28: 12 | P28: 13 | Q28: 43 | R28: 76 | S28: 23 | T28: 1 | U28: 12 | V28: 0 | W28: 3 | X28: 183 | Y28: 81 | Z28: 21 | AA28: 40 | AB28: 3 | AC28: 35 | AD28: 3 | AE28: 183 | AF28: 14 | AG28: 88 | AH28: 37 | AI28: 17 | AJ28: 5 | AK28: 3 | AL28: 0 | AM28: 19 | AN28: 1.841768293 | AO28: 183 | AP28: 24 | AQ28: 101 | AR28: 54 | AS28: 4 | AT28: 183 | AU28: 30 | AV28: 74 | AW28: 34 | AX28: 18 | AY28: 18 | AZ28: 4 | BA28: 5
B29: 要介護５ | C29: 86 | D29: 30 | E29: 15 | F29: 2 | G29: 13 | H29: 6 | I29: 4 | J29: 44 | K29: 2 | L29: 0 | M29: 0 | N29: 86 | O29: 3 | P29: 17 | Q29: 28 | R29: 21 | S29: 10 | T29: 0 | U29: 5 | V29: 0 | W29: 2 | X29: 86 | Y29: 38 | Z29: 10 | AA29: 18 | AB29: 0 | AC29: 20 | AD29: 0 | AE29: 86 | AF29: 7 | AG29: 45 | AH29: 14 | AI29: 8 | AJ29: 5 | AK29: 0 | AL29: 1 | AM29: 6 | AN29: 2.22025 | AO29: 86 | AP29: 11 | AQ29: 48 | AR29: 23 | AS29: 4 | AT29: 86 | AU29: 10 | AV29: 30 | AW29: 24 | AX29: 10 | AY29: 7 | AZ29: 0 | BA29: 5
B30: 不明 | C30: 9 | D30: 2 | E30: 1 | F30: 0 | G30: 1 | H30: 0 | I30: 0 | J30: 7 | K30: 0 | L30: 0 | M30: 0 | N30: 9 | O30: 0 | P30: 0 | Q30: 3 | R30: 3 | S30: 1 | T30: 0 | U30: 2 | V30: 0 | W30: 0 | X30: 9 | Y30: 2 | Z30: 0 | AA30: 2 | AB30: 0 | AC30: 5 | AD30: 0 | AE30: 9 | AF30: 1 | AG30: 4 | AH30: 3 | AI30: 0 | AJ30: 0 | AK30: 0 | AL30: 0 | AM30: 1 | AN30: 1.25 | AO30: 9 | AP30: 2 | AQ30: 6 | AR30: 1 | AS30: 0 | AT30: 9 | AU30: 1 | AV30: 2 | AW30: 5 | AX30: 0 | AY30: 1 | AZ30: 0 | BA30: 0
B31: 無回答 | C31: 5 | D31: 2 | E31: 0 | F31: 1 | G31: 1 | H31: 0 | I31: 0 | J31: 1 | K31: 2 | L31: 0 | M31: 0 | N31: 5 | O31: 0 | P31: 0 | Q31: 2 | R31: 0 | S31: 1 | T31: 0 | U31: 2 | V31: 0 | W31: 0 | X31: 5 | Y31: 2 | Z31: 1 | AA31: 0 | AB31: 0 | AC31: 2 | AD31: 0 | AE31: 5 | AF31: 0 | AG31: 3 | AH31: 0 | AI31: 2 | AJ31: 0 | AK31: 0 | AL31: 0 | AM31: 0 | AN31: 1.8 | AO31: 5 | AP31: 1 | AQ31: 0 | AR31: 4 | AS31: 0 | AT31: 5 | AU31: 0 | AV31: 2 | AW31: 0 | AX31: 1 | AY31: 2 | AZ31: 0 | BA31: 0

Sheet 2⑧～⑩
C1: 問７(6) 施設の紹介方法 | J1: 問７(9) 入居先の施設種別 | O1: 問７(12) 入居先の紹介元
C3: 全体 | D3: 貴事業所（ケアマネジャー）が直接、施設を紹介した | E3: 紹介事業者を紹介した | F3: 何も紹介していない（利用者が自力で探した等） | G3: 不明 | H3: その他 | I3: 無回答 | J3: 全体 | K3: 介護付有料老人ホーム（特定施設） | L3: 住宅型有料老人ホーム | M3: サービス付き高齢者向け住宅 | N3: 無回答 | O3: 全体 | P3: 利用者が自力で探した | Q3: 居宅介護支援事業所（貴事業所）からの紹介 | R3: 病院からの紹介 | S3: 紹介事業者からの紹介 | T3: その他 | U3: 不明 | V3: 無回答
A4: 全 体 | C4: =C19 -> 1863 | D4: 849 | E4: 258 | F4: 418 | G4: 11 | H4: 313 | I4: 14 | J4: 1863 | K4: 374 | L4: 799 | M4: 643 | N4: 47 | O4: 1863 | P4: 274 | Q4: 793 | R4: 259 | S4: 211 | T4: 237 | U4: 20 | V4: 69
C5: =IF(SUM(D5:I5)>100,"－",SUM(D5:I5)) -> 100 | D5: =D4/$C4*100 -> 45.57165862 | E5: 13.84863124 | F5: 22.43692968 | G5: 0.590445518 | H5: 16.80085883 | I5: 0.7514761138 | J5: =IF(SUM(K5:N5)>100,"－",SUM(K5:N5)) -> 100 | K5: =K4/$J4*100 -> 20.07514761 | L5: 42.88781535 | M5: 34.51422437 | N5: 2.522812668 | O5: =IF(SUM(P5:V5)>100,"－",SUM(P5:V5)) -> 100 | P5: =P4/$O4*100 -> 14.70746108 | Q5: 42.56575416 | R5: 13.90230811 | S5: 11.32581857 | T5: 12.72141707 | U5: 1.073537305 | V5: 3.703703704
A6: 問７(4) | B6: 自宅 | C6: =C21 -> 1194 | D6: =IF($C6=0,0,D21/$C6*100) -> 49.74874372 | E6: 17.16917923 | F6: 20.68676717 | G6: 0.418760469 | H6: 10.97152429 | I6: 1.005025126 | J6: =J21 -> 1194 | K6: =IF($J6=0,0,K21/$J6*100) -> 25.46063652 | L6: 37.35343384 | M6: 34.75711893 | N6: 2.42881072 | O6: =O21 -> 1194 | P6: =IF($O6=0,0,P21/$O6*100) -> 16.1641541 | Q6: 47.73869347 | R6: 7.537688442 | S6: 13.90284757 | T6: 10.30150754 | U6: 0.6700167504 | V6: 3.685092127
A7: 利用者がいた | B7: （再掲）自宅（独居） | C7: 627 | D7: =IF($C7=0,0,D22/$C7*100) -> 52.95055821 | E7: 14.67304625 | F7: 19.29824561 | G7: 0.4784688995 | H7: 11.48325359 | I7: 1.116427432 | J7: 627 | K7: =IF($J7=0,0,K22/$J7*100) -> 24.40191388 | L7: 36.523126 | M7: 35.88516746 | N7: 3.189792663 | O7: 627 | P7: =IF($O7=0,0,P22/$O7*100) -> 15.47049442 | Q7: 49.76076555 | R7: 6.060606061 | S7: 13.55661882 | T7: 11.00478469 | U7: 0.7974481659 | V7: 3.349282297
A8: 場所 | B8: （再掲）自宅（夫婦のみ） | C8: 233 | D8: =IF($C8=0,0,D23/$C8*100) -> 42.91845494 | E8: 23.60515021 | F8: 21.45922747 | G8: 0.4291845494 | H8: 10.72961373 | I8: 0.8583690987 | J8: 233 | K8: =IF($J8=0,0,K23/$J8*100) -> 30.90128755 | L8: 32.1888412 | M8: 36.90987124 | N8: 0 | O8: 233 | P8: =IF($O8=0,0,P23/$O8*100) -> 18.88412017 | Q8: 40.77253219 | R8: 9.442060086 | S8: 17.59656652 | T8: 11.15879828 | U8: 0 | V8: 2.145922747
B9: （再掲）自宅（その他家族と同居） | C9: 334 | D9: =IF($C9=0,0,D24/$C9*100) -> 48.50299401 | E9: 17.36526946 | F9: 22.75449102 | G9: 0.2994011976 | H9: 10.17964072 | I9: 0.8982035928 | J9: 334 | K9: =IF($J9=0,0,K24/$J9*100) -> 23.65269461 | L9: 42.51497006 | M9: 31.13772455 | N9: 2.694610778 | O9: 334 | P9: =IF($O9=0,0,P24/$O9*100) -> 15.56886228 | Q9: 48.80239521 | R9: 8.982035928 | S9: 11.9760479 | T9: 8.383233533 | U9: 0.8982035928 | V9: 5.389221557
B10: 有料老人ホーム・サ高住・認知症高齢者グループホーム | C10: 112 | D10: =IF($C10=0,0,D25/$C10*100) -> 33.92857143 | E10: 12.5 | F10: 33.03571429 | G10: 1.785714286 | H10: 18.75 | I10: 0 | J10: 112 | K10: =IF($J10=0,0,K25/$J10*100) -> 16.96428571 | L10: 46.42857143 | M10: 33.92857143 | N10: 2.678571429 | O10: 112 | P10: =IF($O10=0,0,P25/$O10*100) -> 22.32142857 | Q10: 30.35714286 | R10: 3.571428571 | S10: 11.60714286 | T10: 25 | U10: 4.464285714 | V10: 2.678571429
B11: 介護保険施設等 | C11: 100 | D11: =IF($C11=0,0,D26/$C11*100) -> 40 | E11: 4 | F11: 33 | G11: 0 | H11: 23 | I11: 0 | J11: 100 | K11: =IF($J11=0,0,K26/$J11*100) -> 5 | L11: 52 | M11: 41 | N11: 2 | O11: 100 | P11: =IF($O11=0,0,P26/$O11*100) -> 18 | Q11: 39 | R11: 5 | S11: 5 | T11: 30 | U11: 1 | V11: 2
B12: 医療機関 | C12: 410 | D12: =IF($C12=0,0,D27/$C12*100) -> 38.04878049 | E12: 7.804878049 | F12: 22.19512195 | G12: 0.7317073171 | H12: 30.73170732 | I12: 0.487804878 | J12: 410 | K12: =IF($J12=0,0,K27/$J12*100) -> 8.780487805 | L12: 56.34146341 | M12: 31.95121951 | N12: 2.926829268 | O12: 410 | P12: =IF($O12=0,0,P27/$O12*100) -> 7.56097561 | Q12: 31.46341463 | R12: 38.53658537 | S12: 6.341463415 | T12: 10.24390244 | U12: 0.9756097561 | V12: 4.87804878
B13: その他 | C13: 47 | D13: =IF($C13=0,0,D28/$C13*100) -> 44.68085106 | E13: 6.382978723 | F13: 21.27659574 | G13: 2.127659574 | H13: 25.53191489 | I13: 0 | J13: 47 | K13: =IF($J13=0,0,K28/$J13*100) -> 21.27659574 | L13: 38.29787234 | M13: 38.29787234 | N13: 2.127659574 | O13: 47 | P13: =IF($O13=0,0,P28/$O13*100) -> 14.89361702 | Q13: 44.68085106 | R13: 4.255319149 | S13: 2.127659574 | T13: 29.78723404 | U13: 4.255319149 | V13: 0
B14: 不明 | C14: 0 | D14: =IF($C14=0,0,D29/$C14*100) -> 0 | E14: 0 | F14: 0 | G14: 0 | H14: 0 | I14: 0 | J14: 0 | K14: =IF($J14=0,0,K29/$J14*100) -> 0 | L14: 0 | M14: 0 | N14: 0 | O14: 0 | P14: =IF($O14=0,0,P29/$O14*100) -> 0 | Q14: 0 | R14: 0 | S14: 0 | T14: 0 | U14: 0 | V14: 0
B15: 無回答 | C15: 0 | D15: =IF($C15=0,0,D30/$C15*100) -> 0 | E15: 0 | F15: 0 | G15: 0 | H15: 0 | I15: 0 | J15: 0 | K15: =IF($J15=0,0,K30/$J15*100) -> 0 | L15: 0 | M15: 0 | N15: 0 | O15: 0 | P15: =IF($O15=0,0,P30/$O15*100) -> 0 | Q15: 0 | R15: 0 | S15: 0 | T15: 0 | U15: 0 | V15: 0
A19: 全 体 | C19: 1863 | D19: 849 | E19: 258 | F19: 418 | G19: 11 | H19: 313 | I19: 14 | J19: 1863 | K19: 374 | L19: 799 | M19: 643 | N19: 47 | O19: 1863 | P19: 274 | Q19: 793 | R19: 259 | S19: 211 | T19: 237 | U19: 20 | V19: 69
A21: 問７(4) | B21: 自宅 | C21: =C22+C23+C24 -> 1194 | D21: =D22+D23+D24 -> 594 | E21: 205 | F21: 247 | G21: 5 | H21: 131 | I21: 12 | J21: 1194 | K21: 304 | L21: 446 | M21: 415 | N21: 29 | O21: 1194 | P21: 193 | Q21: 570 | R21: 90 | S21: 166 | T21: 123 | U21: 8 | V21: 44
A22: 利用者がいた | B22: （再掲）自宅（独居） | C22: 627 | D22: 332 | E22: 92 | F22: 121 | G22: 3 | H22: 72 | I22: 7 | J22: 627 | K22: 153 | L22: 229 | M22: 225 | N22: 20 | O22: 627 | P22: 97 | Q22: 312 | R22: 38 | S22: 85 | T22: 69 | U22: 5 | V22: 21
A23: 場所 | B23: （再掲）自宅（夫婦のみ） | C23: 233 | D23: 100 | E23: 55 | F23: 50 | G23: 1 | H23: 25 | I23: 2 | J23: 233 | K23: 72 | L23: 75 | M23: 86 | N23: 0 | O23: 233 | P23: 44 | Q23: 95 | R23: 22 | S23: 41 | T23: 26 | U23: 0 | V23: 5
B24: （再掲）自宅（その他家族と同居） | C24: 334 | D24: 162 | E24: 58 | F24: 76 | G24: 1 | H24: 34 | I24: 3 | J24: 334 | K24: 79 | L24: 142 | M24: 104 | N24: 9 | O24: 334 | P24: 52 | Q24: 163 | R24: 30 | S24: 40 | T24: 28 | U24: 3 | V24: 18
B25: 有料老人ホーム・サ高住・認知症高齢者グループホーム | C25: 112 | D25: 38 | E25: 14 | F25: 37 | G25: 2 | H25: 21 | I25: 0 | J25: 112 | K25: 19 | L25: 52 | M25: 38 | N25: 3 | O25: 112 | P25: 25 | Q25: 34 | R25: 4 | S25: 13 | T25: 28 | U25: 5 | V25: 3
B26: 介護保険施設等 | C26: 100 | D26: 40 | E26: 4 | F26: 33 | G26: 0 | H26: 23 | I26: 0 | J26: 100 | K26: 5 | L26: 52 | M26: 41 | N26: 2 | O26: 100 | P26: 18 | Q26: 39 | R26: 5 | S26: 5 | T26: 30 | U26: 1 | V26: 2
B27: 医療機関 | C27: 410 | D27: 156 | E27: 32 | F27: 91 | G27: 3 | H27: 126 | I27: 2 | J27: 410 | K27: 36 | L27: 231 | M27: 131 | N27: 12 | O27: 410 | P27: 31 | Q27: 129 | R27: 158 | S27: 26 | T27: 42 | U27: 4 | V27: 20
B28: その他 | C28: 47 | D28: 21 | E28: 3 | F28: 10 | G28: 1 | H28: 12 | I28: 0 | J28: 47 | K28: 10 | L28: 18 | M28: 18 | N28: 1 | O28: 47 | P28: 7 | Q28: 21 | R28: 2 | S28: 1 | T28: 14 | U28: 2 | V28: 0
B29: 不明 | C29: 0 | D29: 0 | E29: 0 | F29: 0 | G29: 0 | H29: 0 | I29: 0 | J29: 0 | K29: 0 | L29: 0 | M29: 0 | N29: 0 | O29: 0 | P29: 0 | Q29: 0 | R29: 0 | S29: 0 | T29: 0 | U29: 0 | V29: 0
B30: 無回答 | C30: 0 | D30: 0 | E30: 0 | F30: 0 | G30: 0 | H30: 0 | I30: 0 | J30: 0 | K30: 0 | L30: 0 | M30: 0 | N30: 0 | O30: 0 | P30: 0 | Q30: 0 | R30: 0 | S30: 0 | T30: 0 | U30: 0 | V30: 0

Sheet 2⑪～⑭
C1: 問７(8) 入居先の立地エリア | H1: 問７(9) 入居先の施設種別 | M1: 問７(10) 入居先の入居一時金の金額 | V1: 問７(11) 入居先の月額費用
C3: 全体 | D3: 同一の市区町村内 | E3: 同一の都道府県内（市区町村は異なる） | F3: 別の都道府県 | G3: 無回答 | H3: 全体 | I3: 介護付有料老人ホーム（特定施設） | J3: 住宅型有料老人ホーム | K3: サービス付き高齢者向け住宅 | L3: 無回答 | M3: 全体 | N3: ０円 | O3: 20万円 未満 | P3: 20～ 50万円 未満 | Q3: 50～ 100万円 未満 | R3: 100万円 以上 | S3: 不明 | T3: 無回答 | U3: 平均 (万円) | V3: 全体 | W3: 10万円未満 | X3: 10～15万円未満 | Y3: 15～20万円未満 | Z3: 20～30万円未満 | AA3: 30万円以上 | AB3: 不明 | AC3: エラー・無回答 | AD3: 平均 (万円)
A4: 全 体 | C4: =C18 -> 1863 | D4: 1291 | E4: 411 | F4: 126 | G4: 35 | H4: 1863 | I4: 374 | J4: 799 | K4: 643 | L4: 47 | M4: 1863 | N4: 1013 | O4: 216 | P4: 97 | Q4: 18 | R4: 39 | S4: 330 | T4: 150 | U4: 20.88799711 | V4: 1863 | W4: 147 | X4: 586 | Y4: 493 | Z4: 255 | AA4: 43 | AB4: 137 | AC4: 202 | AD4: =AD18 -> 15.21582021
C5: =IF(SUM(D5:G5)>100,"－",SUM(D5:G5)) -> 100 | D5: =D4/$C4*100 -> 69.29683306 | E5: 22.06119163 | F5: 6.763285024 | G5: 1.878690284 | H5: =IF(SUM(I5:L5)>100,"－",SUM(I5:L5)) -> 100 | I5: =I4/$H4*100 -> 20.07514761 | J5: 42.88781535 | K5: 34.51422437 | L5: 2.522812668 | M5: =IF(SUM(N5:T5)>100,"－",SUM(N5:T5)) -> 100 | N5: =N4/$M4*100 -> 54.37466452 | O5: 11.5942029 | P5: 5.206655931 | Q5: 0.9661835749 | R5: 2.093397746 | S5: 17.71336554 | T5: 8.051529791 | V5: =IF(SUM(W5:AC5)>100,"－",SUM(W5:AC5)) -> 100 | W5: =W4/$V4*100 -> 7.890499195 | X5: 31.45464305 | Y5: 26.46269458 | Z5: 13.68760064 | AA5: 2.308105207 | AB5: 7.353730542 | AC5: 10.84272678
A6: 問７(5) | B6: 本人 | C6: =C20 -> 160 | D6: =IF($C6=0,0,D20/$C6*100) -> 74.375 | E6: 18.75 | F6: 5 | G6: 1.875 | H6: =H20 -> 160 | I6: =IF($H6=0,0,I20/$H6*100) -> 18.125 | J6: 40.625 | K6: 36.875 | L6: 4.375 | M6: =M20 -> 160 | N6: =IF($M6=0,0,N20/$M6*100) -> 48.125 | O6: 13.75 | P6: 5.625 | Q6: 0.625 | R6: 2.5 | S6: 18.75 | T6: 10.625 | U6: =U20 -> 41.9619469 | V6: =V20 -> 160 | W6: =IF($V6=0,0,W20/$V6*100) -> 3.75 | X6: 35.625 | Y6: 17.5 | Z6: 16.25 | AA6: 2.5 | AB6: 10 | AC6: 14.375 | AD6: =AD20 -> 15.24181818
A7: 主たる相談者 | B7: 配偶者 | C7: 147 | D7: 77.55102041 | E7: 16.32653061 | F7: 5.442176871 | G7: 0.6802721088 | H7: 147 | I7: 31.97278912 | J7: 34.01360544 | K7: 31.29251701 | L7: 2.721088435 | M7: 147 | N7: 57.82312925 | O7: 9.523809524 | P7: 5.442176871 | Q7: 0 | R7: 4.081632653 | S7: 16.32653061 | T7: 6.802721088 | U7: =U21 -> 29.19823009 | V7: 147 | W7: 2.721088435 | X7: 26.53061224 | Y7: 28.57142857 | Z7: 19.72789116 | AA7: 4.761904762 | AB7: 10.20408163 | AC7: 7.482993197 | AD7: 17.01694215
A8: の属性 | B8: 同居の子ども | C8: 401 | D8: 69.07730673 | E8: 23.19201995 | F8: 5.735660848 | G8: 1.995012469 | H8: 401 | I8: 19.95012469 | J8: 46.13466334 | K8: 31.42144638 | L8: 2.493765586 | M8: 401 | N8: 55.36159601 | O8: 12.46882793 | P8: 4.987531172 | Q8: 0.4987531172 | R8: 1.995012469 | S8: 16.70822943 | T8: 7.980049875 | U8: =U22 -> 17.70596026 | V8: 401 | W8: 7.481296758 | X8: 31.17206983 | Y8: 29.17705736 | Z8: 14.4638404 | AA8: 1.246882793 | AB8: 6.982543641 | AC8: 9.476309227 | AD8: 14.99298507
B9: 別居の子ども | C9: 769 | D9: 66.44993498 | E9: 23.92717815 | F9: 7.542262679 | G9: 2.080624187 | H9: 769 | I9: 20.28608583 | J9: 39.79193758 | K9: 37.58127438 | L9: 2.340702211 | M9: 769 | N9: 52.79583875 | O9: 11.44343303 | P9: 4.941482445 | Q9: 1.300390117 | R9: 1.430429129 | S9: 19.37581274 | T9: 8.712613784 | U9: =U23 -> 15.23291139 | V9: 769 | W9: 7.542262679 | X9: 29.90897269 | Y9: 27.69830949 | Z9: 14.04421326 | AA9: 2.600780234 | AB9: 6.501950585 | AC9: 11.70351105 | AD9: 15.47980922
B10: その他親族 | C10: 235 | D10: 73.61702128 | E10: 18.29787234 | F10: 6.382978723 | G10: 1.70212766 | H10: 235 | I10: 21.27659574 | J10: 47.23404255 | K10: 29.78723404 | L10: 1.70212766 | M10: 235 | N10: 55.74468085 | O10: 11.06382979 | P10: 4.680851064 | Q10: 1.276595745 | R10: 3.829787234 | S10: 18.29787234 | T10: 5.106382979 | U10: =U24 -> 32.95 | V10: 235 | W10: 8.936170213 | X10: 34.04255319 | Y10: 28.08510638 | Z10: 9.361702128 | AA10: 2.978723404 | AB10: 8.936170213 | AC10: 7.659574468 | AD10: 15.05459184
B11: 友人 | C11: 10 | D11: 60 | E11: 30 | F11: 10 | G11: 0 | H11: 10 | I11: 20 | J11: 40 | K11: 40 | L11: 0 | M11: 10 | N11: 60 | O11: 10 | P11: 10 | Q11: 0 | R11: 10 | S11: 0 | T11: 10 | U11: =U25 -> 67.5 | V11: 10 | W11: 10 | X11: 30 | Y11: 30 | Z11: 20 | AA11: 0 | AB11: 0 | AC11: 10 | AD11: 15.53333333
B12: その他 | C12: 123 | D12: 61.78861789 | E12: 26.82926829 | F12: 10.56910569 | G12: 0.8130081301 | H12: 123 | I12: 6.504065041 | J12: 56.09756098 | K12: 35.77235772 | L12: 1.62601626 | M12: 123 | N12: 61.78861789 | O12: 11.38211382 | P12: 7.317073171 | Q12: 1.62601626 | R12: 0 | S12: 13.00813008 | T12: 4.87804878 | U12: =U26 -> 4.925742574 | V12: 123 | W12: 21.13821138 | X12: 38.21138211 | Y12: 17.07317073 | Z12: 7.317073171 | AA12: 0 | AB12: 4.87804878 | AC12: 11.38211382 | AD12: 12.62087379
B13: 不明 | C13: 1 | D13: 100 | E13: 0 | F13: 0 | G13: 0 | H13: 1 | I13: 0 | J13: 100 | K13: 0 | L13: 0 | M13: 1 | N13: 0 | O13: 0 | P13: 0 | Q13: 0 | R13: 0 | S13: 0 | T13: 100 | U13: =U27 -> － | V13: 1 | W13: 0 | X13: 0 | Y13: 0 | Z13: 0 | AA13: 0 | AB13: 0 | AC13: 100 | AD13: －
B14: 無回答 | C14: 17 | D14: 82.35294118 | E14: 5.882352941 | F14: 0 | G14: 11.76470588 | H14: 17 | I14: 11.76470588 | J14: 47.05882353 | K14: 29.41176471 | L14: 11.76470588 | M14: 17 | N14: 58.82352941 | O14: 5.882352941 | P14: 5.882352941 | Q14: 0 | R14: 0 | S14: 5.882352941 | T14: 23.52941176 | U14: =U28 -> 3.333333333 | V14: 17 | W14: 5.882352941 | X14: 29.41176471 | Y14: 17.64705882 | Z14: 5.882352941 | AA14: 0 | AB14: 5.882352941 | AC14: 35.29411765 | AD14: 13.57
A18: 全 体 | C18: 1863 | D18: 1291 | E18: 411 | F18: 126 | G18: 35 | H18: 1863 | I18: 374 | J18: 799 | K18: 643 | L18: 47 | M18: 1863 | N18: 1013 | O18: 216 | P18: 97 | Q18: 18 | R18: 39 | S18: 330 | T18: 150 | U18: 20.88799711 | V18: 1863 | W18: 147 | X18: 586 | Y18: 493 | Z18: 255 | AA18: 43 | AB18: 137 | AC18: 202 | AD18: 15.21582021
A20: 問７(5) | B20: 本人 | C20: 160 | D20: 119 | E20: 30 | F20: 8 | G20: 3 | H20: 160 | I20: 29 | J20: 65 | K20: 59 | L20: 7 | M20: 160 | N20: 77 | O20: 22 | P20: 9 | Q20: 1 | R20: 4 | S20: 30 | T20: 17 | U20: 41.9619469 | V20: 160 | W20: 6 | X20: 57 | Y20: 28 | Z20: 26 | AA20: 4 | AB20: 16 | AC20: 23 | AD20: 15.24181818
A21: 主たる相談者 | B21: 配偶者 | C21: 147 | D21: 114 | E21: 24 | F21: 8 | G21: 1 | H21: 147 | I21: 47 | J21: 50 | K21: 46 | L21: 4 | M21: 147 | N21: 85 | O21: 14 | P21: 8 | Q21: 0 | R21: 6 | S21: 24 | T21: 10 | U21: 29.19823009 | V21: 147 | W21: 4 | X21: 39 | Y21: 42 | Z21: 29 | AA21: 7 | AB21: 15 | AC21: 11 | AD21: 17.01694215
A22: の属性 | B22: 同居の子ども | C22: 401 | D22: 277 | E22: 93 | F22: 23 | G22: 8 | H22: 401 | I22: 80 | J22: 185 | K22: 126 | L22: 10 | M22: 401 | N22: 222 | O22: 50 | P22: 20 | Q22: 2 | R22: 8 | S22: 67 | T22: 32 | U22: 17.70596026 | V22: 401 | W22: 30 | X22: 125 | Y22: 117 | Z22: 58 | AA22: 5 | AB22: 28 | AC22: 38 | AD22: 14.99298507
B23: 別居の子ども | C23: 769 | D23: 511 | E23: 184 | F23: 58 | G23: 16 | H23: 769 | I23: 156 | J23: 306 | K23: 289 | L23: 18 | M23: 769 | N23: 406 | O23: 88 | P23: 38 | Q23: 10 | R23: 11 | S23: 149 | T23: 67 | U23: 15.23291139 | V23: 769 | W23: 58 | X23: 230 | Y23: 213 | Z23: 108 | AA23: 20 | AB23: 50 | AC23: 90 | AD23: 15.47980922
B24: その他親族 | C24: 235 | D24: 173 | E24: 43 | F24: 15 | G24: 4 | H24: 235 | I24: 50 | J24: 111 | K24: 70 | L24: 4 | M24: 235 | N24: 131 | O24: 26 | P24: 11 | Q24: 3 | R24: 9 | S24: 43 | T24: 12 | U24: 32.95 | V24: 235 | W24: 21 | X24: 80 | Y24: 66 | Z24: 22 | AA24: 7 | AB24: 21 | AC24: 18 | AD24: 15.05459184
B25: 友人 | C25: 10 | D25: 6 | E25: 3 | F25: 1 | G25: 0 | H25: 10 | I25: 2 | J25: 4 | K25: 4 | L25: 0 | M25: 10 | N25: 6 | O25: 1 | P25: 1 | Q25: 0 | R25: 1 | S25: 0 | T25: 1 | U25: 67.5 | V25: 10 | W25: 1 | X25: 3 | Y25: 3 | Z25: 2 | AA25: 0 | AB25: 0 | AC25: 1 | AD25: 15.53333333
B26: その他 | C26: 123 | D26: 76 | E26: 33 | F26: 13 | G26: 1 | H26: 123 | I26: 8 | J26: 69 | K26: 44 | L26: 2 | M26: 123 | N26: 76 | O26: 14 | P26: 9 | Q26: 2 | R26: 0 | S26: 16 | T26: 6 | U26: 4.925742574 | V26: 123 | W26: 26 | X26: 47 | Y26: 21 | Z26: 9 | AA26: 0 | AB26: 6 | AC26: 14 | AD26: 12.62087379
B27: 不明 | C27: 1 | D27: 1 | E27: 0 | F27: 0 | G27: 0 | H27: 1 | I27: 0 | J27: 1 | K27: 0 | L27: 0 | M27: 1 | N27: 0 | O27: 0 | P27: 0 | Q27: 0 | R27: 0 | S27: 0 | T27: 1 | U27: － | V27: 1 | W27: 0 | X27: 0 | Y27: 0 | Z27: 0 | AA27: 0 | AB27: 0 | AC27: 1 | AD27: －
B28: 無回答 | C28: 17 | D28: 14 | E28: 1 | F28: 0 | G28: 2 | H28: 17 | I28: 2 | J28: 8 | K28: 5 | L28: 2 | M28: 17 | N28: 10 | O28: 1 | P28: 1 | Q28: 0 | R28: 0 | S28: 1 | T28: 4 | U28: 3.333333333 | V28: 17 | W28: 1 | X28: 5 | Y28: 3 | Z28: 1 | AA28: 0 | AB28: 1 | AC28: 6 | AD28: 13.57

Sheet 2⑮～⑰
C1: 問７(7) 初回の相談から成約までの期間 | M1: 問７(9) 入居先の施設種別 | R1: 問７(12) 入居先の紹介元
C3: 全体 | D3: １か月未満 | E3: １か月～２か月未満 | F3: ２か月～３か月未満 | G3: ３か月～半年未満 | H3: 半年～１年未満 | I3: １年～２年未満 | J3: ２年以上 | K3: 無回答 | L3: 平均 (か月) | M3: 全体 | N3: 介護付有料老人ホーム（特定施設） | O3: 住宅型有料老人ホーム | P3: サービス付き高齢者向け住宅 | Q3: 無回答 | R3: 全体 | S3: 利用者が自力で探した | T3: 居宅介護支援事業所（貴事業所）からの紹介 | U3: 病院からの紹介 | V3: 紹介事業者からの紹介 | W3: その他 | X3: 不明 | Y3: 無回答
A4: 全 体 | C4: =C15 -> 1863 | D4: 136 | E4: 698 | F4: 447 | G4: 257 | H4: 93 | I4: 38 | J4: 21 | K4: 173 | L4: 2.675500986 | M4: 1863 | N4: 374 | O4: 799 | P4: 643 | Q4: 47 | R4: 1863 | S4: 274 | T4: 793 | U4: 259 | V4: 211 | W4: 237 | X4: 20 | Y4: 69
C5: =IF(SUM(D5:K5)>100,"－",SUM(D5:K5)) -> 100 | D5: =D4/$C4*100 -> 7.300053677 | E5: =E4/$C4*100 -> 37.46645196 | F5: 23.99355878 | G5: 13.79495437 | H5: 4.99194847 | I5: 2.03972088 | J5: 1.127214171 | K5: 9.286097692 | M5: =IF(SUM(N5:Q5)>100,"－",SUM(N5:Q5)) -> 100 | N5: =N4/$M4*100 -> 20.07514761 | O5: 42.88781535 | P5: 34.51422437 | Q5: 2.522812668 | R5: =IF(SUM(S5:Y5)>100,"－",SUM(S5:Y5)) -> 100 | S5: =S4/$R4*100 -> 14.70746108 | T5: 42.56575416 | U5: 13.90230811 | V5: 11.32581857 | W5: 12.72141707 | X5: 1.073537305 | Y5: 3.703703704
A6: 問７(6) | B6: 貴事業所（ｹｱﾏﾈｼﾞｬｰ）が直接、施設を紹介した | C6: =C17 -> 849 | D6: =IF($C6=0,0,D17/$C6*100) -> 6.124852768 | E6: 34.7467609 | F6: 25.32391048 | G6: 16.13663133 | H6: 4.829210836 | I6: 2.591283863 | J6: 1.884570082 | K6: 8.362779741 | L6: =L17 -> 3.042699229 | M6: =M17 -> 849 | N6: =IF($M6=0,0,N17/$M6*100) -> 17.07891637 | O6: 45.93639576 | P6: 34.393404 | Q6: 2.591283863 | R6: =R17 -> 849 | S6: =IF($R6=0,0,S17/$R6*100) -> 2.944640754 | T6: 86.3368669 | U6: 4.004711425 | V6: 0.3533568905 | W6: 2.709069494 | X6: 0 | Y6: 3.651354535
A7: 施設の紹介 | B7: 紹介事業者を紹介した | C7: 258 | D7: 7.364341085 | E7: 31.00775194 | F7: 31.39534884 | G7: 15.50387597 | H7: 8.527131783 | I7: 1.162790698 | J7: 0.7751937984 | K7: 4.263565891 | L7: 2.570107962 | M7: 258 | N7: 41.08527132 | O7: 29.06976744 | P7: 27.90697674 | Q7: 1.937984496 | R7: 258 | S7: 4.651162791 | T7: 14.34108527 | U7: 4.263565891 | V7: 70.54263566 | W7: 1.550387597 | X7: 0.3875968992 | Y7: 4.263565891
A8: 方法 | B8: 何も紹介していない（利用者が自力で探した等） | C8: 418 | D8: 6.937799043 | E8: 41.62679426 | F8: 22.00956938 | G8: 9.090909091 | H8: 5.023923445 | I8: 1.913875598 | J8: 0.4784688995 | K8: 12.91866029 | L8: 2.446785714 | M8: 418 | N8: 19.61722488 | O8: 38.51674641 | P8: 38.75598086 | Q8: 3.110047847 | R8: 418 | S8: 51.4354067 | T8: 3.588516746 | U8: 13.87559809 | V8: 4.545454545 | W8: 21.77033493 | X8: 1.435406699 | Y8: 3.349282297
B9: 不明 | C9: 11 | D9: 9.090909091 | E9: 36.36363636 | F9: 9.090909091 | G9: 18.18181818 | H9: 0 | I9: 0 | J9: 0 | K9: 27.27272727 | L9: 1.65625 | M9: 11 | N9: 27.27272727 | O9: 18.18181818 | P9: 27.27272727 | Q9: 27.27272727 | R9: 11 | S9: 0 | T9: 0 | U9: 9.090909091 | V9: 0 | W9: 9.090909091 | X9: 45.45454545 | Y9: 36.36363636
B10: その他 | C10: 313 | D10: 11.18210863 | E10: 46.00638978 | F10: 17.25239617 | G10: 10.22364217 | H10: 2.555910543 | I10: 1.597444089 | J10: 0.3194888179 | K10: 10.86261981 | L10: 2.06516129 | M10: 313 | N10: 10.86261981 | O10: 52.07667732 | P10: 36.10223642 | Q10: 0.9584664537 | R10: 313 | S10: 4.47284345 | T10: 1.597444089 | U10: 49.20127796 | V10: 1.916932907 | W10: 37.69968051 | X10: 2.555910543 | Y10: 2.555910543
B11: 無回答 | C11: 14 | D11: 0 | E11: 7.142857143 | F11: 28.57142857 | G11: 57.14285714 | H11: 7.142857143 | I11: 0 | J11: 0 | K11: 0 | L11: 2.821428571 | M11: 14 | N11: 28.57142857 | O11: 57.14285714 | P11: 7.142857143 | Q11: 7.142857143 | R11: 14 | S11: 57.14285714 | T11: 21.42857143 | U11: 7.142857143 | V11: 7.142857143 | W11: 0 | X11: 0 | Y11: 7.142857143
A15: 全 体 | C15: 1863 | D15: 136 | E15: 698 | F15: 447 | G15: 257 | H15: 93 | I15: 38 | J15: 21 | K15: 173 | L15: 2.675500986 | M15: 1863 | N15: 374 | O15: 799 | P15: 643 | Q15: 47 | R15: 1863 | S15: 274 | T15: 793 | U15: 259 | V15: 211 | W15: 237 | X15: 20 | Y15: 69
A17: 問７(6) | B17: 貴事業所（ｹｱﾏﾈｼﾞｬｰ）が直接、施設を紹介した | C17: 849 | D17: 52 | E17: 295 | F17: 215 | G17: 137 | H17: 41 | I17: 22 | J17: 16 | K17: 71 | L17: 3.042699229 | M17: 849 | N17: 145 | O17: 390 | P17: 292 | Q17: 22 | R17: 849 | S17: 25 | T17: 733 | U17: 34 | V17: 3 | W17: 23 | X17: 0 | Y17: 31
A18: 施設の紹介 | B18: 紹介事業者を紹介した | C18: 258 | D18: 19 | E18: 80 | F18: 81 | G18: 40 | H18: 22 | I18: 3 | J18: 2 | K18: 11 | L18: 2.570107962 | M18: 258 | N18: 106 | O18: 75 | P18: 72 | Q18: 5 | R18: 258 | S18: 12 | T18: 37 | U18: 11 | V18: 182 | W18: 4 | X18: 1 | Y18: 11
A19: 方法 | B19: 何も紹介していない（利用者が自力で探した等） | C19: 418 | D19: 29 | E19: 174 | F19: 92 | G19: 38 | H19: 21 | I19: 8 | J19: 2 | K19: 54 | L19: 2.446785714 | M19: 418 | N19: 82 | O19: 161 | P19: 162 | Q19: 13 | R19: 418 | S19: 215 | T19: 15 | U19: 58 | V19: 19 | W19: 91 | X19: 6 | Y19: 14
B20: 不明 | C20: 11 | D20: 1 | E20: 4 | F20: 1 | G20: 2 | H20: 0 | I20: 0 | J20: 0 | K20: 3 | L20: 1.65625 | M20: 11 | N20: 3 | O20: 2 | P20: 3 | Q20: 3 | R20: 11 | S20: 0 | T20: 0 | U20: 1 | V20: 0 | W20: 1 | X20: 5 | Y20: 4
B21: その他 | C21: 313 | D21: 35 | E21: 144 | F21: 54 | G21: 32 | H21: 8 | I21: 5 | J21: 1 | K21: 34 | L21: 2.06516129 | M21: 313 | N21: 34 | O21: 163 | P21: 113 | Q21: 3 | R21: 313 | S21: 14 | T21: 5 | U21: 154 | V21: 6 | W21: 118 | X21: 8 | Y21: 8
B22: 無回答 | C22: 14 | D22: 0 | E22: 1 | F22: 4 | G22: 8 | H22: 1 | I22: 0 | J22: 0 | K22: 0 | L22: 2.821428571 | M22: 14 | N22: 4 | O22: 8 | P22: 1 | Q22: 1 | R22: 14 | S22: 8 | T22: 3 | U22: 1 | V22: 1 | W22: 0 | X22: 0 | Y22: 1

Sheet 2⑱～⑳
C1: 問７(7) 初回の相談から成約までの期間 | M1: 問７(9) 入居先の施設種別 | R1: 問７(13) 入居後の担当状況
C3: 全体 | D3: １か月 未満 | E3: １か月～２か月 未満 | F3: ２か月～３か月 未満 | G3: ３か月～半年未満 | H3: 半年～ １年未満 | I3: １年～ ２年未満 | J3: ２年以上 | K3: 無回答 | L3: 平均 (か月) | M3: 全体 | N3: 介護付有料老人ホーム（特定施設） | O3: 住宅型有料老人ホーム | P3: サービス付き高齢者向け住宅 | Q3: 無回答 | R3: 全体 | S3: 引き続き担当している | T3: 担当終了している | U3: 無回答
A4: 全 体 | C4: =C16 -> 1863 | D4: 136 | E4: 698 | F4: 447 | G4: 257 | H4: 93 | I4: 38 | J4: 21 | K4: 173 | L4: 2.675500986 | M4: 1863 | N4: 374 | O4: 799 | P4: 643 | Q4: 47 | R4: 1863 | S4: 1076 | T4: 728 | U4: 59
C5: =IF(SUM(D5:K5)>100,"－",SUM(D5:K5)) -> 100 | D5: =D4/$C4*100 -> 7.300053677 | E5: 37.46645196 | F5: 23.99355878 | G5: 13.79495437 | H5: 4.99194847 | I5: 2.03972088 | J5: 1.127214171 | K5: 9.286097692 | M5: =IF(SUM(N5:Q5)>100,"－",SUM(N5:Q5)) -> 100 | N5: =N4/$M4*100 -> 20.07514761 | O5: 42.88781535 | P5: 34.51422437 | Q5: 2.522812668 | R5: =IF(SUM(S5:U5)>100,"－",SUM(S5:U5)) -> 100 | S5: =S4/$R4*100 -> 57.75630703 | T5: 39.07675792 | U5: 3.166935051
A6: 問７(12) | B6: 利用者が自力で探した | C6: =C18 -> 274 | D6: =IF($C6=0,0,D18/$C6*100) -> 6.204379562 | E6: 38.32116788 | F6: 22.99270073 | G6: 13.86861314 | H6: 7.299270073 | I6: 2.189781022 | J6: 1.459854015 | K6: 7.664233577 | L6: =L18 -> 2.750988142 | M6: =M18 -> 274 | N6: =IF($M6=0,0,N18/$M6*100) -> 26.27737226 | O6: =IF($M6=0,0,O18/$M6*100) -> 36.49635036 | P6: =IF($M6=0,0,P18/$M6*100) -> 37.22627737 | Q6: =IF($M6=0,0,Q18/$M6*100) -> 0 | R6: =R18 -> 274 | S6: =IF($R6=0,0,S18/$R6*100) -> 52.91970803 | T6: =IF($R6=0,0,T18/$R6*100) -> 47.08029197 | U6: =IF($R6=0,0,U18/$R6*100) -> 0
A7: 入居先の紹介元 | B7: 居宅介護支援事業所（貴事業所）からの紹介 | C7: =C19 -> 793 | D7: =IF($C7=0,0,D19/$C7*100) -> 6.30517024 | E7: 35.05674653 | F7: 25.85119798 | G7: 16.64564943 | H7: 5.170239596 | I7: 2.648171501 | J7: 1.639344262 | K7: 6.683480454 | L7: =L19 -> 3.035972973 | M7: 793 | N7: =IF($M7=0,0,N19/$M7*100) -> 17.90668348 | O7: 46.53215637 | P7: 34.3001261 | Q7: 1.261034048 | R7: =R19 -> 793 | S7: =IF($R7=0,0,S19/$R7*100) -> 65.57377049 | T7: 33.41740227 | U7: 1.008827238
B8: 病院からの紹介 | C8: 259 | D8: =IF($C8=0,0,D20/$C8*100) -> 10.03861004 | E8: 50.19305019 | F8: 16.98841699 | G8: 9.266409266 | H8: 3.088803089 | I8: 2.316602317 | J8: 0.7722007722 | K8: 7.335907336 | L8: =L20 -> 2.453416667 | M8: 259 | N8: =IF($M8=0,0,N20/$M8*100) -> 9.652509653 | O8: 57.14285714 | P8: 32.43243243 | Q8: 0.7722007722 | R8: 259 | S8: =IF($R8=0,0,S20/$R8*100) -> 67.95366795 | T8: 30.88803089 | U8: 1.158301158
B9: 紹介事業者からの紹介 | C9: 211 | D9: =IF($C9=0,0,D21/$C9*100) -> 9.004739336 | E9: 29.85781991 | F9: 34.12322275 | G9: 13.74407583 | H9: 6.63507109 | I9: 1.421800948 | J9: 0.4739336493 | K9: 4.739336493 | L9: =L21 -> 2.43371476 | M9: 211 | N9: =IF($M9=0,0,N21/$M9*100) -> 36.492891 | O9: 33.17535545 | P9: 29.38388626 | Q9: 0.9478672986 | R9: 211 | S9: =IF($R9=0,0,S21/$R9*100) -> 30.8056872 | T9: 68.72037915 | U9: 0.4739336493
B10: その他 | C10: 237 | D10: =IF($C10=0,0,D22/$C10*100) -> 8.860759494 | E10: 43.88185654 | F10: 22.3628692 | G10: 9.70464135 | H10: 2.953586498 | I10: 0.8438818565 | J10: 0 | K10: 11.39240506 | L10: =L22 -> 1.793952381 | M10: 237 | N10: =IF($M10=0,0,N22/$M10*100) -> 17.29957806 | O10: 38.39662447 | P10: 43.03797468 | Q10: 1.265822785 | R10: 237 | S10: =IF($R10=0,0,S22/$R10*100) -> 62.86919831 | T10: 36.28691983 | U10: 0.8438818565
B11: 不明 | C11: 20 | D11: =IF($C11=0,0,D23/$C11*100) -> 5 | E11: 45 | F11: 15 | G11: 10 | H11: 0 | I11: 0 | J11: 0 | K11: 25 | L11: =L23 -> 1.483333333 | M11: 20 | N11: =IF($M11=0,0,N23/$M11*100) -> 15 | O11: 35 | P11: 50 | Q11: 0 | R11: 20 | S11: =IF($R11=0,0,S23/$R11*100) -> 60 | T11: 40 | U11: 0
B12: 無回答 | C12: 69 | D12: =IF($C12=0,0,D24/$C12*100) -> 2.898550725 | E12: 13.04347826 | F12: 10.14492754 | G12: 13.04347826 | H12: 4.347826087 | I12: 0 | J12: 1.449275362 | K12: 55.07246377 | L12: =L24 -> 3.290322581 | M12: 69 | N12: =IF($M12=0,0,N24/$M12*100) -> 20.28985507 | O12: 20.28985507 | P12: 15.94202899 | Q12: 43.47826087 | R12: 69 | S12: =IF($R12=0,0,S24/$R12*100) -> 13.04347826 | T12: 21.73913043 | U12: 65.2173913
A16: 全 体 | C16: 1863 | D16: 136 | E16: 698 | F16: 447 | G16: 257 | H16: 93 | I16: 38 | J16: 21 | K16: 173 | L16: 2.675500986 | M16: 1863 | N16: 374 | O16: 799 | P16: 643 | Q16: 47 | R16: 1863 | S16: 1076 | T16: 728 | U16: 59
A18: 問７(12) | B18: 利用者が自力で探した | C18: 274 | D18: 17 | E18: 105 | F18: 63 | G18: 38 | H18: 20 | I18: 6 | J18: 4 | K18: 21 | L18: 2.750988142 | M18: 274 | N18: 72 | O18: 100 | P18: 102 | Q18: 0 | R18: 274 | S18: 145 | T18: 129 | U18: 0
A19: 入居先の紹介元 | B19: 居宅介護支援事業所（貴事業所）からの紹介 | C19: 793 | D19: 50 | E19: 278 | F19: 205 | G19: 132 | H19: 41 | I19: 21 | J19: 13 | K19: 53 | L19: 3.035972973 | M19: 793 | N19: 142 | O19: 369 | P19: 272 | Q19: 10 | R19: 793 | S19: 520 | T19: 265 | U19: 8
B20: 病院からの紹介 | C20: 259 | D20: 26 | E20: 130 | F20: 44 | G20: 24 | H20: 8 | I20: 6 | J20: 2 | K20: 19 | L20: 2.453416667 | M20: 259 | N20: 25 | O20: 148 | P20: 84 | Q20: 2 | R20: 259 | S20: 176 | T20: 80 | U20: 3
B21: 紹介事業者からの紹介 | C21: 211 | D21: 19 | E21: 63 | F21: 72 | G21: 29 | H21: 14 | I21: 3 | J21: 1 | K21: 10 | L21: 2.43371476 | M21: 211 | N21: 77 | O21: 70 | P21: 62 | Q21: 2 | R21: 211 | S21: 65 | T21: 145 | U21: 1
B22: その他 | C22: 237 | D22: 21 | E22: 104 | F22: 53 | G22: 23 | H22: 7 | I22: 2 | J22: 0 | K22: 27 | L22: 1.793952381 | M22: 237 | N22: 41 | O22: 91 | P22: 102 | Q22: 3 | R22: 237 | S22: 149 | T22: 86 | U22: 2
B23: 不明 | C23: 20 | D23: 1 | E23: 9 | F23: 3 | G23: 2 | H23: 0 | I23: 0 | J23: 0 | K23: 5 | L23: 1.483333333 | M23: 20 | N23: 3 | O23: 7 | P23: 10 | Q23: 0 | R23: 20 | S23: 12 | T23: 8 | U23: 0
B24: 無回答 | C24: 69 | D24: 2 | E24: 9 | F24: 7 | G24: 9 | H24: 3 | I24: 0 | J24: 1 | K24: 38 | L24: 3.290322581 | M24: 69 | N24: 14 | O24: 14 | P24: 11 | Q24: 30 | R24: 69 | S24: 9 | T24: 15 | U24: 45

Sheet 都市圏とのクロス問1～問6
C1: 問１(1) 設置主体 | M1: 問１(2) 事業所に所属するケアマネジャーの人数 | V1: 問１(2) 事業所に所属するケアマネジャーの人数 | AD1: 問１(2) 事業所に所属するケアマネジャーの人数 | AK1: 問１(2) うち、主任ケアマネジャーの人数 | AS1: 問１(2) うち、主任ケアマネジャーの人数 | AZ1: 問１(2) うち、主任ケアマネジャーの人数 | BG1: 問１(3) 併設している事業所（複数回答） | BV1: 問１(4) 事業所の利用者（担当ケース）数（2020年７月１日時点） | CG1: 問２(1)① 直近２か月間で入居に関する相談を受けた人数 | CP1: 問２(1)② 直近２か月間で入居に関する相談を受けた回数 | CZ1: 問２SQ(1)-1 うち、有料老人ホーム・サ高住への入居に至った利用者の数 | DH1: 問２(1)① 相談を受けた人数における入居に至った割合 | DQ1: 問２(2) 有料老人ホーム・サ高住の紹介にあたって、利用者に提供している資料（複数回答） | EA1: 問３ 有料老人ホーム・サ高住を理解するための取り組みの状況 | EI1: 問３ 有料老人ホーム・サ高住を理解するための取り組みの状況 | EQ1: 問３ 有料老人ホーム・サ高住を理解するための取り組みの状況 | EY1: 問４(1) 利用者に直接、有料老人ホーム・サ高住を紹介した際にクレームを受けた内容（複数回答） | FK1: 問４(2) 利用者に直接、有料老人ホーム・サ高住を紹介する際に困っていること（複数回答） | FV1: 問４(3) 有料老人ホーム・サ高住の運営事業者への要望 | GE1: 問５(1) 紹介事業者の存在の認知状況 | GI1: 問５(2) 事業所の同一市区町村内における紹介事業者の有無 | GN1: 問５(3) 直近２か月間（2020年６～７月）で案内した紹介事業者の数 | GV1: 問５(4) 直近２か月間で紹介事業者を案内した利用者の数 | HC1: 問５SQ(4)-1 うち、有料老人ホーム・サ高住に入居した利用者の数 | HJ1: 問５(5) 紹介事業者を案内している理由（複数回答） | HT1: 問５(6) 紹介事業者を案内していない理由（複数回答） | IB1: 問５(7) 紹介事業者の仕組みについて知っている内容（複数回答） | IH1: 問６(1) 紹介事業者を利用する際に困っていること（複数回答） | IT1: 問６(2) 紹介事業者への要望（複数回答）
M2: ①常勤（実人数） | V2: ②非常勤（実人数） | AD2: ②非常勤（常勤換算数） | AK2: ①常勤（実人数） | AS2: ②非常勤（実人数） | AZ2: ②非常勤（常勤換算数） | EA2: (1)外部の有料老人ホーム・サ高住の担当者を招いた事業所内講習会の実施 | EI2: (2)提携している有料老人ホーム・サ高住が実施する見学会等への参加 | EQ2: (3)貴事業所職員による事業所内勉強会の実施
C3: 全体 | D3: 社会福祉法人（社協を除く） | E3: 社会福祉協議会 | F3: 医療法人 | G3: 社団法人 | H3: 財団法人 | I3: 営利法人（株式会社等） | J3: NPO法人 | K3: その他 | L3: 無回答 | M3: 全体 | N3: １人 | O3: ２人 | P3: ３人 | Q3: ４人 | R3: ５～６人 | S3: ７人以上 | T3: エラー・無回答 | U3: 平均 (人) | V3: 全体 | W3: ０人 | X3: １人 | Y3: ２人 | Z3: ３人 | AA3: ４人以上 | AB3: エラー・無回答 | AC3: 平均 (人) | AD3: 全体 | AE3: ０人 | AF3: １人未満 | AG3: １～２人未満 | AH3: ２人以上 | AI3: エラー・無回答 | AJ3: 平均 (人) | AK3: 全体 | AL3: ０人 | AM3: １人 | AN3: ２人 | AO3: ３人 | AP3: ４人以上 | AQ3: エラー・無回答 | AR3: 平均 (人) | AS3: 全体 | AT3: ０人 | AU3: １人 | AV3: ２人 | AW3: ３人以上 | AX3: エラー・無回答 | AY3: 平均 (人) | AZ3: 全体 | BA3: ０人 | BB3: １人未満 | BC3: １～２人未満 | BD3: ２人以上 | BE3: エラー・無回答 | BF3: 平均 (人) | BG3: 全体 | BH3: 訪問介護 | BI3: 訪問看護 | BJ3: 訪問リハビリテーション | BK3: 居宅療養管理指導 | BL3: 通所介護 | BM3: 通所リハビリテーション | BN3: 有料老人ホーム（特定施設） | BO3: 有料老人ホーム（特定施設以外） | BP3: サービス付き高齢者向け住宅（特定施設） | BQ3: サービス付き高齢者向け住宅（特定施設以外） | BR3: 介護保険施設 | BS3: 医療機関 | BT3: その他 | BU3: 無回答 | BV3: 全体 | BW3: 30人未満 | BX3: 30～40人未満 | BY3: 40～50人未満 | BZ3: 50～70人未満 | CA3: 70～100人未満 | CB3: 100～150人未満 | CC3: 150～200人未満 | CD3: 200人以上 | CE3: エラー・無回答 | CF3: 平均 (人) | CG3: 全体 | CH3: ０人 | CI3: １人 | CJ3: ２人 | CK3: ３人 | CL3: ４～５人 | CM3: ６人以上 | CN3: エラー・無回答 | CO3: 平均 (人) | CP3: 全体 | CQ3: ０回 | CR3: １回 | CS3: ２～３回 | CT3: ４～５回 | CU3: ６～10回 | CV3: 10～15回 | CW3: 15回以上 | CX3: エラー・無回答 | CY3: 平均 (回) | CZ3: 全体 | DA3: ０人 | DB3: １人 | DC3: ２人 | DD3: ３人 | DE3: ４人以上 | DF3: エラー・無回答 | DG3: 平均 (人) | DH3: 全体 | DI3: ０％ | DJ3: 30％未満 | DK3: 30～50％未満 | DL3: 50～70％未満 | DM3: 70～100％未満 | DN3: 100％ | DO3: エラー・無回答 | DP3: 平均 (％) | DQ3: 全体 | DR3: 行政が作成している資料（事業者一覧等） | DS3: 有料老人ホーム・サ高住の制度や仕組みに関する資料 | DT3: 有料老人ホーム・サ高住の選び方に関する資料 | DU3: 個別の有料老人ホーム・サ高住のパンフレット | DV3: 個別の有料老人ホーム・サ高住の評判やクレーム・トラブル等に関する情報 | DW3: 紹介事業者の資料 | DX3: その他の資料 | DY3: 特に提供している資料はない | DZ3: 無回答 | EA3: 全体 | EB3: １か月に１回以上 | EC3: ２～３か月に１回以上 | ED3: ４～６か月に１回程度 | EE3: １年に１回程度 | EF3: 不定期 | EG3: 未実施 | EH3: 無回答 | EI3: 全体 | EJ3: １か月に１回以上 | EK3: ２～３か月に１回以上 | EL3: ４～６か月に１回程度 | EM3: １年に１回程度 | EN3: 不定期 | EO3: 未実施 | EP3: 無回答 | EQ3: 全体 | ER3: １か月に１回以上 | ES3: ２～３か月に１回以上 | ET3: ４～６か月に１回程度 | EU3: １年に１回程度 | EV3: 不定期 | EW3: 未実施 | EX3: 無回答 | EY3: 全体 | EZ3: 広告上の表現と実態が異なっていた | FA3: 介護支援専門員（ケアマネジャ ー）から受けた口頭での説明と実態が異なっていた | FB3: 利用料金が想定と異なっていた | FC3: 入居・退去要件が想定と異なっていた | FD3: 部屋・設備が想定と異なっていた | FE3: 介護サービスの質が期待していたより低かった | FF3: 食事の質が期待していたより低かった | FG3: 職員の対応が期待通りではなかった | FH3: その他 | FI3: 特にクレームを受けたことはない | FJ3: 無回答 | FK3: 全体 | FL3: 制度が複雑で分かりにくい | FM3: 施設の数が多くて把握できない | FN3: サービス内容の違いが分からない | FO3: 医療行為が受けられない | FP3: 料金体系が複雑 | FQ3: 広告と実態が異なる | FR3: 有料老人ホーム・サ高住から受けた口頭での説明と実態が異なる | FS3: その他 | FT3: 特に困っていることはない | FU3: 無回答 | FV3: 全体 | FW3: 施設の特徴をわかりやすく教えて欲しい | FX3: 相談者に見学・体験入居をさせて欲しい | FY3: 空室情報を定期的に提供して欲しい | FZ3: 料金体系・契約の内容に関する情報提供をして欲しい | GA3: 受け入れが困難な状態や要件に関する情報提供をして欲しい | GB3: その他 | GC3: 特に要望はない | GD3: 無回答 | GE3: 全体 | GF3: 知っている | GG3: 知らない | GH3: 無回答 | GI3: 全体 | GJ3: ある | GK3: ない | GL3: わからない | GM3: 無回答 | GN3: 全体 | GO3: ０社 | GP3: １社 | GQ3: ２社 | GR3: ３社 | GS3: ４社以上 | GT3: エラー・無回答 | GU3: 平均 (社) | GV3: 全体 | GW3: ０人 | GX3: １人 | GY3: ２人 | GZ3: ３人以上 | HA3: エラー・無回答 | HB3: 平均 (人) | HC3: 全体 | HD3: ０人 | HE3: １人 | HF3: ２人 | HG3: ３人以上 | HH3: エラー・無回答 | HI3: 平均 (人) | HJ3: 全体 | HK3: 自身の業務が多忙なため | HL3: 当事業所では紹介先に対する責任が持てないため | HM3: 入居検討先が遠方にあるため | HN3: 有料老人ホーム・サ高住に関する知識や情報が不足しているため | HO3: 紹介事業者の相談対応が親切であるため | HP3: 入居を急ぐケースがあるため | HQ3: その他 | HR3: 紹介事業者の案内はしていない | HS3: 無回答 | HT3: 全体 | HU3: 紹介事業者が近隣にないため | HV3: 紹介できる有料老人ホーム・サ高住の数が限られているため | HW3: 当事業所内で有料老人ホーム・サ高住の情報を把握できているため | HX3: 過去に紹介事業者を利用した際の対応に不満があったため | HY3: その他 | HZ3: 基本的に紹介事業者を案内している | IA3: 無回答 | IB3: 全体 | IC3: 紹介事業者は、紹介あっせん契約をしている有料老人ホーム・サ高住を紹介していること | ID3: 紹介事業者は、紹介あっせん契約をしている有料老人ホーム・サ高住から手数料（入居者の紹介に係る成功報酬）を受け取っていること | IE3: 紹介事業者が有料老人ホーム・サ高住から受け取る手数料は一律ではないこと | IF3: 左記のいずれも知らない | IG3: 無回答 | IH3: 全体 | II3: 事業所の近くに紹介事業者がない | IJ3: 紹介事業者の仕組みが分からない | IK3: どの紹介事業者を選べば良いのか分からない | IL3: 紹介事業者の対応が遅い | IM3: 紹介事業者の相談対応が不親切 | IN3: 利用者にふさわしい有料老人ホーム・サ高住が紹介されない | IO3: 一部の有料老人ホーム・サ高住しか紹介されない | IP3: 事業所への営業がしつこい | IQ3: その他 | IR3: 特に困っていることはない | IS3: 無回答 | IT3: 全体 | IU3: 利用者（相談者）のニーズに合った施設を紹介して欲しい | IV3: 中立性を保った情報提供をして欲しい | IW3: 各施設の特徴について丁寧な説明をして欲しい | IX3: 各施設のサービス内容について丁寧な説明をして欲しい | IY3: 各施設の入居・退去要件について丁寧な説明をして欲しい | IZ3: 各施設の料金について丁寧な説明をして欲しい | JA3: 各施設の空き情報について教えてほしい | JB3: 営業の頻度を減らして欲しい | JC3: その他 | JD3: 特に要望はない | JE3: 無回答
A4: 全 体 | C4: =C11 -> 1602 | D4: 384 | E4: 85 | F4: 241 | G4: 27 | H4: 6 | I4: 746 | J4: 58 | K4: 55 | L4: 0 | M4: 1602 | N4: 533 | O4: 319 | P4: 311 | Q4: 215 | R4: 156 | S4: 51 | T4: 17 | U4: 2.655520505 | V4: 1602 | W4: 272 | X4: 281 | Y4: 106 | Z4: 48 | AA4: 47 | AB4: 848 | AC4: 1.148541114 | AD4: 1602 | AE4: 272 | AF4: 194 | AG4: 86 | AH4: 45 | AI4: 1005 | AJ4: 0.610201005 | AK4: 1602 | AL4: 278 | AM4: 771 | AN4: 285 | AO4: 121 | AP4: 46 | AQ4: 101 | AR4: 1.270486342 | AS4: 1602 | AT4: 417 | AU4: 91 | AV4: 16 | AW4: 13 | AX4: 1065 | AY4: 0.3184357542 | AZ4: 1602 | BA4: 417 | BB4: 31 | BC4: 23 | BD4: 14 | BE4: 1117 | BF4: 0.1536701031 | BG4: 1602 | BH4: 675 | BI4: 224 | BJ4: 89 | BK4: 63 | BL4: 678 | BM4: 168 | BN4: 35 | BO4: 66 | BP4: 29 | BQ4: 68 | BR4: 304 | BS4: 137 | BT4: 317 | BU4: 226 | BV4: =BV11 -> 1602 | BW4: 185 | BX4: 212 | BY4: 124 | BZ4: 186 | CA4: 236 | CB4: 295 | CC4: 126 | CD4: 72 | CE4: 166 | CF4: 85.02576602 | CG4: 1602 | CH4: 558 | CI4: 336 | CJ4: 274 | CK4: 161 | CL4: 136 | CM4: 59 | CN4: 78 | CO4: 1.6332021 | CP4: 1602 | CQ4: 558 | CR4: 165 | CS4: 282 | CT4: 168 | CU4: 120 | CV4: 68 | CW4: 41 | CX4: 200 | CY4: 2.905848787 | CZ4: 1602 | DA4: 977 | DB4: 322 | DC4: 132 | DD4: 51 | DE4: 36 | DF4: 84 | DG4: 0.6097496706 | DH4: 1044 | DI4: 404 | DJ4: 56 | DK4: 72 | DL4: 154 | DM4: 12 | DN4: 229 | DO4: 117 | DP4: 38.7328556 | DQ4: 1602 | DR4: 440 | DS4: 189 | DT4: 119 | DU4: 1118 | DV4: 55 | DW4: 510 | DX4: 77 | DY4: 77 | DZ4: 133 | EA4: 1602 | EB4: 3 | EC4: 4 | ED4: 4 | EE4: 23 | EF4: 127 | EG4: 1326 | EH4: 115 | EI4: 1602 | EJ4: 8 | EK4: 16 | EL4: 47 | EM4: 64 | EN4: 454 | EO4: 931 | EP4: 82 | EQ4: =EQ11 -> 1602 | ER4: 59 | ES4: 31 | ET4: 27 | EU4: 74 | EV4: 353 | EW4: 978 | EX4: 80 | EY4: 1602 | EZ4: 78 | FA4: 45 | FB4: 214 | FC4: 66 | FD4: 41 | FE4: 345 | FF4: 214 | FG4: 379 | FH4: 64 | FI4: 876 | FJ4: 72 | FK4: 1602 | FL4: 283 | FM4: 380 | FN4: 448 | FO4: 363 | FP4: 698 | FQ4: 182 | FR4: 235 | FS4: 122 | FT4: 301 | FU4: 54 | FV4: 1602 | FW4: 673 | FX4: 504 | FY4: 415 | FZ4: 777 | GA4: 807 | GB4: 47 | GC4: 229 | GD4: 42 | GE4: 1602 | GF4: 1126 | GG4: 441 | GH4: 35 | GI4: 1126 | GJ4: 624 | GK4: 273 | GL4: 177 | GM4: 52 | GN4: 1126 | GO4: 751 | GP4: 181 | GQ4: 84 | GR4: 28 | GS4: 19 | GT4: 63 | GU4: 0.5004703669 | GV4: 1126 | GW4: 796 | GX4: 150 | GY4: 69 | GZ4: 45 | HA4: 66 | HB4: 0.4490566038 | HC4: =HC11 -> 1126 | HD4: 939 | HE4: 83 | HF4: 29 | HG4: 15 | HH4: 60 | HI4: 0.1782363977 | HJ4: 1126 | HK4: 223 | HL4: 214 | HM4: 139 | HN4: 360 | HO4: 258 | HP4: 276 | HQ4: 71 | HR4: 369 | HS4: 75 | HT4: 1126 | HU4: 116 | HV4: 111 | HW4: 183 | HX4: 53 | HY4: 204 | HZ4: 214 | IA4: 343 | IB4: 1126 | IC4: 625 | ID4: 711 | IE4: 319 | IF4: 235 | IG4: 68 | IH4: 1126 | II4: 117 | IJ4: 106 | IK4: 272 | IL4: 38 | IM4: 32 | IN4: 122 | IO4: 165 | IP4: 151 | IQ4: 61 | IR4: 443 | IS4: 59 | IT4: 1126 | IU4: 567 | IV4: 526 | IW4: 399 | IX4: 381 | IY4: 359 | IZ4: 457 | JA4: 248 | JB4: 160 | JC4: 35 | JD4: 280 | JE4: 35
C5: =IF(SUM(D5:L5)>100,"－",SUM(D5:L5)) -> 100 | D5: =D4/$C4*100 -> 23.97003745 | E5: 5.305867665 | F5: 15.04369538 | G5: 1.685393258 | H5: 0.3745318352 | I5: 46.56679151 | J5: 3.620474407 | K5: 3.433208489 | L5: 0 | M5: =IF(SUM(N5:T5)>100,"－",SUM(N5:T5)) -> 100 | N5: =N4/$M4*100 -> 33.27091136 | O5: 19.91260924 | P5: 19.41323346 | Q5: 13.42072409 | R5: 9.737827715 | S5: 3.183520599 | T5: 1.061173533 | V5: =IF(SUM(W5:AB5)>100,"－",SUM(W5:AB5)) -> 100 | W5: =W4/$V4*100 -> 16.97877653 | X5: 17.54057428 | Y5: 6.616729089 | Z5: 2.996254682 | AA5: 2.933832709 | AB5: 52.93383271 | AD5: =IF(SUM(AE5:AI5)>100,"－",SUM(AE5:AI5)) -> 100 | AE5: =AE4/$AD4*100 -> 16.97877653 | AF5: 12.10986267 | AG5: 5.368289638 | AH5: 2.808988764 | AI5: 62.7340824 | AK5: =IF(SUM(AL5:AQ5)>100,"－",SUM(AL5:AQ5)) -> 100 | AL5: =AL4/$AK4*100 -> 17.35330836 | AM5: 48.12734082 | AN5: 17.79026217 | AO5: 7.553058677 | AP5: 2.871410737 | AQ5: 6.304619226 | AS5: =IF(SUM(AT5:AX5)>100,"－",SUM(AT5:AX5)) -> 100 | AT5: =AT4/$AS4*100 -> 26.02996255 | AU5: 5.680399501 | AV5: 0.9987515605 | AW5: 0.8114856429 | AX5: 66.47940075 | AZ5: =IF(SUM(BA5:BE5)>100,"－",SUM(BA5:BE5)) -> 100 | BA5: =BA4/$AZ4*100 -> 26.02996255 | BB5: 1.935081149 | BC5: 1.435705368 | BD5: 0.8739076155 | BE5: 69.72534332 | BG5: =IF(SUM(BH5:BU5)>100,"－",SUM(BH5:BU5)) -> － | BH5: =BH4/$BG4*100 -> 42.13483146 | BI5: 13.98252185 | BJ5: 5.555555556 | BK5: 3.93258427 | BL5: 42.32209738 | BM5: 10.48689139 | BN5: 2.184769039 | BO5: 4.119850187 | BP5: 1.810237203 | BQ5: 4.244694132 | BR5: 18.97627965 | BS5: 8.551810237 | BT5: 19.78776529 | BU5: 14.10736579 | BV5: =IF(SUM(BW5:CE5)>100,"－",SUM(BW5:CE5)) -> 100 | BW5: =BW4/$BV4*100 -> 11.54806492 | BX5: 13.23345818 | BY5: 7.740324594 | BZ5: 11.61048689 | CA5: 14.73158552 | CB5: 18.4144819 | CC5: 7.865168539 | CD5: 4.494382022 | CE5: 10.36204744 | CG5: =IF(SUM(CH5:CN5)>100,"－",SUM(CH5:CN5)) -> 100 | CH5: =CH4/$CG4*100 -> 34.83146067 | CI5: 20.97378277 | CJ5: 17.10362047 | CK5: 10.04993758 | CL5: 8.489388265 | CM5: 3.68289638 | CN5: 4.868913858 | CP5: =IF(SUM(CQ5:CX5)>100,"－",SUM(CQ5:CX5)) -> 100 | CQ5: =CQ4/$CP4*100 -> 34.83146067 | CR5: 10.29962547 | CS5: 17.60299625 | CT5: 10.48689139 | CU5: 7.490636704 | CV5: 4.244694132 | CW5: 2.559300874 | CX5: 12.48439451 | CZ5: =IF(SUM(DA5:DF5)>100,"－",SUM(DA5:DF5)) -> 100 | DA5: =DA4/$CZ4*100 -> 60.98626717 | DB5: 20.09987516 | DC5: 8.239700375 | DD5: 3.183520599 | DE5: 2.247191011 | DF5: 5.243445693 | DH5: =IF(SUM(DI5:DO5)>100,"－",SUM(DI5:DO5)) -> 100 | DI5: =DI4/$DH4*100 -> 38.69731801 | DJ5: 5.363984674 | DK5: 6.896551724 | DL5: 14.75095785 | DM5: 1.149425287 | DN5: 21.9348659 | DO5: 11.20689655 | DQ5: =IF(SUM(DR5:DZ5)>100,"－",SUM(DR5:DZ5)) -> － | DR5: =DR4/$DQ4*100 -> 27.46566792 | DS5: 11.79775281 | DT5: 7.428214732 | DU5: 69.78776529 | DV5: 3.433208489 | DW5: 31.83520599 | DX5: 4.806491885 | DY5: 4.806491885 | DZ5: 8.302122347 | EA5: =IF(SUM(EB5:EH5)>100,"－",SUM(EB5:EH5)) -> 100 | EB5: =EB4/$EA4*100 -> 0.1872659176 | EC5: 0.2496878901 | ED5: 0.2496878901 | EE5: 1.435705368 | EF5: 7.927590512 | EG5: 82.77153558 | EH5: 7.178526841 | EI5: =IF(SUM(EJ5:EP5)>100,"－",SUM(EJ5:EP5)) -> 100 | EJ5: =EJ4/$EI4*100 -> 0.4993757803 | EK5: 0.9987515605 | EL5: 2.933832709 | EM5: 3.995006242 | EN5: 28.33957553 | EO5: 58.11485643 | EP5: 5.118601748 | EQ5: =IF(SUM(ER5:EX5)>100,"－",SUM(ER5:EX5)) -> 100 | ER5: =ER4/$EQ4*100 -> 3.68289638 | ES5: 1.935081149 | ET5: 1.685393258 | EU5: 4.619225968 | EV5: 22.0349563 | EW5: 61.04868914 | EX5: 4.993757803 | EY5: =IF(SUM(EZ5:FJ5)>100,"－",SUM(EZ5:FJ5)) -> － | EZ5: =EZ4/$EY4*100 -> 4.868913858 | FA5: 2.808988764 | FB5: 13.35830212 | FC5: 4.119850187 | FD5: 2.559300874 | FE5: 21.53558052 | FF5: 13.35830212 | FG5: 23.65792759 | FH5: 3.995006242 | FI5: 54.68164794 | FJ5: 4.494382022 | FK5: =IF(SUM(FL5:FU5)>100,"－",SUM(FL5:FU5)) -> － | FL5: =FL4/$FK4*100 -> 17.66541823 | FM5: 23.72034956 | FN5: 27.9650437 | FO5: 22.65917603 | FP5: 43.57053683 | FQ5: 11.360799 | FR5: 14.66916355 | FS5: 7.615480649 | FT5: 18.78901373 | FU5: 3.370786517 | FV5: =IF(SUM(FW5:GD5)>100,"－",SUM(FW5:GD5)) -> － | FW5: =FW4/$FV4*100 -> 42.00998752 | FX5: 31.46067416 | FY5: 25.9051186 | FZ5: 48.50187266 | GA5: 50.37453184 | GB5: 2.933832709 | GC5: 14.29463171 | GD5: 2.621722846 | GE5: =IF(SUM(GF5:GH5)>100,"－",SUM(GF5:GH5)) -> 100 | GF5: =GF4/$GE4*100 -> 70.28714107 | GG5: 27.52808989 | GH5: 2.184769039 | GI5: =IF(SUM(GJ5:GM5)>100,"－",SUM(GJ5:GM5)) -> 100 | GJ5: =GJ4/$GI4*100 -> 55.41740675 | GK5: 24.24511545 | GL5: 15.71936057 | GM5: 4.618117229 | GN5: =IF(SUM(GO5:GT5)>100,"－",SUM(GO5:GT5)) -> 100 | GO5: =GO4/$GN4*100 -> 66.69626998 | GP5: 16.07460036 | GQ5: 7.460035524 | GR5: 2.486678508 | GS5: 1.687388988 | GT5: 5.595026643 | GV5: =IF(SUM(GW5:HA5)>100,"－",SUM(GW5:HA5)) -> 100 | GW5: =GW4/$GV4*100 -> 70.69271758 | GX5: 13.32149201 | GY5: 6.127886323 | GZ5: 3.996447602 | HA5: 5.861456483 | HC5: =IF(SUM(HD5:HH5)>100,"－",SUM(HD5:HH5)) -> 100 | HD5: =HD4/$HC4*100 -> 83.39253996 | HE5: 7.371225577 | HF5: 2.575488455 | HG5: 1.332149201 | HH5: 5.328596803 | HJ5: =IF(SUM(HK5:HS5)>100,"－",SUM(HK5:HS5)) -> － | HK5: =HK4/$HJ4*100 -> 19.80461812 | HL5: 19.0053286 | HM5: 12.34458259 | HN5: 31.97158082 | HO5: 22.91296625 | HP5: 24.51154529 | HQ5: 6.305506217 | HR5: 32.77087034 | HS5: 6.660746004 | HT5: =IF(SUM(HU5:IA5)>100,"－",SUM(HU5:IA5)) -> － | HU5: =HU4/$HT4*100 -> 10.30195382 | HV5: 9.857904085 | HW5: 16.25222025 | HX5: 4.706927176 | HY5: 18.11722913 | HZ5: 19.0053286 | IA5: 30.46181172 | IB5: =IF(SUM(IC5:IG5)>100,"－",SUM(IC5:IG5)) -> － | IC5: =IC4/$IB4*100 -> 55.5062167 | ID5: 63.14387211 | IE5: 28.330373 | IF5: 20.87033748 | IG5: 6.039076377 | IH5: =IF(SUM(II5:IS5)>100,"－",SUM(II5:IS5)) -> － | II5: =II4/$IH4*100 -> 10.39076377 | IJ5: 9.413854352 | IK5: 24.15630551 | IL5: 3.374777975 | IM5: 2.841918295 | IN5: 10.8348135 | IO5: 14.65364121 | IP5: 13.41030195 | IQ5: 5.41740675 | IR5: 39.34280639 | IS5: 5.239786856 | IT5: =IF(SUM(IU5:JE5)>100,"－",SUM(IU5:JE5)) -> － | IU5: =IU4/$IT4*100 -> 50.35523979 | IV5: 46.71403197 | IW5: 35.43516874 | IX5: 33.8365897 | IY5: 31.88277087 | IZ5: 40.58614565 | JA5: 22.02486679 | JB5: 14.20959147 | JC5: 3.108348135 | JD5: 24.86678508 | JE5: 3.108348135
A6: 都市圏 | B6: 都市部 | C6: =C13 -> 787 | D6: =IF($C6=0,0,D13/$C6*100) -> 21.21982211 | E6: 2.414231258 | F6: 11.56289708 | G6: 1.397712834 | H6: 0.3811944091 | I6: 55.40025413 | J6: 4.57433291 | K6: 3.049555273 | L6: 0 | M6: =M13 -> 787 | N6: =IF($M6=0,0,N13/$M6*100) -> 36.34053367 | O6: 19.44091487 | P6: 18.42439644 | Q6: 14.23125794 | R6: 8.132147395 | S6: 2.668360864 | T6: 0.7623888183 | U6: =U13 -> 2.546734955 | V6: =V13 -> 787 | W6: =IF($V6=0,0,W13/$V6*100) -> 17.66200762 | X6: 17.15374841 | Y6: 8.259212198 | Z6: 2.92249047 | AA6: 3.303684879 | AB6: 50.69885642 | AC6: =AC13 -> 1.180412371 | AD6: =AD13 -> 787 | AE6: =IF($AD6=0,0,AE13/$AD6*100) -> 17.66200762 | AF6: 11.81702668 | AG6: 6.607369759 | AH6: 2.668360864 | AI6: 61.24523507 | AJ6: =AJ13 -> 0.605442623 | AK6: =AK13 -> 787 | AL6: =IF($AK6=0,0,AL13/$AK6*100) -> 18.29733164 | AM6: 48.15756036 | AN6: 16.89961881 | AO6: 7.49682338 | AP6: 2.287166455 | AQ6: 6.861499365 | AR6: =AR13 -> 1.236016371 | AS6: =AS13 -> 787 | AT6: =IF($AS6=0,0,AT13/$AS6*100) -> 27.06480305 | AU6: 5.972045743 | AV6: 0.7623888183 | AW6: 0.5082592122 | AX6: 65.69250318 | AY6: =AY13 -> 0.2814814815 | AZ6: =AZ13 -> 787 | BA6: =IF($AZ6=0,0,BA13/$AZ6*100) -> 27.06480305 | BB6: 1.524777637 | BC6: 1.778907243 | BD6: 0.3811944091 | BE6: 69.25031766 | BF6: =BF13 -> 0.1185950413 | BG6: =BG13 -> 787 | BH6: =IF($BG6=0,0,BH13/$BG6*100) -> 43.07496823 | BI6: 12.83354511 | BJ6: 3.939008895 | BK6: 3.811944091 | BL6: 36.34053367 | BM6: 6.861499365 | BN6: 1.524777637 | BO6: 2.414231258 | BP6: 1.905972046 | BQ6: 3.049555273 | BR6: 15.37484117 | BS6: 5.463786531 | BT6: 18.80559085 | BU6: 16.6454892 | BV6: =BV13 -> 787 | BW6: =IF($BV6=0,0,BW13/$BV6*100) -> 12.19822109 | BX6: 13.21473952 | BY6: 7.115628971 | BZ6: 11.43583227 | CA6: 13.59593393 | CB6: 18.67852605 | CC6: 8.386277001 | CD6: 3.939008895 | CE6: 11.43583227 | CF6: =CF13 -> 84.06599713 | CG6: =CG13 -> 787 | CH6: =IF($CG6=0,0,CH13/$CG6*100) -> 33.92630241 | CI6: 22.36340534 | CJ6: 18.04320203 | CK6: 10.80050826 | CL6: 7.750952986 | CM6: 2.541296061 | CN6: 4.57433291 | CO6: =CO13 -> 1.529960053 | CP6: =CP13 -> 787 | CQ6: =IF($CP6=0,0,CQ13/$CP6*100) -> 33.92630241 | CR6: 10.54637865 | CS6: 19.31385006 | CT6: 10.80050826 | CU6: 7.242693774 | CV6: 3.684879288 | CW6: 2.160101652 | CX6: 12.3252859 | CY6: =CY13 -> 2.805797101 | CZ6: =CZ13 -> 787 | DA6: =IF($CZ6=0,0,DA13/$CZ6*100) -> 60.73697586 | DB6: 20.20330368 | DC6: 7.750952986 | DD6: 2.92249047 | DE6: 2.287166455 | DF6: 6.099110546 | DG6: =DG13 -> 0.5853856563 | DH6: =DH13 -> 520 | DI6: =IF($DH6=0,0,DI13/$DH6*100) -> 39.42307692 | DJ6: 4.807692308 | DK6: 6.153846154 | DL6: 13.84615385 | DM6: 0.7692307692 | DN6: 23.26923077 | DO6: 11.73076923 | DP6: =DP13 -> 39.34899886 | DQ6: =DQ13 -> 787 | DR6: =IF($DQ6=0,0,DR13/$DQ6*100) -> 21.34688691 | DS6: 11.81702668 | DT6: 10.03811944 | DU6: 63.15120712 | DV6: 3.176620076 | DW6: 42.94790343 | DX6: 4.193138501 | DY6: 4.955527319 | DZ6: 9.529860229 | EA6: =EA13 -> 787 | EB6: =IF($EA6=0,0,EB13/$EA6*100) -> 0.127064803 | EC6: 0.2541296061 | ED6: 0.3811944091 | EE6: 2.287166455 | EF6: 8.259212198 | EG6: 81.70266836 | EH6: 6.988564168 | EI6: =EI13 -> 787 | EJ6: =IF($EI6=0,0,EJ13/$EI6*100) -> 0.2541296061 | EK6: 0.7623888183 | EL6: 3.049555273 | EM6: 4.701397713 | EN6: 27.06480305 | EO6: 59.08513342 | EP6: 5.082592122 | EQ6: =EQ13 -> 787 | ER6: =IF($EQ6=0,0,ER13/$EQ6*100) -> 3.684879288 | ES6: 2.033036849 | ET6: 0.7623888183 | EU6: 4.320203304 | EV6: 21.60101652 | EW6: 62.3888183 | EX6: 5.209656925 | EY6: =EY13 -> 787 | EZ6: =IF($EY6=0,0,EZ13/$EY6*100) -> 5.590851334 | FA6: 2.92249047 | FB6: 13.08767471 | FC6: 2.92249047 | FD6: 2.414231258 | FE6: 20.20330368 | FF6: 10.80050826 | FG6: 21.85514612 | FH6: 3.430749682 | FI6: 56.67090216 | FJ6: 4.955527319 | FK6: =FK13 -> 787 | FL6: =IF($FK6=0,0,FL13/$FK6*100) -> 18.29733164 | FM6: 29.2249047 | FN6: 30.36848793 | FO6: 22.23634053 | FP6: 45.9974587 | FQ6: 12.4523507 | FR6: 13.59593393 | FS6: 5.717916137 | FT6: 17.28081321 | FU6: 3.303684879 | FV6: =FV13 -> 787 | FW6: =IF($FV6=0,0,FW13/$FV6*100) -> 41.5501906 | FX6: 32.02033037 | FY6: 20.45743329 | FZ6: 48.41168996 | GA6: 47.77636595 | GB6: 3.176620076 | GC6: 15.88310038 | GD6: 3.303684879 | GE6: =GE13 -> 787 | GF6: =IF($GE6=0,0,GF13/$GE6*100) -> 82.46505718 | GG6: 15.88310038 | GH6: 1.65184244 | GI6: =GI13 -> 649 | GJ6: =IF($GI6=0,0,GJ13/$GI6*100) -> 59.16795069 | GK6: 18.18181818 | GL6: 17.41140216 | GM6: 5.238828968 | GN6: =GN13 -> 649 | GO6: =IF($GN6=0,0,GO13/$GN6*100) -> 63.02003082 | GP6: 16.17873652 | GQ6: 9.861325116 | GR6: 2.927580894 | GS6: 1.540832049 | GT6: 6.471494607 | GU6: =GU13 -> 0.5535420099 | GV6: =GV13 -> 649 | GW6: =IF($GV6=0,0,GW13/$GV6*100) -> 66.71802773 | GX6: 15.5624037 | GY6: 6.779661017 | GZ6: 4.160246533 | HA6: 6.779661017 | HB6: =HB13 -> 0.4975206612 | HC6: =HC13 -> 649 | HD6: =IF($HC6=0,0,HD13/$HC6*100) -> 80.43143297 | HE6: 8.936825886 | HF6: 2.773497689 | HG6: 1.386748844 | HH6: 6.471494607 | HI6: =HI13 -> 0.2009884679 | HJ6: =HJ13 -> 649 | HK6: =IF($HJ6=0,0,HK13/$HJ6*100) -> 22.80431433 | HL6: 26.34822804 | HM6: 13.25115562 | HN6: 39.13713405 | HO6: 29.73805855 | HP6: 25.73189522 | HQ6: 6.471494607 | HR6: 24.65331279 | HS6: 5.855161787 | HT6: =HT13 -> 649 | HU6: =IF($HT6=0,0,HU13/$HT6*100) -> 6.009244992 | HV6: 5.855161787 | HW6: 10.01540832 | HX6: 3.389830508 | HY6: 17.25731895 | HZ6: 25.88597843 | IA6: 36.36363636 | IB6: =IB13 -> 649 | IC6: =IF($IB6=0,0,IC13/$IB6*100) -> 58.85978428 | ID6: 67.79661017 | IE6: 32.04930663 | IF6: 18.18181818 | IG6: 5.701078582 | IH6: =IH13 -> 649 | II6: =IF($IH6=0,0,II13/$IH6*100) -> 7.087827427 | IJ6: 8.628659476 | IK6: 29.58397535 | IL6: 3.081664099 | IM6: 2.311248074 | IN6: 9.707241911 | IO6: 15.25423729 | IP6: 16.94915254 | IQ6: 4.776579353 | IR6: 38.67488444 | IS6: 5.701078582 | IT6: =IT13 -> 649 | IU6: =IF($IT6=0,0,IU13/$IT6*100) -> 52.69645609 | IV6: 48.22804314 | IW6: 38.05855162 | IX6: 36.82588598 | IY6: 34.66872111 | IZ6: 43.605547 | JA6: 19.10631741 | JB6: 18.02773498 | JC6: 2.927580894 | JD6: 22.18798151 | JE6: 3.852080123
B7: 地方部 | C7: =C14 -> 815 | D7: 26.62576687 | E7: 8.098159509 | F7: 18.40490798 | G7: 1.963190184 | H7: 0.3680981595 | I7: 38.03680982 | J7: 2.699386503 | K7: 3.803680982 | L7: 0 | M7: =M14 -> 815 | N7: 30.30674847 | O7: 20.36809816 | P7: 20.36809816 | Q7: 12.63803681 | R7: 11.28834356 | S7: 3.680981595 | T7: 1.349693252 | U7: 2.76119403 | V7: =V14 -> 815 | W7: 16.3190184 | X7: 17.91411043 | Y7: 5.030674847 | Z7: 3.067484663 | AA7: 2.576687117 | AB7: 55.09202454 | AC7: 1.114754098 | AD7: =AD14 -> 815 | AE7: 16.3190184 | AF7: 12.39263804 | AG7: 4.171779141 | AH7: 2.944785276 | AI7: 64.17177914 | AJ7: 0.6151712329 | AK7: =AK14 -> 815 | AL7: 16.44171779 | AM7: 48.09815951 | AN7: 18.65030675 | AO7: 7.607361963 | AP7: 3.435582822 | AQ7: 5.766871166 | AR7: 1.303385417 | AS7: =AS14 -> 815 | AT7: 25.03067485 | AU7: 5.398773006 | AV7: 1.226993865 | AW7: 1.104294479 | AX7: 67.2392638 | AY7: 0.3558052434 | AZ7: =AZ14 -> 815 | BA7: 25.03067485 | BB7: 2.331288344 | BC7: 1.104294479 | BD7: 1.349693252 | BE7: 70.18404908 | BF7: 0.188600823 | BG7: =BG14 -> 815 | BH7: 41.22699387 | BI7: 15.09202454 | BJ7: 7.116564417 | BK7: 4.049079755 | BL7: 48.09815951 | BM7: 13.98773006 | BN7: 2.82208589 | BO7: 5.766871166 | BP7: 1.717791411 | BQ7: 5.398773006 | BR7: 22.45398773 | BS7: 11.53374233 | BT7: 20.73619632 | BU7: 11.65644172 | BV7: =BV14 -> 815 | BW7: 10.9202454 | BX7: 13.25153374 | BY7: 8.343558282 | BZ7: 11.7791411 | CA7: 15.82822086 | CB7: 18.1595092 | CC7: 7.36196319 | CD7: 5.030674847 | CE7: 9.325153374 | CF7: 85.93098782 | CG7: =CG14 -> 815 | CH7: 35.70552147 | CI7: 19.63190184 | CJ7: 16.19631902 | CK7: 9.325153374 | CL7: 9.202453988 | CM7: 4.785276074 | CN7: 5.153374233 | CO7: 1.733505821 | CP7: =CP14 -> 815 | CQ7: 35.70552147 | CR7: 10.06134969 | CS7: 15.95092025 | CT7: 10.18404908 | CU7: 7.73006135 | CV7: 4.785276074 | CW7: 2.944785276 | CX7: 12.63803681 | CY7: 3.002808989 | CZ7: =CZ14 -> 815 | DA7: 61.22699387 | DB7: 20 | DC7: 8.711656442 | DD7: 3.435582822 | DE7: 2.208588957 | DF7: 4.417177914 | DG7: 0.6328626444 | DH7: =DH14 -> 524 | DI7: 37.97709924 | DJ7: 5.916030534 | DK7: 7.633587786 | DL7: 15.64885496 | DM7: 1.526717557 | DN7: 20.61068702 | DO7: 10.6870229 | DP7: 38.12856125 | DQ7: =DQ14 -> 815 | DR7: 33.37423313 | DS7: 11.7791411 | DT7: 4.90797546 | DU7: 76.19631902 | DV7: 3.680981595 | DW7: 21.10429448 | DX7: 5.398773006 | DY7: 4.662576687 | DZ7: 7.116564417 | EA7: =EA14 -> 815 | EB7: 0.245398773 | EC7: 0.245398773 | ED7: 0.1226993865 | EE7: 0.6134969325 | EF7: 7.607361963 | EG7: 83.80368098 | EH7: 7.36196319 | EI7: =EI14 -> 815 | EJ7: 0.736196319 | EK7: 1.226993865 | EL7: 2.82208589 | EM7: 3.312883436 | EN7: 29.57055215 | EO7: 57.17791411 | EP7: 5.153374233 | EQ7: =EQ14 -> 815 | ER7: 3.680981595 | ES7: 1.840490798 | ET7: 2.576687117 | EU7: 4.90797546 | EV7: 22.45398773 | EW7: 59.75460123 | EX7: 4.785276074 | EY7: =EY14 -> 815 | EZ7: 4.171779141 | FA7: 2.699386503 | FB7: 13.6196319 | FC7: 5.27607362 | FD7: 2.699386503 | FE7: 22.82208589 | FF7: 15.82822086 | FG7: 25.39877301 | FH7: 4.539877301 | FI7: 52.7607362 | FJ7: 4.049079755 | FK7: =FK14 -> 815 | FL7: 17.05521472 | FM7: 18.40490798 | FN7: 25.64417178 | FO7: 23.06748466 | FP7: 41.22699387 | FQ7: 10.30674847 | FR7: 15.70552147 | FS7: 9.447852761 | FT7: 20.24539877 | FU7: 3.435582822 | FV7: =FV14 -> 815 | FW7: 42.45398773 | FX7: 30.9202454 | FY7: 31.16564417 | FZ7: 48.58895706 | GA7: 52.88343558 | GB7: 2.699386503 | GC7: 12.7607362 | GD7: 1.963190184 | GE7: =GE14 -> 815 | GF7: 58.52760736 | GG7: 38.77300613 | GH7: 2.699386503 | GI7: =GI14 -> 477 | GJ7: 50.31446541 | GK7: 32.49475891 | GL7: 13.41719078 | GM7: 3.773584906 | GN7: =GN14 -> 477 | GO7: 71.69811321 | GP7: 15.93291405 | GQ7: 4.192872117 | GR7: 1.886792453 | GS7: 1.886792453 | GT7: 4.402515723 | GU7: 0.4298245614 | GV7: =GV14 -> 477 | GW7: 76.10062893 | GX7: 10.27253669 | GY7: 5.241090147 | GZ7: 3.773584906 | HA7: 4.612159329 | HB7: 0.3846153846 | HC7: =HC14 -> 477 | HD7: 87.42138365 | HE7: 5.241090147 | HF7: 2.306079665 | HG7: 1.257861635 | HH7: 3.773584906 | HI7: 0.1481481481 | HJ7: =HJ14 -> 477 | HK7: 15.72327044 | HL7: 9.014675052 | HM7: 11.11111111 | HN7: 22.22222222 | HO7: 13.62683438 | HP7: 22.85115304 | HQ7: 6.07966457 | HR7: 43.81551363 | HS7: 7.756813417 | HT7: =HT14 -> 477 | HU7: 16.14255765 | HV7: 15.30398323 | HW7: 24.73794549 | HX7: 6.498951782 | HY7: 19.28721174 | HZ7: 9.64360587 | IA7: 22.43186583 | IB7: =IB14 -> 477 | IC7: 50.94339623 | ID7: 56.81341719 | IE7: 23.27044025 | IF7: 24.52830189 | IG7: 6.498951782 | IH7: =IH14 -> 477 | II7: 14.88469602 | IJ7: 10.48218029 | IK7: 16.77148847 | IL7: 3.773584906 | IM7: 3.5639413 | IN7: 12.36897275 | IO7: 13.83647799 | IP7: 8.595387841 | IQ7: 6.289308176 | IR7: 40.25157233 | IS7: 4.612159329 | IT7: =IT14 -> 477 | IU7: 47.16981132 | IV7: 44.65408805 | IW7: 31.86582809 | IX7: 29.76939203 | IY7: 28.09224319 | IZ7: 36.47798742 | JA7: 25.99580713 | JB7: 9.014675052 | JC7: 3.354297694 | JD7: 28.5115304 | JE7: 2.096436059
A11: 全 体 | C11: 1602 | D11: 384 | E11: 85 | F11: 241 | G11: 27 | H11: 6 | I11: 746 | J11: 58 | K11: 55 | L11: 0 | M11: 1602 | N11: 533 | O11: 319 | P11: 311 | Q11: 215 | R11: 156 | S11: 51 | T11: 17 | U11: 2.655520505 | V11: 1602 | W11: 272 | X11: 281 | Y11: 106 | Z11: 48 | AA11: 47 | AB11: 848 | AC11: 1.148541114 | AD11: 1602 | AE11: 272 | AF11: 194 | AG11: 86 | AH11: 45 | AI11: 1005 | AJ11: 0.610201005 | AK11: 1602 | AL11: 278 | AM11: 771 | AN11: 285 | AO11: 121 | AP11: 46 | AQ11: 101 | AR11: 1.270486342 | AS11: 1602 | AT11: 417 | AU11: 91 | AV11: 16 | AW11: 13 | AX11: 1065 | AY11: 0.3184357542 | AZ11: 1602 | BA11: 417 | BB11: 31 | BC11: 23 | BD11: 14 | BE11: 1117 | BF11: 0.1536701031 | BG11: 1602 | BH11: 675 | BI11: 224 | BJ11: 89 | BK11: 63 | BL11: 678 | BM11: 168 | BN11: 35 | BO11: 66 | BP11: 29 | BQ11: 68 | BR11: 304 | BS11: 137 | BT11: 317 | BU11: 226 | BV11: 1602 | BW11: 185 | BX11: 212 | BY11: 124 | BZ11: 186 | CA11: 236 | CB11: 295 | CC11: 126 | CD11: 72 | CE11: 166 | CF11: 85.02576602 | CG11: 1602 | CH11: 558 | CI11: 336 | CJ11: 274 | CK11: 161 | CL11: 136 | CM11: 59 | CN11: 78 | CO11: 1.6332021 | CP11: 1602 | CQ11: 558 | CR11: 165 | CS11: 282 | CT11: 168 | CU11: 120 | CV11: 68 | CW11: 41 | CX11: 200 | CY11: 2.905848787 | CZ11: 1602 | DA11: 977 | DB11: 322 | DC11: 132 | DD11: 51 | DE11: 36 | DF11: 84 | DG11: 0.6097496706 | DH11: 1044 | DI11: 404 | DJ11: 56 | DK11: 72 | DL11: 154 | DM11: 12 | DN11: 229 | DO11: 117 | DP11: 38.7328556 | DQ11: 1602 | DR11: 440 | DS11: 189 | DT11: 119 | DU11: 1118 | DV11: 55 | DW11: 510 | DX11: 77 | DY11: 77 | DZ11: 133 | EA11: 1602 | EB11: 3 | EC11: 4 | ED11: 4 | EE11: 23 | EF11: 127 | EG11: 1326 | EH11: 115 | EI11: 1602 | EJ11: 8 | EK11: 16 | EL11: 47 | EM11: 64 | EN11: 454 | EO11: 931 | EP11: 82 | EQ11: 1602 | ER11: 59 | ES11: 31 | ET11: 27 | EU11: 74 | EV11: 353 | EW11: 978 | EX11: 80 | EY11: 1602 | EZ11: 78 | FA11: 45 | FB11: 214 | FC11: 66 | FD11: 41 | FE11: 345 | FF11: 214 | FG11: 379 | FH11: 64 | FI11: 876 | FJ11: 72 | FK11: 1602 | FL11: 283 | FM11: 380 | FN11: 448 | FO11: 363 | FP11: 698 | FQ11: 182 | FR11: 235 | FS11: 122 | FT11: 301 | FU11: 54 | FV11: 1602 | FW11: 673 | FX11: 504 | FY11: 415 | FZ11: 777 | GA11: 807 | GB11: 47 | GC11: 229 | GD11: 42 | GE11: 1602 | GF11: 1126 | GG11: 441 | GH11: 35 | GI11: 1126 | GJ11: 624 | GK11: 273 | GL11: 177 | GM11: 52 | GN11: 1126 | GO11: 751 | GP11: 181 | GQ11: 84 | GR11: 28 | GS11: 19 | GT11: 63 | GU11: 0.5004703669 | GV11: 1126 | GW11: 796 | GX11: 150 | GY11: 69 | GZ11: 45 | HA11: 66 | HB11: 0.4490566038 | HC11: 1126 | HD11: 939 | HE11: 83 | HF11: 29 | HG11: 15 | HH11: 60 | HI11: 0.1782363977 | HJ11: 1126 | HK11: 223 | HL11: 214 | HM11: 139 | HN11: 360 | HO11: 258 | HP11: 276 | HQ11: 71 | HR11: 369 | HS11: 75 | HT11: 1126 | HU11: 116 | HV11: 111 | HW11: 183 | HX11: 53 | HY11: 204 | HZ11: 214 | IA11: 343 | IB11: 1126 | IC11: 625 | ID11: 711 | IE11: 319 | IF11: 235 | IG11: 68 | IH11: 1126 | II11: 117 | IJ11: 106 | IK11: 272 | IL11: 38 | IM11: 32 | IN11: 122 | IO11: 165 | IP11: 151 | IQ11: 61 | IR11: 443 | IS11: 59 | IT11: 1126 | IU11: 567 | IV11: 526 | IW11: 399 | IX11: 381 | IY11: 359 | IZ11: 457 | JA11: 248 | JB11: 160 | JC11: 35 | JD11: 280 | JE11: 35
A13: 都市圏 | B13: 都市部 | C13: 787 | D13: 167 | E13: 19 | F13: 91 | G13: 11 | H13: 3 | I13: 436 | J13: 36 | K13: 24 | L13: 0 | M13: 787 | N13: 286 | O13: 153 | P13: 145 | Q13: 112 | R13: 64 | S13: 21 | T13: 6 | U13: 2.546734955 | V13: 787 | W13: 139 | X13: 135 | Y13: 65 | Z13: 23 | AA13: 26 | AB13: 399 | AC13: 1.180412371 | AD13: 787 | AE13: 139 | AF13: 93 | AG13: 52 | AH13: 21 | AI13: 482 | AJ13: 0.605442623 | AK13: 787 | AL13: 144 | AM13: 379 | AN13: 133 | AO13: 59 | AP13: 18 | AQ13: 54 | AR13: 1.236016371 | AS13: 787 | AT13: 213 | AU13: 47 | AV13: 6 | AW13: 4 | AX13: 517 | AY13: 0.2814814815 | AZ13: 787 | BA13: 213 | BB13: 12 | BC13: 14 | BD13: 3 | BE13: 545 | BF13: 0.1185950413 | BG13: 787 | BH13: 339 | BI13: 101 | BJ13: 31 | BK13: 30 | BL13: 286 | BM13: 54 | BN13: 12 | BO13: 19 | BP13: 15 | BQ13: 24 | BR13: 121 | BS13: 43 | BT13: 148 | BU13: 131 | BV13: 787 | BW13: 96 | BX13: 104 | BY13: 56 | BZ13: 90 | CA13: 107 | CB13: 147 | CC13: 66 | CD13: 31 | CE13: 90 | CF13: 84.06599713 | CG13: 787 | CH13: 267 | CI13: 176 | CJ13: 142 | CK13: 85 | CL13: 61 | CM13: 20 | CN13: 36 | CO13: 1.529960053 | CP13: 787 | CQ13: 267 | CR13: 83 | CS13: 152 | CT13: 85 | CU13: 57 | CV13: 29 | CW13: 17 | CX13: 97 | CY13: 2.805797101 | CZ13: 787 | DA13: 478 | DB13: 159 | DC13: 61 | DD13: 23 | DE13: 18 | DF13: 48 | DG13: 0.5853856563 | DH13: 520 | DI13: 205 | DJ13: 25 | DK13: 32 | DL13: 72 | DM13: 4 | DN13: 121 | DO13: 61 | DP13: 39.34899886 | DQ13: 787 | DR13: 168 | DS13: 93 | DT13: 79 | DU13: 497 | DV13: 25 | DW13: 338 | DX13: 33 | DY13: 39 | DZ13: 75 | EA13: 787 | EB13: 1 | EC13: 2 | ED13: 3 | EE13: 18 | EF13: 65 | EG13: 643 | EH13: 55 | EI13: 787 | EJ13: 2 | EK13: 6 | EL13: 24 | EM13: 37 | EN13: 213 | EO13: 465 | EP13: 40 | EQ13: 787 | ER13: 29 | ES13: 16 | ET13: 6 | EU13: 34 | EV13: 170 | EW13: 491 | EX13: 41 | EY13: 787 | EZ13: 44 | FA13: 23 | FB13: 103 | FC13: 23 | FD13: 19 | FE13: 159 | FF13: 85 | FG13: 172 | FH13: 27 | FI13: 446 | FJ13: 39 | FK13: 787 | FL13: 144 | FM13: 230 | FN13: 239 | FO13: 175 | FP13: 362 | FQ13: 98 | FR13: 107 | FS13: 45 | FT13: 136 | FU13: 26 | FV13: 787 | FW13: 327 | FX13: 252 | FY13: 161 | FZ13: 381 | GA13: 376 | GB13: 25 | GC13: 125 | GD13: 26 | GE13: 787 | GF13: 649 | GG13: 125 | GH13: 13 | GI13: 649 | GJ13: 384 | GK13: 118 | GL13: 113 | GM13: 34 | GN13: 649 | GO13: 409 | GP13: 105 | GQ13: 64 | GR13: 19 | GS13: 10 | GT13: 42 | GU13: 0.5535420099 | GV13: 649 | GW13: 433 | GX13: 101 | GY13: 44 | GZ13: 27 | HA13: 44 | HB13: 0.4975206612 | HC13: 649 | HD13: 522 | HE13: 58 | HF13: 18 | HG13: 9 | HH13: 42 | HI13: 0.2009884679 | HJ13: 649 | HK13: 148 | HL13: 171 | HM13: 86 | HN13: 254 | HO13: 193 | HP13: 167 | HQ13: 42 | HR13: 160 | HS13: 38 | HT13: 649 | HU13: 39 | HV13: 38 | HW13: 65 | HX13: 22 | HY13: 112 | HZ13: 168 | IA13: 236 | IB13: 649 | IC13: 382 | ID13: 440 | IE13: 208 | IF13: 118 | IG13: 37 | IH13: 649 | II13: 46 | IJ13: 56 | IK13: 192 | IL13: 20 | IM13: 15 | IN13: 63 | IO13: 99 | IP13: 110 | IQ13: 31 | IR13: 251 | IS13: 37 | IT13: 649 | IU13: 342 | IV13: 313 | IW13: 247 | IX13: 239 | IY13: 225 | IZ13: 283 | JA13: 124 | JB13: 117 | JC13: 19 | JD13: 144 | JE13: 25
B14: 地方部 | C14: 815 | D14: 217 | E14: 66 | F14: 150 | G14: 16 | H14: 3 | I14: 310 | J14: 22 | K14: 31 | L14: 0 | M14: 815 | N14: 247 | O14: 166 | P14: 166 | Q14: 103 | R14: 92 | S14: 30 | T14: 11 | U14: 2.76119403 | V14: 815 | W14: 133 | X14: 146 | Y14: 41 | Z14: 25 | AA14: 21 | AB14: 449 | AC14: 1.114754098 | AD14: 815 | AE14: 133 | AF14: 101 | AG14: 34 | AH14: 24 | AI14: 523 | AJ14: 0.6151712329 | AK14: 815 | AL14: 134 | AM14: 392 | AN14: 152 | AO14: 62 | AP14: 28 | AQ14: 47 | AR14: 1.303385417 | AS14: 815 | AT14: 204 | AU14: 44 | AV14: 10 | AW14: 9 | AX14: 548 | AY14: 0.3558052434 | AZ14: 815 | BA14: 204 | BB14: 19 | BC14: 9 | BD14: 11 | BE14: 572 | BF14: 0.188600823 | BG14: 815 | BH14: 336 | BI14: 123 | BJ14: 58 | BK14: 33 | BL14: 392 | BM14: 114 | BN14: 23 | BO14: 47 | BP14: 14 | BQ14: 44 | BR14: 183 | BS14: 94 | BT14: 169 | BU14: 95 | BV14: 815 | BW14: 89 | BX14: 108 | BY14: 68 | BZ14: 96 | CA14: 129 | CB14: 148 | CC14: 60 | CD14: 41 | CE14: 76 | CF14: 85.93098782 | CG14: 815 | CH14: 291 | CI14: 160 | CJ14: 132 | CK14: 76 | CL14: 75 | CM14: 39 | CN14: 42 | CO14: 1.733505821 | CP14: 815 | CQ14: 291 | CR14: 82 | CS14: 130 | CT14: 83 | CU14: 63 | CV14: 39 | CW14: 24 | CX14: 103 | CY14: 3.002808989 | CZ14: 815 | DA14: 499 | DB14: 163 | DC14: 71 | DD14: 28 | DE14: 18 | DF14: 36 | DG14: 0.6328626444 | DH14: 524 | DI14: 199 | DJ14: 31 | DK14: 40 | DL14: 82 | DM14: 8 | DN14: 108 | DO14: 56 | DP14: 38.12856125 | DQ14: 815 | DR14: 272 | DS14: 96 | DT14: 40 | DU14: 621 | DV14: 30 | DW14: 172 | DX14: 44 | DY14: 38 | DZ14: 58 | EA14: 815 | EB14: 2 | EC14: 2 | ED14: 1 | EE14: 5 | EF14: 62 | EG14: 683 | EH14: 60 | EI14: 815 | EJ14: 6 | EK14: 10 | EL14: 23 | EM14: 27 | EN14: 241 | EO14: 466 | EP14: 42 | EQ14: 815 | ER14: 30 | ES14: 15 | ET14: 21 | EU14: 40 | EV14: 183 | EW14: 487 | EX14: 39 | EY14: 815 | EZ14: 34 | FA14: 22 | FB14: 111 | FC14: 43 | FD14: 22 | FE14: 186 | FF14: 129 | FG14: 207 | FH14: 37 | FI14: 430 | FJ14: 33 | FK14: 815 | FL14: 139 | FM14: 150 | FN14: 209 | FO14: 188 | FP14: 336 | FQ14: 84 | FR14: 128 | FS14: 77 | FT14: 165 | FU14: 28 | FV14: 815 | FW14: 346 | FX14: 252 | FY14: 254 | FZ14: 396 | GA14: 431 | GB14: 22 | GC14: 104 | GD14: 16 | GE14: 815 | GF14: 477 | GG14: 316 | GH14: 22 | GI14: 477 | GJ14: 240 | GK14: 155 | GL14: 64 | GM14: 18 | GN14: 477 | GO14: 342 | GP14: 76 | GQ14: 20 | GR14: 9 | GS14: 9 | GT14: 21 | GU14: 0.4298245614 | GV14: 477 | GW14: 363 | GX14: 49 | GY14: 25 | GZ14: 18 | HA14: 22 | HB14: 0.3846153846 | HC14: 477 | HD14: 417 | HE14: 25 | HF14: 11 | HG14: 6 | HH14: 18 | HI14: 0.1481481481 | HJ14: 477 | HK14: 75 | HL14: 43 | HM14: 53 | HN14: 106 | HO14: 65 | HP14: 109 | HQ14: 29 | HR14: 209 | HS14: 37 | HT14: 477 | HU14: 77 | HV14: 73 | HW14: 118 | HX14: 31 | HY14: 92 | HZ14: 46 | IA14: 107 | IB14: 477 | IC14: 243 | ID14: 271 | IE14: 111 | IF14: 117 | IG14: 31 | IH14: 477 | II14: 71 | IJ14: 50 | IK14: 80 | IL14: 18 | IM14: 17 | IN14: 59 | IO14: 66 | IP14: 41 | IQ14: 30 | IR14: 192 | IS14: 22 | IT14: 477 | IU14: 225 | IV14: 213 | IW14: 152 | IX14: 142 | IY14: 134 | IZ14: 174 | JA14: 124 | JB14: 43 | JC14: 16 | JD14: 136 | JE14: 10

Sheet 都市圏とのクロス問7-1
C1: 問７(4) 初回相談時点で利用者がいた場所
C3: 全体 | D3: 自宅 | H3: 有料老人ホーム・サ高住・認知症高齢者グループホーム | I3: 介護保険施設等 | J3: 医療機関 | K3: その他 | L3: 不明 | M3: 無回答
E4: 自宅（独居） | F4: 自宅（夫婦のみ） | G4: 自宅（その他家族と同居）
A5: 全 体 | C5: =C12 -> 1863 | D5: 1194 | E5: 627 | F5: 233 | G5: 334 | H5: 112 | I5: 100 | J5: 410 | K5: 47 | L5: 0 | M5: 0
C6: =IF(SUM(E6:M6)>100,"－",SUM(E6:M6)) -> 100 | D6: =D5/$C5*100 -> 64.09017713 | E6: 33.65539452 | F6: 12.50670961 | G6: 17.928073 | H6: 6.01180891 | I6: 5.367686527 | J6: 22.00751476 | K6: 2.522812668 | L6: 0 | M6: 0
A7: 都市圏 | B7: 都市部 | C7: =C14 -> 841 | D7: =IF($C7=0,0,D14/$C7*100) -> 71.22473246 | E7: 38.76337693 | F7: 14.74435196 | G7: 17.71700357 | H7: 5.350772889 | I7: 3.329369798 | J7: 17.83590963 | K7: 2.25921522 | L7: 0 | M7: 0
B8: 地方部 | C8: =C15 -> 1022 | D8: 58.21917808 | E8: 29.45205479 | F8: 10.66536204 | G8: 18.10176125 | H8: 6.555772994 | I8: 7.045009785 | J8: 25.44031311 | K8: 2.739726027 | L8: 0 | M8: 0
A12: 全 体 | C12: 1863 | D12: =E12+F12+G12 -> 1194 | E12: 627 | F12: 233 | G12: 334 | H12: 112 | I12: 100 | J12: 410 | K12: 47 | L12: 0 | M12: 0
A14: 都市圏 | B14: 都市部 | C14: 841 | D14: =E14+F14+G14 -> 599 | E14: 326 | F14: 124 | G14: 149 | H14: 45 | I14: 28 | J14: 150 | K14: 19 | L14: 0 | M14: 0
B15: 地方部 | C15: 1022 | D15: 595 | E15: 301 | F15: 109 | G15: 185 | H15: 67 | I15: 72 | J15: 260 | K15: 28 | L15: 0 | M15: 0

Sheet 都市圏とのクロス問7-2
C1: 問７(1) 初回相談時の利用者の年齢 | O1: 問７(2) 初回相談時の利用者の要介護度 | AA1: 問７(3) 生活保護受給状況 | AE1: 問７(4) 初回相談時点で利用者がいた場所 | AO1: 問７(5) 主たる相談者の属性 | AY1: 問７(6) 施設の紹介方法 | BF1: 問７SQ(6)-1 利用者に情報提供した施設の数 | BN1: 問７SQ(6)-2 利用者に情報提供した施設について実施した内容（複数回答） | BY1: 問７SQ(6)-3 利用者に情報提供する施設を選ぶ際に重視した点（複数回答） | CI1: 問７SQ(6)-4 利用者に案内した紹介事業者の数 | CO1: 問７SQ(6)-5 紹介事業者を利用者に案内する際に実施した内容（複数回答） | CV1: 問７SQ(6)-6 利用者に案内する紹介事業者を選ぶ際に意識した点（複数回答） | DE1: 問７(7) 初回の相談から成約までの期間 | DO1: 問７(8) 入居先の立地エリア | DT1: 問７(9) 入居先の施設種別 | DY1: 問７(10) 入居先の入居一時金の金額 | EH1: 問７(11) 入居先の月額費用 | EQ1: 問７(12) 入居先の紹介元 | EY1: 問７(13) 入居後の担当状況
C3: 全体 | D3: 65歳未満 | E3: 65～69歳 | F3: 70～74歳 | G3: 75～79歳 | H3: 80～84歳 | I3: 85～89歳 | J3: 90～94歳 | K3: 95～99歳 | L3: 100歳以上 | M3: 無回答 | N3: 平均 (歳) | O3: 全体 | P3: 自立 | Q3: 要支援１ | R3: 要支援２ | S3: 要介護１ | T3: 要介護２ | U3: 要介護３ | V3: 要介護４ | W3: 要介護５ | X3: 不明 | Y3: 無回答 | Z3: 平均 要介護度 | AA3: 全体 | AB3: 受給している | AC3: 受給していない | AD3: 無回答 | AE3: 全体 | AF3: 自宅（独居） | AG3: 自宅（夫婦のみ） | AH3: 自宅（その他家族と同居） | AI3: 有料老人ホーム・サ高住・認知症高齢者グループホーム | AJ3: 介護保険施設等 | AK3: 医療機関 | AL3: その他 | AM3: 不明 | AN3: 無回答 | AO3: 全体 | AP3: 本人 | AQ3: 配偶者 | AR3: 同居の子ども | AS3: 別居の子ども | AT3: その他親族 | AU3: 友人 | AV3: その他 | AW3: 不明 | AX3: 無回答 | AY3: 全体 | AZ3: 貴事業所（ケアマネジャー）が直接、施設を紹介した | BA3: 紹介事業者を紹介した | BB3: 何も紹介していない（利用者が自力で探した等） | BC3: 不明 | BD3: その他 | BE3: 無回答 | BF3: 全体 | BG3: １施設 | BH3: ２施設 | BI3: ３施設 | BJ3: ４施設 | BK3: ５施設以上 | BL3: 無回答 | BM3: 平均 (施設) | BN3: 全体 | BO3: 資料を渡す（送る） | BP3: 施設の説明をする | BQ3: 施設担当者に連絡をする | BR3: 施設担当者と相談者を引き合わせる | BS3: 施設見学の斡旋をする | BT3: 施設見学に同行する | BU3: 契約・入居手続きへの立会い | BV3: 入居後のフォロー | BW3: その他 | BX3: 無回答 | BY3: 全体 | BZ3: 立地（本人・家族居住地の近隣にある施設か） | CA3: 居室面積 | CB3: 運営母体 | CC3: 提供されるケアの内容（利用者の心身の状態に合った必要なケアが受けられるか（医療を含む）） | CD3: 従業員の質 | CE3: 過去の受け入れ実績 | CF3: 紹介手数料の金額 | CG3: その他 | CH3: 無回答 | CI3: 全体 | CJ3: １社 | CK3: ２社 | CL3: ３社以上 | CM3: 無回答 | CN3: 平均 (社) | CO3: 全体 | CP3: 紹介事業者の資料を渡す（送る） | CQ3: 紹介事業者の担当者に連絡する | CR3: 紹介事業者に利用者の個人情報を伝える | CS3: 紹介事業者と利用者を引き合わせる | CT3: その他 | CU3: 無回答 | CV3: 全体 | CW3: 利用者の希望に沿った立地の施設情報を有しているか | CX3: 利用者の予算に合った施設情報を有しているか | CY3: 過去に取引した実績があるか | CZ3: 素早く対応してくれるか | DA3: 施設見学に同行してくれるか | DB3: 担当者の質が良いか | DC3: その他 | DD3: 無回答 | DE3: 全体 | DF3: １か月未満 | DG3: １か月～２か月未満 | DH3: ２か月～３か月未満 | DI3: ３か月～半年未満 | DJ3: 半年～１年未満 | DK3: １年～２年未満 | DL3: ２年以上 | DM3: 無回答 | DN3: 平均 (か月) | DO3: 全体 | DP3: 同一の市区町村内 | DQ3: 同一の都道府県内（市区町村は異なる） | DR3: 別の都道府県 | DS3: 無回答 | DT3: 全体 | DU3: 介護付有料老人ホーム（特定施設） | DV3: 住宅型有料老人ホーム | DW3: サービス付き高齢者向け住宅 | DX3: 無回答 | DY3: 全体 | DZ3: ０円 | EA3: 20万円未満 | EB3: 20～50万円未満 | EC3: 50～100万円未満 | ED3: 100万円以上 | EE3: 不明 | EF3: 無回答 | EG3: 平均 (万円) | EH3: 全体 | EI3: 10万円未満 | EJ3: 10～15万円未満 | EK3: 15～20万円未満 | EL3: 20～30万円未満 | EM3: 30万円以上 | EN3: 不明 | EO3: エラー・無回答 | EP3: 平均 (万円) | EQ3: 全体 | ER3: 利用者が自力で探した | ES3: 居宅介護支援事業所（貴事業所）からの紹介 | ET3: 病院からの紹介 | EU3: 紹介事業者からの紹介 | EV3: その他 | EW3: 不明 | EX3: 無回答 | EY3: 全体 | EZ3: 引き続き担当している | FA3: 担当終了している | FB3: 無回答
A4: 全 体 | C4: =C11 -> 1863 | D4: 29 | E4: 41 | F4: 113 | G4: 218 | H4: 380 | I4: 541 | J4: 385 | K4: 107 | L4: 12 | M4: 37 | N4: 84.60898138 | O4: 1863 | P4: 111 | Q4: 156 | R4: 165 | S4: 504 | T4: 417 | U4: 227 | V4: 183 | W4: 86 | X4: 9 | Y4: 5 | Z4: =SUM(Q11*0.375,R11,S11,T11*2,U11*3,V11*4,W11*5)/SUM(P11:W11) -> 1.841265549 | AA4: 1863 | AB4: 213 | AC4: 1648 | AD4: 2 | AE4: 1863 | AF4: 627 | AG4: 233 | AH4: 334 | AI4: 112 | AJ4: 100 | AK4: 410 | AL4: 47 | AM4: 0 | AN4: 0 | AO4: 1863 | AP4: 160 | AQ4: 147 | AR4: 401 | AS4: 769 | AT4: 235 | AU4: 10 | AV4: 123 | AW4: 1 | AX4: 17 | AY4: 1863 | AZ4: 849 | BA4: 258 | BB4: 418 | BC4: 11 | BD4: 313 | BE4: 14 | BF4: 849 | BG4: 209 | BH4: 250 | BI4: 234 | BJ4: 50 | BK4: 56 | BL4: 50 | BM4: 2.481852315 | BN4: 849 | BO4: 553 | BP4: 623 | BQ4: 545 | BR4: 400 | BS4: 322 | BT4: 255 | BU4: 214 | BV4: 258 | BW4: 20 | BX4: 22 | BY4: =BY11 -> 849 | BZ4: 555 | CA4: 93 | CB4: 127 | CC4: 653 | CD4: 205 | CE4: 153 | CF4: 22 | CG4: 110 | CH4: 25 | CI4: 258 | CJ4: 149 | CK4: 50 | CL4: 31 | CM4: 28 | CN4: 1.573913043 | CO4: 258 | CP4: 119 | CQ4: 152 | CR4: 107 | CS4: 75 | CT4: 8 | CU4: 27 | CV4: 258 | CW4: 113 | CX4: 122 | CY4: 58 | CZ4: 124 | DA4: 74 | DB4: 74 | DC4: 14 | DD4: 26 | DE4: 1863 | DF4: 136 | DG4: 698 | DH4: 447 | DI4: 257 | DJ4: 93 | DK4: 38 | DL4: 21 | DM4: 173 | DN4: 2.675500986 | DO4: 1863 | DP4: 1291 | DQ4: 411 | DR4: 126 | DS4: 35 | DT4: 1863 | DU4: 374 | DV4: 799 | DW4: 643 | DX4: 47 | DY4: 1863 | DZ4: 1013 | EA4: 216 | EB4: 97 | EC4: 18 | ED4: 39 | EE4: 330 | EF4: 150 | EG4: 20.88799711 | EH4: 1863 | EI4: 147 | EJ4: 586 | EK4: =EK11 -> 493 | EL4: 255 | EM4: 43 | EN4: 137 | EO4: 202 | EP4: 15.21582021 | EQ4: 1863 | ER4: 274 | ES4: 793 | ET4: 259 | EU4: 211 | EV4: 237 | EW4: 20 | EX4: 69 | EY4: 1863 | EZ4: 1076 | FA4: 728 | FB4: 59
C5: =IF(SUM(D5:M5)>100,"－",SUM(D5:M5)) -> 100 | D5: =D4/$C4*100 -> 1.556629093 | E5: 2.200751476 | F5: 6.065485776 | G5: 11.70155663 | H5: 20.3972088 | I5: 29.03918411 | J5: 20.66559313 | K5: 5.743424584 | L5: 0.6441223833 | M5: 1.986044015 | O5: =IF(SUM(P5:Y5)>100,"－",SUM(P5:Y5)) -> 100 | P5: =P4/$O4*100 -> 5.958132045 | Q5: 8.373590982 | R5: 8.85668277 | S5: 27.0531401 | T5: 22.38325282 | U5: 12.18464842 | V5: 9.822866345 | W5: 4.616210413 | X5: 0.4830917874 | Y5: 0.2683843264 | AA5: =IF(SUM(AB5:AD5)>100,"－",SUM(AB5:AD5)) -> 100 | AB5: =AB4/$AA4*100 -> 11.4331723 | AC5: 88.45947397 | AD5: 0.1073537305 | AE5: =IF(SUM(AF5:AN5)>100,"－",SUM(AF5:AN5)) -> 100 | AF5: =AF4/$AE4*100 -> 33.65539452 | AG5: 12.50670961 | AH5: 17.928073 | AI5: 6.01180891 | AJ5: 5.367686527 | AK5: 22.00751476 | AL5: 2.522812668 | AM5: 0 | AN5: 0 | AO5: =IF(SUM(AP5:AX5)>100,"－",SUM(AP5:AX5)) -> 100 | AP5: =AP4/$AO4*100 -> 8.588298443 | AQ5: 7.890499195 | AR5: 21.52442297 | AS5: 41.27750939 | AT5: 12.61406334 | AU5: 0.5367686527 | AV5: 6.602254428 | AW5: 0.05367686527 | AX5: 0.9125067096 | AY5: =IF(SUM(AZ5:BE5)>100,"－",SUM(AZ5:BE5)) -> 100 | AZ5: =AZ4/$AY4*100 -> 45.57165862 | BA5: 13.84863124 | BB5: 22.43692968 | BC5: 0.590445518 | BD5: 16.80085883 | BE5: 0.7514761138 | BF5: =IF(SUM(BG5:BL5)>100,"－",SUM(BG5:BL5)) -> 100 | BG5: =BG4/$BF4*100 -> 24.6171967 | BH5: 29.44640754 | BI5: 27.56183746 | BJ5: 5.889281508 | BK5: 6.595995289 | BL5: 5.889281508 | BN5: =IF(SUM(BO5:BX5)>100,"－",SUM(BO5:BX5)) -> － | BO5: =BO4/$BN4*100 -> 65.13545347 | BP5: 73.38044759 | BQ5: 64.19316843 | BR5: 47.11425206 | BS5: 37.92697291 | BT5: 30.03533569 | BU5: 25.20612485 | BV5: 30.38869258 | BW5: 2.355712603 | BX5: 2.591283863 | BY5: =IF(SUM(BZ5:CH5)>100,"－",SUM(BZ5:CH5)) -> － | BZ5: =BZ4/$BY4*100 -> 65.37102473 | CA5: 10.9540636 | CB5: 14.95877503 | CC5: 76.91401649 | CD5: 24.14605418 | CE5: 18.02120141 | CF5: 2.591283863 | CG5: 12.95641932 | CH5: 2.944640754 | CI5: =IF(SUM(CJ5:CM5)>100,"－",SUM(CJ5:CM5)) -> 100 | CJ5: =CJ4/$CI4*100 -> 57.75193798 | CK5: 19.37984496 | CL5: 12.01550388 | CM5: 10.85271318 | CO5: =IF(SUM(CP5:CU5)>100,"－",SUM(CP5:CU5)) -> － | CP5: =CP4/$CO4*100 -> 46.12403101 | CQ5: 58.91472868 | CR5: 41.47286822 | CS5: 29.06976744 | CT5: 3.100775194 | CU5: 10.46511628 | CV5: =IF(SUM(CW5:DD5)>100,"－",SUM(CW5:DD5)) -> － | CW5: =CW4/$CV4*100 -> 43.79844961 | CX5: 47.28682171 | CY5: 22.48062016 | CZ5: 48.0620155 | DA5: 28.68217054 | DB5: 28.68217054 | DC5: 5.426356589 | DD5: 10.07751938 | DE5: =IF(SUM(DF5:DM5)>100,"－",SUM(DF5:DM5)) -> 100 | DF5: =DF4/$DE4*100 -> 7.300053677 | DG5: 37.46645196 | DH5: 23.99355878 | DI5: 13.79495437 | DJ5: 4.99194847 | DK5: 2.03972088 | DL5: 1.127214171 | DM5: 9.286097692 | DO5: =IF(SUM(DP5:DS5)>100,"－",SUM(DP5:DS5)) -> 100 | DP5: =DP4/$DO4*100 -> 69.29683306 | DQ5: 22.06119163 | DR5: 6.763285024 | DS5: 1.878690284 | DT5: =IF(SUM(DU5:DX5)>100,"－",SUM(DU5:DX5)) -> 100 | DU5: =DU4/$DT4*100 -> 20.07514761 | DV5: 42.88781535 | DW5: 34.51422437 | DX5: 2.522812668 | DY5: =IF(SUM(DZ5:EF5)>100,"－",SUM(DZ5:EF5)) -> 100 | DZ5: =DZ4/$DY4*100 -> 54.37466452 | EA5: 11.5942029 | EB5: 5.206655931 | EC5: 0.9661835749 | ED5: 2.093397746 | EE5: 17.71336554 | EF5: 8.051529791 | EH5: =IF(SUM(EI5:EO5)>100,"－",SUM(EI5:EO5)) -> 100 | EI5: =EI4/$EH4*100 -> 7.890499195 | EJ5: 31.45464305 | EK5: 26.46269458 | EL5: 13.68760064 | EM5: 2.308105207 | EN5: 7.353730542 | EO5: 10.84272678 | EQ5: =IF(SUM(ER5:EX5)>100,"－",SUM(ER5:EX5)) -> 100 | ER5: =ER4/$EQ4*100 -> 14.70746108 | ES5: 42.56575416 | ET5: 13.90230811 | EU5: 11.32581857 | EV5: 12.72141707 | EW5: 1.073537305 | EX5: 3.703703704 | EY5: =IF(SUM(EZ5:FB5)>100,"－",SUM(EZ5:FB5)) -> 100 | EZ5: =EZ4/$EY4*100 -> 57.75630703 | FA5: 39.07675792 | FB5: 3.166935051
A6: 都市圏 | B6: 都市部 | C6: =C13 -> 841 | D6: =IF($C6=0,0,D13/$C6*100) -> 1.189060642 | E6: 2.615933413 | F6: 7.134363853 | G6: 11.2960761 | H6: 20.33293698 | I6: 27.94292509 | J6: 21.16527943 | K6: 5.469678954 | L6: 0.4756242568 | M6: 2.378121284 | N6: =N13 -> 84.40194884 | O6: =O13 -> 841 | P6: =IF($O6=0,0,P13/$O6*100) -> 6.420927467 | Q6: 9.512485137 | R6: 10.70154578 | S6: 26.04042806 | T6: 20.9274673 | U6: 12.24732461 | V6: 8.561236623 | W6: 4.756242568 | X6: 0.4756242568 | Y6: 0.3567181926 | Z6: =SUM(Q13*0.375,R13,S13,T13*2,U13*3,V13*4,W13*5)/SUM(P13:W13) -> 1.784172662 | AA6: =AA13 -> 841 | AB6: =IF($AA6=0,0,AB13/$AA6*100) -> 12.60404281 | AC6: 87.27705113 | AD6: 0.1189060642 | AE6: =AE13 -> 841 | AF6: =IF($AE6=0,0,AF13/$AE6*100) -> 38.76337693 | AG6: 14.74435196 | AH6: 17.71700357 | AI6: 5.350772889 | AJ6: 3.329369798 | AK6: 17.83590963 | AL6: 2.25921522 | AM6: 0 | AN6: 0 | AO6: =AO13 -> 841 | AP6: =IF($AO6=0,0,AP13/$AO6*100) -> 9.988109394 | AQ6: 8.561236623 | AR6: 20.45184304 | AS6: 39.59571938 | AT6: 12.24732461 | AU6: 0.9512485137 | AV6: 6.77764566 | AW6: 0 | AX6: 1.426872771 | AY6: =AY13 -> 841 | AZ6: =IF($AY6=0,0,AZ13/$AY6*100) -> 34.95838288 | BA6: 21.87871581 | BB6: 25.20808561 | BC6: 0.8323424495 | BD6: 15.57669441 | BE6: 1.545778835 | BF6: =BF13 -> 294 | BG6: =IF($BF6=0,0,BG13/$BF6*100) -> 24.82993197 | BH6: 30.27210884 | BI6: 26.19047619 | BJ6: 6.462585034 | BK6: 5.782312925 | BL6: 6.462585034 | BM6: =BM13 -> 2.545454545 | BN6: =BN13 -> 294 | BO6: =IF($BN6=0,0,BO13/$BN6*100) -> 68.70748299 | BP6: 67.00680272 | BQ6: 59.86394558 | BR6: 50.68027211 | BS6: 35.37414966 | BT6: 31.29251701 | BU6: 25.51020408 | BV6: 27.55102041 | BW6: 3.401360544 | BX6: 1.020408163 | BY6: =BY13 -> 294 | BZ6: =IF($BY6=0,0,BZ13/$BY6*100) -> 65.98639456 | CA6: 14.28571429 | CB6: 18.02721088 | CC6: 70.06802721 | CD6: 21.42857143 | CE6: 15.30612245 | CF6: 2.721088435 | CG6: 13.26530612 | CH6: 1.700680272 | CI6: =CI13 -> 184 | CJ6: =IF($CI6=0,0,CJ13/$CI6*100) -> 53.80434783 | CK6: 23.91304348 | CL6: 11.95652174 | CM6: 10.32608696 | CN6: =CN13 -> 1.545454545 | CO6: =CO13 -> 184 | CP6: =IF($CO6=0,0,CP13/$CO6*100) -> 44.56521739 | CQ6: 58.15217391 | CR6: 40.2173913 | CS6: 30.97826087 | CT6: 3.260869565 | CU6: 9.782608696 | CV6: =CV13 -> 184 | CW6: =IF($CV6=0,0,CW13/$CV6*100) -> 41.30434783 | CX6: 46.73913043 | CY6: 24.45652174 | CZ6: 52.17391304 | DA6: 31.52173913 | DB6: 30.43478261 | DC6: 5.434782609 | DD6: 9.782608696 | DE6: =DE13 -> 841 | DF6: =IF($DE6=0,0,DF13/$DE6*100) -> 7.372175981 | DG6: 32.69916766 | DH6: 26.39714625 | DI6: 15.57669441 | DJ6: 5.112960761 | DK6: 1.902497027 | DL6: 0.8323424495 | DM6: 10.10701546 | DN6: =DN13 -> 2.704942681 | DO6: =DO13 -> 841 | DP6: =IF($DO6=0,0,DP13/$DO6*100) -> 63.85255648 | DQ6: 23.66230678 | DR6: 10.93935791 | DS6: 1.545778835 | DT6: =DT13 -> 841 | DU6: =IF($DT6=0,0,DU13/$DT6*100) -> 29.96432818 | DV6: 31.27229489 | DW6: 36.02853746 | DX6: 2.734839477 | DY6: =DY13 -> 841 | DZ6: =IF($DY6=0,0,DZ13/$DY6*100) -> 42.56837099 | EA6: 10.34482759 | EB6: 6.302021403 | EC6: 1.189060642 | ED6: 3.329369798 | EE6: 25.921522 | EF6: 10.34482759 | EG6: =EG13 -> 44.64141791 | EH6: =EH13 -> 841 | EI6: =IF($EH6=0,0,EI13/$EH6*100) -> 1.426872771 | EJ6: 21.28418549 | EK6: 25.08917955 | EL6: 20.21403092 | EM6: 4.637336504 | EN6: 12.36623068 | EO6: 14.98216409 | EP6: =EP13 -> 17.77553191 | EQ6: =EQ13 -> 841 | ER6: =IF($EQ6=0,0,ER13/$EQ6*100) -> 16.2901308 | ES6: 34.24494649 | ET6: 11.41498216 | EU6: 17.83590963 | EV6: 15.21997622 | EW6: 1.545778835 | EX6: 3.448275862 | EY6: =EY13 -> 841 | EZ6: =IF($EY6=0,0,EZ13/$EY6*100) -> 43.16290131 | FA6: 54.10225922 | FB6: 2.734839477
B7: 地方部 | C7: =C14 -> 1022 | D7: 1.859099804 | E7: 1.859099804 | F7: 5.18590998 | G7: 12.03522505 | H7: 20.45009785 | I7: 29.94129159 | J7: 20.25440313 | K7: 5.968688845 | L7: 0.782778865 | M7: 1.663405088 | N7: 84.77810945 | O7: =O14 -> 1022 | P7: 5.577299413 | Q7: 7.436399217 | R7: 7.338551859 | S7: 27.88649706 | T7: 23.58121331 | U7: 12.13307241 | V7: 10.86105675 | W7: 4.500978474 | X7: 0.4892367906 | Y7: 0.1956947162 | Z7: 1.88817734 | AA7: =AA14 -> 1022 | AB7: 10.46966732 | AC7: 89.43248532 | AD7: 0.09784735812 | AE7: =AE14 -> 1022 | AF7: 29.45205479 | AG7: 10.66536204 | AH7: 18.10176125 | AI7: 6.555772994 | AJ7: 7.045009785 | AK7: 25.44031311 | AL7: 2.739726027 | AM7: 0 | AN7: 0 | AO7: =AO14 -> 1022 | AP7: 7.436399217 | AQ7: 7.338551859 | AR7: 22.40704501 | AS7: 42.66144814 | AT7: 12.91585127 | AU7: 0.1956947162 | AV7: 6.457925636 | AW7: 0.09784735812 | AX7: 0.4892367906 | AY7: =AY14 -> 1022 | AZ7: 54.30528376 | BA7: 7.240704501 | BB7: 20.15655577 | BC7: 0.3913894325 | BD7: 17.80821918 | BE7: 0.09784735812 | BF7: =BF14 -> 555 | BG7: 24.5045045 | BH7: 29.00900901 | BI7: 28.28828829 | BJ7: 5.585585586 | BK7: 7.027027027 | BL7: 5.585585586 | BM7: 2.448473282 | BN7: =BN14 -> 555 | BO7: 63.24324324 | BP7: 76.75675676 | BQ7: 66.48648649 | BR7: 45.22522523 | BS7: 39.27927928 | BT7: 29.36936937 | BU7: 25.04504505 | BV7: 31.89189189 | BW7: 1.801801802 | BX7: 3.423423423 | BY7: =BY14 -> 555 | BZ7: 65.04504505 | CA7: 9.189189189 | CB7: 13.33333333 | CC7: 80.54054054 | CD7: 25.58558559 | CE7: 19.45945946 | CF7: 2.522522523 | CG7: 12.79279279 | CH7: 3.603603604 | CI7: =CI14 -> 74 | CJ7: 67.56756757 | CK7: 8.108108108 | CL7: 12.16216216 | CM7: 12.16216216 | CN7: 1.646153846 | CO7: =CO14 -> 74 | CP7: 50 | CQ7: 60.81081081 | CR7: 44.59459459 | CS7: 24.32432432 | CT7: 2.702702703 | CU7: 12.16216216 | CV7: =CV14 -> 74 | CW7: 50 | CX7: 48.64864865 | CY7: 17.56756757 | CZ7: 37.83783784 | DA7: 21.62162162 | DB7: 24.32432432 | DC7: 5.405405405 | DD7: 10.81081081 | DE7: =DE14 -> 1022 | DF7: 7.240704501 | DG7: 41.38943249 | DH7: 22.01565558 | DI7: 12.32876712 | DJ7: 4.892367906 | DK7: 2.152641879 | DL7: 1.369863014 | DM7: 8.610567515 | DN7: 2.651670236 | DO7: =DO14 -> 1022 | DP7: 73.77690802 | DQ7: 20.74363992 | DR7: 3.326810176 | DS7: 2.152641879 | DT7: =DT14 -> 1022 | DU7: 11.93737769 | DV7: 52.44618395 | DW7: 33.26810176 | DX7: 2.348336595 | DY7: =DY14 -> 1022 | DZ7: 64.09001957 | EA7: 12.6223092 | EB7: 4.305283757 | EC7: 0.782778865 | ED7: 1.076320939 | EE7: 10.95890411 | EF7: 6.164383562 | EG7: 5.856316411 | EH7: =EH14 -> 1022 | EI7: 13.20939335 | EJ7: 39.82387476 | EK7: 27.59295499 | EL7: 8.31702544 | EM7: 0.3913894325 | EN7: 3.228962818 | EO7: 7.436399217 | EP7: 13.50280394 | EQ7: =EQ14 -> 1022 | ER7: 13.40508806 | ES7: 49.41291585 | ET7: 15.94911937 | EU7: 5.968688845 | EV7: 10.66536204 | EW7: 0.6849315068 | EX7: 3.913894325 | EY7: =EY14 -> 1022 | EZ7: 69.76516634 | FA7: 26.71232877 | FB7: 3.522504892
A11: 全 体 | C11: 1863 | D11: 29 | E11: 41 | F11: 113 | G11: 218 | H11: 380 | I11: 541 | J11: 385 | K11: 107 | L11: 12 | M11: 37 | N11: 84.60898138 | O11: 1863 | P11: 111 | Q11: 156 | R11: 165 | S11: 504 | T11: 417 | U11: 227 | V11: 183 | W11: 86 | X11: 9 | Y11: 5 | AA11: 1863 | AB11: 213 | AC11: 1648 | AD11: 2 | AE11: 1863 | AF11: 627 | AG11: 233 | AH11: 334 | AI11: 112 | AJ11: 100 | AK11: 410 | AL11: 47 | AM11: 0 | AN11: 0 | AO11: 1863 | AP11: 160 | AQ11: 147 | AR11: 401 | AS11: 769 | AT11: 235 | AU11: 10 | AV11: 123 | AW11: 1 | AX11: 17 | AY11: 1863 | AZ11: 849 | BA11: 258 | BB11: 418 | BC11: 11 | BD11: 313 | BE11: 14 | BF11: 849 | BG11: 209 | BH11: 250 | BI11: 234 | BJ11: 50 | BK11: 56 | BL11: 50 | BM11: 2.481852315 | BN11: 849 | BO11: 553 | BP11: 623 | BQ11: 545 | BR11: 400 | BS11: 322 | BT11: 255 | BU11: 214 | BV11: 258 | BW11: 20 | BX11: 22 | BY11: 849 | BZ11: 555 | CA11: 93 | CB11: 127 | CC11: 653 | CD11: 205 | CE11: 153 | CF11: 22 | CG11: 110 | CH11: 25 | CI11: 258 | CJ11: 149 | CK11: 50 | CL11: 31 | CM11: 28 | CN11: 1.573913043 | CO11: 258 | CP11: 119 | CQ11: 152 | CR11: 107 | CS11: 75 | CT11: 8 | CU11: 27 | CV11: 258 | CW11: 113 | CX11: 122 | CY11: 58 | CZ11: 124 | DA11: 74 | DB11: 74 | DC11: 14 | DD11: 26 | DE11: 1863 | DF11: 136 | DG11: 698 | DH11: 447 | DI11: 257 | DJ11: 93 | DK11: 38 | DL11: 21 | DM11: 173 | DN11: 2.675500986 | DO11: 1863 | DP11: 1291 | DQ11: 411 | DR11: 126 | DS11: 35 | DT11: 1863 | DU11: 374 | DV11: 799 | DW11: 643 | DX11: 47 | DY11: 1863 | DZ11: 1013 | EA11: 216 | EB11: 97 | EC11: 18 | ED11: 39 | EE11: 330 | EF11: 150 | EG11: 20.88799711 | EH11: 1863 | EI11: 147 | EJ11: 586 | EK11: 493 | EL11: 255 | EM11: 43 | EN11: 137 | EO11: 202 | EP11: 15.21582021 | EQ11: 1863 | ER11: 274 | ES11: 793 | ET11: 259 | EU11: 211 | EV11: 237 | EW11: 20 | EX11: 69 | EY11: 1863 | EZ11: 1076 | FA11: 728 | FB11: 59
A13: 都市圏 | B13: 都市部 | C13: 841 | D13: 10 | E13: 22 | F13: 60 | G13: 95 | H13: 171 | I13: 235 | J13: 178 | K13: 46 | L13: 4 | M13: 20 | N13: 84.40194884 | O13: 841 | P13: 54 | Q13: 80 | R13: 90 | S13: 219 | T13: 176 | U13: 103 | V13: 72 | W13: 40 | X13: 4 | Y13: 3 | AA13: 841 | AB13: 106 | AC13: 734 | AD13: 1 | AE13: 841 | AF13: 326 | AG13: 124 | AH13: 149 | AI13: 45 | AJ13: 28 | AK13: 150 | AL13: 19 | AM13: 0 | AN13: 0 | AO13: 841 | AP13: 84 | AQ13: 72 | AR13: 172 | AS13: 333 | AT13: 103 | AU13: 8 | AV13: 57 | AW13: 0 | AX13: 12 | AY13: 841 | AZ13: 294 | BA13: 184 | BB13: 212 | BC13: 7 | BD13: 131 | BE13: 13 | BF13: 294 | BG13: 73 | BH13: 89 | BI13: 77 | BJ13: 19 | BK13: 17 | BL13: 19 | BM13: 2.545454545 | BN13: 294 | BO13: 202 | BP13: 197 | BQ13: 176 | BR13: 149 | BS13: 104 | BT13: 92 | BU13: 75 | BV13: 81 | BW13: 10 | BX13: 3 | BY13: 294 | BZ13: 194 | CA13: 42 | CB13: 53 | CC13: 206 | CD13: 63 | CE13: 45 | CF13: 8 | CG13: 39 | CH13: 5 | CI13: 184 | CJ13: 99 | CK13: 44 | CL13: 22 | CM13: 19 | CN13: 1.545454545 | CO13: 184 | CP13: 82 | CQ13: 107 | CR13: 74 | CS13: 57 | CT13: 6 | CU13: 18 | CV13: 184 | CW13: 76 | CX13: 86 | CY13: 45 | CZ13: 96 | DA13: 58 | DB13: 56 | DC13: 10 | DD13: 18 | DE13: 841 | DF13: 62 | DG13: 275 | DH13: 222 | DI13: 131 | DJ13: 43 | DK13: 16 | DL13: 7 | DM13: 85 | DN13: 2.704942681 | DO13: 841 | DP13: 537 | DQ13: 199 | DR13: 92 | DS13: 13 | DT13: 841 | DU13: 252 | DV13: 263 | DW13: 303 | DX13: 23 | DY13: 841 | DZ13: 358 | EA13: 87 | EB13: 53 | EC13: 10 | ED13: 28 | EE13: 218 | EF13: 87 | EG13: 44.64141791 | EH13: 841 | EI13: 12 | EJ13: 179 | EK13: 211 | EL13: 170 | EM13: 39 | EN13: 104 | EO13: 126 | EP13: 17.77553191 | EQ13: 841 | ER13: 137 | ES13: 288 | ET13: 96 | EU13: 150 | EV13: 128 | EW13: 13 | EX13: 29 | EY13: 841 | EZ13: 363 | FA13: 455 | FB13: 23
B14: 地方部 | C14: 1022 | D14: 19 | E14: 19 | F14: 53 | G14: 123 | H14: 209 | I14: 306 | J14: 207 | K14: 61 | L14: 8 | M14: 17 | N14: 84.77810945 | O14: 1022 | P14: 57 | Q14: 76 | R14: 75 | S14: 285 | T14: 241 | U14: 124 | V14: 111 | W14: 46 | X14: 5 | Y14: 2 | AA14: 1022 | AB14: 107 | AC14: 914 | AD14: 1 | AE14: 1022 | AF14: 301 | AG14: 109 | AH14: 185 | AI14: 67 | AJ14: 72 | AK14: 260 | AL14: 28 | AM14: 0 | AN14: 0 | AO14: 1022 | AP14: 76 | AQ14: 75 | AR14: 229 | AS14: 436 | AT14: 132 | AU14: 2 | AV14: 66 | AW14: 1 | AX14: 5 | AY14: 1022 | AZ14: 555 | BA14: 74 | BB14: 206 | BC14: 4 | BD14: 182 | BE14: 1 | BF14: 555 | BG14: 136 | BH14: 161 | BI14: 157 | BJ14: 31 | BK14: 39 | BL14: 31 | BM14: 2.448473282 | BN14: 555 | BO14: 351 | BP14: 426 | BQ14: 369 | BR14: 251 | BS14: 218 | BT14: 163 | BU14: 139 | BV14: 177 | BW14: 10 | BX14: 19 | BY14: 555 | BZ14: 361 | CA14: 51 | CB14: 74 | CC14: 447 | CD14: 142 | CE14: 108 | CF14: 14 | CG14: 71 | CH14: 20 | CI14: 74 | CJ14: 50 | CK14: 6 | CL14: 9 | CM14: 9 | CN14: 1.646153846 | CO14: 74 | CP14: 37 | CQ14: 45 | CR14: 33 | CS14: 18 | CT14: 2 | CU14: 9 | CV14: 74 | CW14: 37 | CX14: 36 | CY14: 13 | CZ14: 28 | DA14: 16 | DB14: 18 | DC14: 4 | DD14: 8 | DE14: 1022 | DF14: 74 | DG14: 423 | DH14: 225 | DI14: 126 | DJ14: 50 | DK14: 22 | DL14: 14 | DM14: 88 | DN14: 2.651670236 | DO14: 1022 | DP14: 754 | DQ14: 212 | DR14: 34 | DS14: 22 | DT14: 1022 | DU14: 122 | DV14: 536 | DW14: 340 | DX14: 24 | DY14: 1022 | DZ14: 655 | EA14: 129 | EB14: 44 | EC14: 8 | ED14: 11 | EE14: 112 | EF14: 63 | EG14: 5.856316411 | EH14: 1022 | EI14: 135 | EJ14: 407 | EK14: 282 | EL14: 85 | EM14: 4 | EN14: 33 | EO14: 76 | EP14: 13.50280394 | EQ14: 1022 | ER14: 137 | ES14: 505 | ET14: 163 | EU14: 61 | EV14: 109 | EW14: 7 | EX14: 40 | EY14: 1022 | EZ14: 713 | FA14: 273 | FB14: 36

Sheet 都市圏とのクロス問8
C1: 問８(1) 「高齢者向け住まい紹介事業者届出公表制度」に関する認知状況 | H1: 問８(2) 「高齢者向け住まい紹介事業者届出公表制度」への要望
C3: 全体 | D3: 知っている | E3: 知らない | F3: 無回答 | H3: 全体 | I3: 紹介事業者の運営・営業に関するガイドライン等を策定して欲しい | J3: 紹介手数料に関する情報を公開して欲しい | K3: 遵守項目を徹底して欲しい | L3: 届出・公表項目を増やして欲しい | M3: 公表情報が定期的に更新されるようにして欲しい | N3: 届出制度の普及啓発を強化して欲しい | O3: 紹介事業に関する研修を充実させて欲しい | P3: その他 | Q3: 特に意見はない | R3: 無回答
A4: 全 体 | C4: =C11 -> 1602 | D4: 193 | E4: 1246 | F4: 163 | H4: 193 | I4: 70 | J4: 83 | K4: 45 | L4: 19 | M4: 61 | N4: 30 | O4: 33 | P4: 10 | Q4: 57 | R4: 4
C5: =IF(SUM(D5:F5)>100,"－",SUM(D5:F5)) -> 100 | D5: =D4/$C4*100 -> 12.0474407 | E5: 77.77777778 | F5: 10.17478152 | H5: =IF(SUM(I5:R5)>100,"－",SUM(I5:R5)) -> － | I5: =I4/$H4*100 -> 36.26943005 | J5: 43.00518135 | K5: 23.31606218 | L5: 9.844559585 | M5: 31.60621762 | N5: 15.54404145 | O5: 17.0984456 | P5: 5.18134715 | Q5: 29.53367876 | R5: 2.07253886
A6: 都市圏 | B6: 都市部 | C6: =C13 -> 787 | D6: =IF($C6=0,0,D13/$C6*100) -> 13.21473952 | E6: 77.63659466 | F6: 9.14866582 | H6: =H13 -> 104 | I6: =IF($H6=0,0,I13/$H6*100) -> 39.42307692 | J6: 45.19230769 | K6: 24.03846154 | L6: 9.615384615 | M6: 30.76923077 | N6: 13.46153846 | O6: 15.38461538 | P6: 5.769230769 | Q6: 27.88461538 | R6: 1.923076923
B7: 地方部 | C7: =C14 -> 815 | D7: 10.9202454 | E7: 77.91411043 | F7: 11.16564417 | H7: =H14 -> 89 | I7: 32.58426966 | J7: 40.4494382 | K7: 22.47191011 | L7: 10.11235955 | M7: 32.58426966 | N7: 17.97752809 | O7: 19.1011236 | P7: 4.494382022 | Q7: 31.46067416 | R7: 2.247191011
A11: 全 体 | C11: 1602 | D11: 193 | E11: 1246 | F11: 163 | H11: 193 | I11: 70 | J11: 83 | K11: 45 | L11: 19 | M11: 61 | N11: 30 | O11: 33 | P11: 10 | Q11: 57 | R11: 4
A13: 都市圏 | B13: 都市部 | C13: 787 | D13: 104 | E13: 611 | F13: 72 | H13: 104 | I13: 41 | J13: 47 | K13: 25 | L13: 10 | M13: 32 | N13: 14 | O13: 16 | P13: 6 | Q13: 29 | R13: 2
B14: 地方部 | C14: 815 | D14: 89 | E14: 635 | F14: 91 | H14: 89 | I14: 29 | J14: 36 | K14: 20 | L14: 9 | M14: 29 | N14: 16 | O14: 17 | P14: 4 | Q14: 28 | R14: 2
